{"text_format":"1","workbook":"xlsx","n_sheets":3,"sheets":["Hoja1","Lista de Verificacion","datos auxiliares"],"not_rendered":{"charts":0,"images":2,"macros":1,"external_links":0,"defined_names":96,"comments":0,"pivot_tables":0},"unopened":[],"bounds":{"document_bytes":16777216,"sheet_cells":100000,"rows_first":2000,"rows_last":500,"rows_between":2000,"halvings":0,"cell_chars":16384,"cell_head_chars":4096},"cells_cut":0,"cells_raw":0,"read":"whole","date_system":"1900"}

{"sheet":"Hoja1","index":0,"n_rows":0,"n_cols":0,"rows_kept":0,"cut":false,"hidden":true,"merged":[]}

{"sheet":"Lista de Verificacion","index":1,"n_rows":73,"n_cols":11,"rows_kept":73,"cut":false,"hidden":false,"merged":[[49,5,49,6],[44,5,44,6],[42,5,42,6],[43,5,43,6],[68,3,68,6],[54,5,54,6],[55,5,55,6],[56,5,56,6],[58,5,58,6],[51,5,51,6],[52,5,52,6],[53,5,53,6],[57,5,57,6],[46,5,46,6],[50,5,50,6],[47,5,47,6],[48,5,48,6],[8,3,8,6],[9,3,9,6],[10,3,10,6],[12,3,12,6],[45,5,45,6],[29,5,29,6],[30,5,30,6],[31,5,31,6],[32,5,32,6],[41,5,41,6],[34,5,34,6],[36,5,36,6],[37,5,37,6],[38,5,38,6],[39,5,39,6],[40,5,40,6],[1,2,3,5],[1,6,3,6],[16,1,17,6],[18,1,18,6],[35,5,35,6],[13,3,13,6],[14,3,14,6],[11,3,11,6],[19,1,19,6],[33,5,33,6],[20,1,21,6],[22,1,22,6],[25,3,25,4],[27,1,28,2],[27,3,28,6],[7,3,7,6]]}
[]
[null,null,"                   LISTA DE VERIFICACIÓN",null,null,null,"EXPERTO"]
[]
[]
[]
[null,"Lista de Verificación del Cumplimiento de  GUIA TECNICA SOBRE EXPOSICIÓN OCUPACIONAL A HIPOBARIA INTERMITENTE CRONICA POR GRAN ALTITUD "]
[]
[null,null,"Nombre Empresa: "]
[null,null,"Rut "]
[null,null,"Fecha: "]
[null,null,"Nombre Responsable Información:"]
[null,null,"Cargo de Responsable de Información "]
[null,null,{"$f":"+#REF!","v":{"$error":"#REF!"}}]
[null,null,"Dirección"]
[null,null,"Experto: "]
[]
[null,"OBJETIVO"]
[]
[null," Verificar el cumplimiento de las exigencias  del DS No 594 de 1999 del Ministerio de Salud, sobre trabajo en condiciones de exposición a Hipobaria Intermitente Cronica en trabajo a gran altitud. "]
[]
[null,"ALCANCE"]
[]
[null,"Esta lista se aplica a todas las empresas asociadas a la ACHS que tengan trabajadoes expuestos a hipobaria intermitente crónica de gran altitud  "]
[]
[null,null,null,null,null,null,null,null,"N/A"]
[null,null,null,"PLAZO DEL REQUISITO    ",null,"12 meses                               6 meses ","  3 meses",null,"NO"]
[null,null,null,null,null,null,null,null,"SI"]
[null,"REQUISITOS",null,"SELECCIONE SU RESPUESTA EN EL RECUADRO \"CUMPLE\""]
[]
[null,"A","RESPECTO DE LA CAPACITACIÓN ","ORIENTACIÓN / EVIDENCIA","CUMPLE SI/NO","RECOMENDACIÓN / ACCIÓN A SEGUIR"]
[null,1,"Informa a Trabajadores sobre los  Riesgos  de la exposición y las  Medidas de control. ","Registro de capacitación","SI","Informe periodicamente a los trabajadores  los riesgos de la exposición a H.I.C. y las Medidas Preventivas. ",null,1,"Solicitar capacitación sobre los riesgos de los plaguicidas a su organismo administrador o SAG.",1]
[null,2,"Imparte anualmente instrucción Teorico Practica  de 3 horas de duración  sobre el riesgo y las consecuencias para la salud,  teniendo en cuenta las caracteristicas mencionadas en el punto 6 de la Guia Tecnica. ","Registro de  Instruccción Teorico Practica vigente (1año) ","SI","Imparta  instrucción Teorico Practica  sobre el riesgo y las consecuencias para la salud,  cumpliendo con  las caracteristicas mencionadas en el punto 6 de la Guia Tecnica. ",null,1,"Capacitar al personal que supervisa, prepara y aplica plaguicidas en buenas prácticas y medidas de seguridad que se deben utilizar en estas tareas.",1]
[null,"B","RESPECTO DEL PROGRAMA PREVENTIVO ","ORIENTACIÓN / EVIDENCIA","CUMPLE SI/NO","RECOMENDACIÓN / ACCIÓN A SEGUIR"]
[null,3,"Tiene programa Preventivo tendiente a preservar la salud de los trabajadores expuestos a H.I.C, realizado por un Medico o Enfermera con conocimiento en Salud Ocupacional y que considere las caracteristicas mencionadas en el punto 7 de la Guia Tecnica. ","Programa escrito, con actualización anual, realizado por medico o Enfermera. ","SI","Solicite curso e-learning  ACHS, Promoción de la Salud y Calidad de vida para Referentes Técnicos de Trabajadores expuestos a Hipobaria Intermitente Crónica.\n\nElabore e Implemente Programa preventivo según lo aprendido en curso e-learning   \n",null,1,"Para la preparación de mezclas disponer de los utensilios necesarios marcándolos y destinando un lugar exclusivo para guardarlos.",1]
[null,"C","RESPECTO DE LAS EVALUACIONES DE SALUD","ORIENTACIÓN / EVIDENCIA","CUMPLE SI/NO","RECOMENDACIÓN / ACCIÓN A SEGUIR"]
[null,4,"Cuenta con autorización sanitaria para realizar trabajos sobre los 5.500 msnm","Documento de Autorización Sanitaria","SI","La empresa deberá contar con autorización expresa y fundada de la Autoridad Sanitaria, representada por las Unidades de Salud Ocupacional de la SEREMI de Salud. Es importante señalar que la autoridad sanitaria considerará el cumplimiento de los siguientes requisitos para la autorización de trabajo en altitud extrema. 1.- Evaluación de salud que incluye batería de exámenes pre-ocupacionales, un ECG de esfuerzo y un test de tolerancia a la hipoxia.\n2.- Suministro de oxígeno individual en forma permanente.\n3.- Identificación de los puestos de trabajo con alta carga física y ergonómica, con su correspondiente análisis de riesgo y planes de mitigación y control de los riesgos.\n4.- Zonas de descanso adecuadas para la recuperación fisiológica del trabajador que considere medidas de mitigación, tales como oxigenación y cumplimiento de estándares de habitabilidad.\n5.- Planificar, en la primera semana de trabajo una exposición progresiva desde solo 4 horas el primer día hasta 8 o más horas en el día 3º, para facilitar una adecuada Aclimatación y prevenir intolerancia.\n6.- Sistema de pausas programadas durante la jornada laboral acordes con las exigencias y carga fisiológica de trabajo. \n7.- Plan de evacuación en caso de emergencia médica.\n"]
[null,5,"Los trabajadores que se van a exponer a H.I.C son evaluados previo a su contratación  (Evaluación Pre Ocupacional)  para  pesquisar contraindicaciones de salud para la exposición.   ","Informe medico con la conclusión de aptitud para ocupar el cargo. ","SI","Antes de contratar un Trabajador  asegurese de solicitar Examen Pre ocupacional, confirme que el trabajador tiene aptitud para desempeñar el cargo  y conserve  el Informe con la conclusión medica que asi lo indica. ",null,1,"Proporcionar a su costo, a los trabajadores que manipulen, preparen o apliquen plaguicidas,  ropa impermeable para protección de cuerpo y cabeza.",2,"cronograma"]
[null,6,"Los trabajadores contratados, con antecedentes de exposición laboral y que se expondran  a H.I.C  tienen evaluacion ocupacional vigente según su edad.  ","Informe medico con la conclusión de aptitud para ocupar el cargo. ","SI","comuniquese con el Servicio de Evaluaciones Laborales (SEL) para solicitar los examenes ocupacionales de los trabajadores que no cuentan con evaluación ocupacional vigente.  ",null,1,"Proporcionar a su costo, a los trabajadores que manipulen, preparen o apliquen plaguicidas,  lentes o pantalla facial que impidan la penetración de los plaguicidas hacia los ojos.",1]
[null,7,"Los Trabajadores expuestos a H.I.C  se encuentran en Programa de vigilancia de la Salud. ","Informe Generico de ultima evaluación y Listado de Trabajadores en Programa de Vigilancia de la Salud","SI","Realice  Nomina de Trabajadores expuestos y entregue al Experto en Prevención ACHS.  ",null,1,"Proporcionar a su costo, a los trabajadores que manipulen, preparen o apliquen plaguicidas, guantes de puño largo de goma, nitrilo, neoprén o látex.",1]
[null,{"$f":"+B39+1","v":8},"Los trabajadores son evaluados por el Programa de Vigilancia de la Salud al termino de la relación contractual  o por cambio de puesto de trabajo bajo los 3000mts en la misma empresa (Examen Pre-egreso) ","Resultados de examen de Pre egreso de los trabajadores retirados de la empresa o cambiados de Puesto de Trabajo. ","SI","Contacte a la Enfermera de Vigilancia de la Salud de la Agencia ACHS que corresponda y solicite los examenes de Pre-egreso cada vez que un trabajador sea cambiado de puesto de trabajo bajo los 3000msnm o finiquitado. ",null,1,"Proporcionar a su costo, a los trabajadores que manipulen, preparen o apliquen plaguicidas,  máscara y filtro químico  específico para el producto utilizado o sistema suministro de aire de calidad respirable.",1]
[null,9,"Los trabajadores se realizan el chequeo anual preventivo en su sistema previsional de acuerdo al estandar definido por el Ministerio de Salud en la Evaluación Medica Preventiva (EMPA) ","Certificados de Evaluación Medica Preventiva anual. ","SI","Solicite a sus trabajadores el certificado de EMPA. ",null,1,"Revisar que los equipos de protección personal que adquiera tengan certificación de entidades autorizadas.",1]
[null,"D","RESPECTO DE LAS MEDIDAS DE PREVENCIÓN Y MITIGACIÓN ","ORIENTACIÓN / EVIDENCIA","CUMPLE SI/NO","RECOMENDACIÓN / ACCIÓN A SEGUIR"]
[null,10,"Se aplica Oxigenación individual o ambiental en los dormitorios de  aquellos trabajadores que presenten apnea central debido a H.I.C.","Verificar visualmente ","SI","Implemente Oxigenación individual o ambiental en los dormitorios de los trabajadores con diagnostico de apnea central por Hipobaria Intermitente Cronica ",null,2,"Durante las fumigaciones instalar letreros que indiquen: Cuidado, aplicación de plaguicidas, con el signo de una calavera con dos tibias cruzadas, y agregar la fecha, hora, duración de la aplicación, periodo de reentrada cuando corresponda y un teléfono para consultas.",1]
[null,{"$f":"+B43+1","v":11},"La oxigenación ambiental de los dormitorios permite mantener una presión parcial de Oxigeno equivalente a la existente bajo los 3000msnm y sobre los 2700msnm, con monitoreo permanente de presión parcial de CO2, O2 y vapor de agua. ","Verificar visualmente","SI","Verifique que la  oxigenación ambiental de los dormitorios permite mantener una presión parcial de Oxigeno equivalente a la existente bajo los 3000msnm y sobre los 2700msnm, con monitoreo permanente de presión parcial de CO2, O2 y vapor de agua. ",null,2,"Durante los periodos de aplicación instalar letreros que indiquen esta prohibición y agregar la fecha, hora, duración de la aplicación, periodo de reentrada cuando corresponda.",1]
[null,{"$f":"+B44+1","v":12},"La Oxigenación Individual se administra por naricera a un flujo de 1 a 2 Lts/min, manteniendo una saturación igual o mayor a 85%","Verificar visualmente ","SI","Administre Oxigeno por naricera a los trabajadores diagnosticados con apnea central, a 1 o 2 lts/min  para obtener como minimo una saturación de 85%",null,1,"Hacer mantención periódica al equipo utilizado para aplicar los plaguicidas, manteniendo mangueras, boquillas, bombas, filtros, etc., en buen estado.",1]
[null,{"$f":"+B45+1","v":13},"La dependencia donde pernoctan los trabajadores cumple con los siguientes estandares de habitabilidad:\nHumidificación entre 40 y 70%\nTemperatura de bienestar entre 17 y 22 Grados. \nRuido menor a 30 Db\nOscuridad menor a 5Lux ","Verificar con evaluacion Ambiental según corresponda. ","SI","Implemente los estandares de habitabilidad descritos. ",null,2,"Hacer procedimiento escrito que indique como se deben calibrar los equipos de aplicación de plaguicidas para obtener las dosis indicadas en la etiqueta",1]
[null,"E","RESPECTO DEL PROTOCOLO DE SEGUIMIENTO  DE ACLIMATACIÓN A LA LLEGADA A LA FAENA Y A LAS 24 Y 48 HORAS. ","ORIENTACIÓN / EVIDENCIA","CUMPLE SI/NO","RECOMENDACIÓN / ACCIÓN A SEGUIR"]
[null,{"$f":"+B46+1","v":14},"Aplica el Protocolo de seguimiento de la aclimatación según Guia Tecnica a los trababjadores que llegan a la faena o lugar de trabajo por primera vez. ","Registro de evaluaciones Medicas ","SI","Realice evaluación de seguimiento de la aclimatación  según las consideraciónes de la Guia Tecnica (Punto 12), a la llegada a  faena, a las 24 y 48 Horas.  ",null,1,"Implementar duchas con agua fría y caliente según lo indicado en los decretos DS 157/2005 y DS 594/1999.",1]
[null,15,"Aplica el Protocolo de seguimiento de la aclimatación según Guia Tecnica a los trabajadores que han pasado mas de 6 meses sin haber subido a gran altitud. ","Registro de evaluaciones Medicas ","SI","Realice evaluación de seguimiento de la aclimatación  según las consideraciónes de la Guia Tecnica (Punto 12), a la llegada a  faena, a las 24 y 48 Horas.  ",null,2,"Lavar los envases vacíos según el siguiente procedimiento: a) Agregar agua hasta ¼ de la capacidad del envase, b) Cerrar el envase y agitar por 30 segundos, c) Verter el contenido del envase al estanque del equipo pulverizador; luego repetir los pasos anteriores por 3 veces",1]
[null,"F","RESPECTO DE LOS POLICLINICOS","ORIENTACIÓN / EVIDENCIA","CUMPLE SI/NO","RECOMENDACIÓN / ACCIÓN A SEGUIR"]
[null,16,"Cuenta con la autorización Sanitaria ","Registro de Autorización Sanitaria ","SI","Gestione la autorizxación sanitaria para lo cual le seran exigibles los requisitos de las salas de procedimientos, considerados en el  Dto No 283 de 1997. ",null,2,"Presentar a la autoridad un programa de gestión de los residuos.",1]
[null,17,"Presta atención Diurna y Nocturna ","Verificar Visualmente ","SI","Implemente atención del Policlinico con personal medico necesario las 24 horas del día. "]
[null,18,"Cuenta con el personal de salud según criterios establecidos en el Decreto Supremo 594/1999.","Registro de capacitaciones  de los Profesionales ","SI","Verifique que el personal medico cuente con la formación exigida  en el Decreto Supremo 594/1999"]
[null,19,"Cuenta con el arsenal terapeutico  que menciona el punto 14.1 de la Guia Tecnica,  que permita hacer el seguimiento de la aclimatación  a la gran altitud y la atención del mal de montaña agudo, grave y de emergencias medicas traumaticas y cardiorrespiratorias ","Verificar Visualmente ","SI","Disponga de, al menos:\nOximetro de Pulso\nDesfibrilador externo automatico\nElectrocardiografo autointerpretativo\nCuello estabilizador\nTablas espinales completas\nFerulas para Inmovilización de extremidades \nFarmacos de prescripción medica. \n\n"]
[null,20,"Cuenta con ambulancia Basica disponible las 24 horas del día y todos los dias que se desarrollen labores o hayan personas en el lugar.  (Aquellos lugares de trabajo a mas de 50kmts  de un hospital o Policlinico y que tengan puntaje total igual o mayor a 8, de acuerdo a lo establecido en el DS No 28. ","Verificar Visualmente ","SI","Implemente el servicio de  ambulancia basica  las 24 horas del día y todos los dias que se desarrollen labores o hayan personas en el lugar. ",null,2,"Se deben hacer procedimientos de trabajo por escrito, que incluyan como se deben recoger los derrames. Estos deben estar a disposición de los operadores y en general de todo el personal involucrado en las tareas de fumigación",2]
[null,"G","RESPECTO DE LA BRIGADA DE EMERGENCIA. ","ORIENTACIÓN / EVIDENCIA","CUMPLE SI/NO","RECOMENDACIÓN / ACCIÓN A SEGUIR"]
[null,21,"La faena cuenta con una Brigada de emergencia ","Registro de Conformación de la Brigada ","SI","Forme Brigada de Emergencia según extención de la faena y numero de Trabajadores ",null,2,"Preparar personal en primeros auxilios para tratar intoxicación con plaguicidas.",1]
[null,22,"Los integrantes de la Brigada de emergencia estan capacitados en Soporte Vital Basico (BLS) y Auxilio en alta montaña. ","Registro de Asistencia a capacitación ","SI","Capacite a los integrantes de la brigada en Soporte Vital Basico y Auxilio en alta montaña. "]
[null,23,"Los Integrantes de la Brigrada de Emergencia son instruidos anualmente en un curso de al menos dos horas que considera: atención de accidentados, primeros auxilios, manejo basico de politraumatizados y extricación, precauciuones estandares de la atención en salud y conceptos basicos de espacios confinados, fugas quimicas, incendios y derrames. ","Registro de Asistencia a capacitación ","SI","Instruya anualmente a los integrantes de la brigada en atención de accidentados, primeros auxilios, manejo basico de politraumatizados y extricación, precauciuones estandares de la atención en salud y conceptos basicos de espacios confinados, fugas quimicas, incendios y derrames. ",null,2,"Se debe disponer ducha para el lavado de ojos y cuerpo, para ser usadas en caso de contaminación del personal.",1]
[]
[]
[]
[null,null,"Respuestas SI",{"$f":"+COUNTIF(E31:E59,\"SI\")","v":23}]
[null,null,"Respuestas NO",{"$f":"+COUNTIF(E31:E59,\"NO\")","v":0}]
[null,null,"Respuestas No Aplica",{"$f":"+COUNTIF(E31:E59,\"N/A\")","v":0}]
[null,null," % Cumplimiento",{"$f":"+D63/(23-D65)","v":1}]
[]
[]
[]
[]
[]
[null,null,null,"Colocar aquí  nombre del experto achs"]
[null,null,null,"Experto Coordinador"]

{"sheet":"datos auxiliares","index":2,"n_rows":437,"n_cols":22,"rows_kept":437,"cut":false,"hidden":true,"merged":[]}
["Dirección","Comuna","aux","BP",null,"Comuna",null,null,null,"Razón Social","Zonal","Agencia","Cartera Experto","Nombre Experto","BP Sucursal","Dirección","Comuna"]
["CALLE ALMIRANTE LATORRE 1322","ANCUD",{"$f":"+A2&B2","v":"CALLE ALMIRANTE LATORRE 1322ANCUD"},2000251594,null,"ANCUD",null,null,null,"EULEN CHILE SOCIEDAD ANONIMA ","CENTRO NORTE","AGENCIA VIÑA DEL MAR / VALPARAISO","EPMX4803","ROGEL ROJAS CELIA JOHANA",2000251619,"5 SECTOR GOMEZ CARREÑO 30","VIÑA DEL MAR",{"$f":"+COUNTIF(P:P,P2)","v":1},{"$f":"+P2&Q2","v":"5 SECTOR GOMEZ CARREÑO 30VIÑA DEL MAR"},{"$f":"+O2","v":2000251619},{"$f":"+VLOOKUP(T2,$D$2:$D$432,1,0)","v":2000251619}]
["AV.SAN MARTIN 2514","ANTOFAGASTA",{"$f":"+A3&B3","v":"AV.SAN MARTIN 2514ANTOFAGASTA"},2000251335,null,"ANTOFAGASTA",null,null,null,"EULEN CHILE SOCIEDAD ANONIMA ","SUR","AGENCIA VALDIVIA / OSORNO","EPCE3301","LEIGHTON GALLARDO WALESKA KATHERI",2000251640,"ADUANA PAJARITOS","PUYEHUE",{"$f":"+COUNTIF(P:P,P3)","v":1},{"$f":"+P3&Q3","v":"ADUANA PAJARITOSPUYEHUE"},{"$f":"+O3","v":2000251640},{"$f":"+VLOOKUP(T3,$D$2:$D$432,1,0)","v":2000251640}]
["CALLE ANIBAL PINTO 2832","ANTOFAGASTA","CALLE ANIBAL PINTO 2832ANTOFAGASTA",2000251252,null,"ARICA",null,null,null,"EULEN CHILE SOCIEDAD ANONIMA ","METRO NORTE","AGENCIA SANTIAGO","EPCE4206","LAZO ESCUDERO RAUL",2000251383,"AGUSTINAS 1269","SANTIAGO",1,"AGUSTINAS 1269SANTIAGO",2000251383,2000251383]
["CALLE ANIBAL PINTO 3228","ANTOFAGASTA","CALLE ANIBAL PINTO 3228ANTOFAGASTA",2000251333,null,"BUIN",null,null,null,"EULEN CHILE S.A. ","METRO NORTE","AGENCIA SANTIAGO","EPCE4206","LAZO ESCUDERO RAUL",2000554743,"AGUSTINAS 2009","SANTIAGO",1,"AGUSTINAS 2009SANTIAGO",2000554743,2000554743]
["CALLE ARTURO PRAT 619","ANTOFAGASTA","CALLE ARTURO PRAT 619ANTOFAGASTA",2000251340,null,"CALAMA",null,null,null,"EULEN CHILE SOCIEDAD ANONIMA ","METRO SUR","AGENCIA RANCAGUA","EPCE3802","BOILLOT VILLEGAS TANIA ANGELICA",2000251377,"ALAMEDA 634","RANCAGUA",1,"ALAMEDA 634RANCAGUA",2000251377,2000251377]
["CALLE DIAZ GANA 1063","ANTOFAGASTA","CALLE DIAZ GANA 1063ANTOFAGASTA",2000251210,null,"CALBUCO",null,null,null,"EULEN CHILE SOCIEDAD ANONIMA ","CENTRO NORTE","AGENCIA ELQUI","EPCE2001","SANCHEZ PEÑALILLO CLAUDINA SOLEDA",2000251321,"ALDUNATE 955","COQUIMBO",1,"ALDUNATE 955COQUIMBO",2000251321,2000251321]
["CALLE LA TORRE 2357 OF.25","ANTOFAGASTA","CALLE LA TORRE 2357 OF.25ANTOFAGASTA",2000251334,null,"CALERA",null,null,null,"EULEN CHILE SOCIEDAD ANONIMA ","CENTRO NORTE","AGENCIA VIÑA DEL MAR / VALPARAISO","EPMX4803","ROGEL ROJAS CELIA JOHANA",2000251654,"ALVAREZ 1532","VIÑA DEL MAR",1,"ALVAREZ 1532VIÑA DEL MAR",2000251654,2000251654]
["CALLE URIBE 746","ANTOFAGASTA","CALLE URIBE 746ANTOFAGASTA",2000251336,null,"CASTRO",null,null,null,"EULEN CHILE SOCIEDAD ANONIMA ","CENTRO NORTE","AGENCIA VIÑA DEL MAR / VALPARAISO","EPMX4803","ROGEL ROJAS CELIA JOHANA",2000251655,"ALVAREZ 2138","VIÑA DEL MAR",1,"ALVAREZ 2138VIÑA DEL MAR",2000251655,2000251655]
["CAMINO MEJILLONES KM 45","ANTOFAGASTA","CAMINO MEJILLONES KM 45ANTOFAGASTA",2000251339,null,"CHILLAN",null,null,null,"EULEN CHILE SOCIEDAD ANONIMA ","SUR","AGENCIA PUERTO MONTT / COYHAIQUE","EPCE3701","MASSRI RUIZ EDUARDO WALTER",2000251366,"ANTONIO VARAS 650","PUERTO MONTT",1,"ANTONIO VARAS 650PUERTO MONTT",2000251366,2000251366]
["IQUIQUE 5520","ANTOFAGASTA","IQUIQUE 5520ANTOFAGASTA",2000251378,null,"COIHAIQUE",null,null,null,"EULEN CHILE SOCIEDAD ANONIMA ","SUR","AGENCIA CONCEPCION","EPCE1802","MARIN GALINDO RYAN FELIPE",2000251349,"ARAUCO 1031","CONCEPCION",1,"ARAUCO 1031CONCEPCION",2000251349,2000251349]
["RUTA 5 KM 1372 1372","ANTOFAGASTA","RUTA 5 KM 1372 1372ANTOFAGASTA",2000251599,null,"COLINA",null,null,null,"EULEN CHILE SOCIEDAD ANONIMA ","METRO NORTE","AGENCIA PARQUE LAS AMERICAS","EPCE3504","HERRERA MEZA JUAN ANDRES",2000251375,"ASCANIO BASCUÑAN 1048","RENCA",1,"ASCANIO BASCUÑAN 1048RENCA",2000251375,2000251375]
["AV.21 DE MAYO 386","ARICA","AV.21 DE MAYO 386ARICA",2000251304,null,"CONCEPCION",null,null,null,"EULEN CHILE SOCIEDAD ANONIMA ","METRO NORTE","AGENCIA LAS CONDES","EPCE2805","IASALVATORE BRAVO ANGELINA MARJOR",2000558565,"AUGUSTO LEGUIA 70","LAS CONDES",1,"AUGUSTO LEGUIA 70LAS CONDES",2000558565,2000558565]
["CALLE 7 DE JUNIO 266 P.1,2 Y 6","ARICA","CALLE 7 DE JUNIO 266 P.1,2 Y 6ARICA",2000251337,null,"COPIAPO",null,null,null,"EULEN CHILE SOCIEDAD ANONIMA ","METRO NORTE","AGENCIA LIBERTADORES","EPCE2901","ADAMS LOPEZ CATALINA DE LOS",2000251257,"AUTOPISTA ACONCAGUA KM 26","LAMPA",1,"AUTOPISTA ACONCAGUA KM 26LAMPA",2000251257,2000251257]
["CALLE COLON 646 OF.171","ARICA","CALLE COLON 646 OF.171ARICA",2000251208,null,"COQUIMBO",null,null,null,"EULEN CHILE SOCIEDAD ANONIMA ","CENTRO NORTE","AGENCIA RUTA DEL SOL","EPCE3203","TORRES VALDEBENITO ROXANA",2000251234,"AUTOPISTA DEL SOL  K 60","MELIPILLA",1,"AUTOPISTA DEL SOL  K 60MELIPILLA",2000251234,2000251234]
["TRONCAL RIO MAIPO KM 19","BUIN","TRONCAL RIO MAIPO KM 19BUIN",2000251443,null,"CURICO",null,null,null,"EULEN CHILE SOCIEDAD ANONIMA ","SUR","AGENCIA CONCEPCION","EPCE1802","MARIN GALINDO RYAN FELIPE",2000251347,"AUTOPISTA ITATA KM 60","PENCO",1,"AUTOPISTA ITATA KM 60PENCO",2000251347,2000251347]
["AV.CHORRILLOS 793 V EXOTICA","CALAMA","AV.CHORRILLOS 793 V EXOTICACALAMA",2000251613,null,"ESTACION_CENTRAL",null,null,null,"EULEN CHILE S.A. ","METRO NORTE","AGENCIA LAS CONDES","EPCE2805","IASALVATORE BRAVO ANGELINA MARJOR",2000554742,"AV. KENEDY 6150","VITACURA",1,"AV. KENEDY 6150VITACURA",2000554742,2000554742]
["MMH","CALAMA","MMHCALAMA",2000251418,null,"FRUTILLAR",null,null,null,"EULEN CHILE SOCIEDAD ANONIMA ","METRO NORTE","AGENCIA PROVIDENCIA","EPCE3603","BENITEZ VERGARA LORAINE ELIZABE",2000251292,"AV.11 DE SEPT 2155 L.10-13","PROVIDENCIA",1,"AV.11 DE SEPT 2155 L.10-13PROVIDENCIA",2000251292,2000251292]
["CAMINO A PARGUA S/N","CALBUCO","CAMINO A PARGUA S/NCALBUCO",2000251604,null,"HUECHURABA",null,null,null,"EULEN CHILE SOCIEDAD ANONIMA ","METRO NORTE","AGENCIA PROVIDENCIA","EPCE3603","BENITEZ VERGARA LORAINE ELIZABE",2000251486,"AV.11 DE SEPTIEMBRE 210","PROVIDENCIA",1,"AV.11 DE SEPTIEMBRE 210PROVIDENCIA",2000251486,2000251486]
["PEAJE LATERAL CALBUCO","CALBUCO","PEAJE LATERAL CALBUCOCALBUCO",2000251665,null,"INDEPENDENCIA",null,null,null,"EULEN CHILE SOCIEDAD ANONIMA ","NORTE","AGENCIA ARICA","EPCE1401","FERNANDEZ LUEIZA VICTOR HUGO",2000251304,"AV.21 DE MAYO 386","ARICA",1,"AV.21 DE MAYO 386ARICA",2000251304,2000251304]
["TRONCAL CALBUCO","CALBUCO","TRONCAL CALBUCOCALBUCO",2000251666,null,"IQUIQUE",null,null,null,"EULEN CHILE SOCIEDAD ANONIMA ","METRO SUR","AGENCIA TALCA","EPCE4303","PAVEZ GUTIERREZ KATHERINE ANDRE",2000251592,"AV.5 PONIENTE 1670","TALCA",1,"AV.5 PONIENTE 1670TALCA",2000251592,2000251592]
["CALLE CARRERA 683","CALERA","CALLE CARRERA 683CALERA",2000251274,null,"LA_CISTERNA",null,null,null,"EULEN CHILE SOCIEDAD ANONIMA ","METRO NORTE","AGENCIA SANTIAGO","EPCE4206","LAZO ESCUDERO RAUL",2000251499,"AV.AGUSTINAS 540","SANTIAGO",1,"AV.AGUSTINAS 540SANTIAGO",2000251499,2000251499]
["CALLE LAUTARO 1101","CALERA","CALLE LAUTARO 1101CALERA",2000251621,null,"LA_FLORIDA",null,null,null,"EULEN CHILE SOCIEDAD ANONIMA ","METRO NORTE","AGENCIA SANTIAGO","EPCE4206","LAZO ESCUDERO RAUL",2000251417,"AV.ALAMEDA 194","SANTIAGO",1,"AV.ALAMEDA 194SANTIAGO",2000251417,2000251417]
["CALLE PRAT 686","CALERA","CALLE PRAT 686CALERA",2000251270,null,"LA_LIGUA",null,null,null,"EULEN CHILE SOCIEDAD ANONIMA ","METRO NORTE","AGENCIA SANTIAGO","EPCE4206","LAZO ESCUDERO RAUL",2000251537,"AV.ALAMEDA 2013","SANTIAGO",1,"AV.ALAMEDA 2013SANTIAGO",2000251537,2000251537]
["CALLE ZENTENO 203","CALERA","CALLE ZENTENO 203CALERA",2000251269,null,"LA_REINA",null,null,null,"EULEN CHILE SOCIEDAD ANONIMA ","METRO NORTE","AGENCIA SANTIAGO","EPCE4206","LAZO ESCUDERO RAUL",2000251609,"AV.ALAMEDA 2240","SANTIAGO",1,"AV.ALAMEDA 2240SANTIAGO",2000251609,2000251609]
["AV.FREIRE 498","CASTRO","AV.FREIRE 498CASTRO",2000251376,null,"LA_SERENA",null,null,null,"EULEN CHILE SOCIEDAD ANONIMA ","METRO NORTE","AGENCIA LAS CONDES","EPCE2805","IASALVATORE BRAVO ANGELINA MARJOR",2000251431,"AV.ALCANTARA 200","LAS CONDES",1,"AV.ALCANTARA 200LAS CONDES",2000251431,2000251431]
["CALLE BLANCO ENCALADA 324 LOC 2","CASTRO","CALLE BLANCO ENCALADA 324 LOC 2CASTRO",2000251311,null,"LAMPA",null,null,null,"EULEN CHILE SOCIEDAD ANONIMA ","SUR","AGENCIA TEMUCO","EPCE4402","HORMAZABAL MORA CHRISTIAN JAVIE",2000251359,"AV.ALEMANIA 0281","TEMUCO",1,"AV.ALEMANIA 0281TEMUCO",2000251359,2000251359]
["CALLE FREIRE 498","CASTRO","CALLE FREIRE 498CASTRO",2000251374,null,"LAS_CONDES",null,null,null,"EULEN CHILE SOCIEDAD ANONIMA ","SUR","AGENCIA TEMUCO","EPCE4402","HORMAZABAL MORA CHRISTIAN JAVIE",2000251356,"AV.ALEMANIA 0590","TEMUCO",1,"AV.ALEMANIA 0590TEMUCO",2000251356,2000251356]
["CALLE MAIPON 577","CHILLAN","CALLE MAIPON 577CHILLAN",2000251244,null,"LINARES",null,null,null,"EULEN CHILE SOCIEDAD ANONIMA ","SUR","AGENCIA TEMUCO","EPCE4402","HORMAZABAL MORA CHRISTIAN JAVIE",2000251357,"AV.ALEMANIA 650 LOC 5","TEMUCO",1,"AV.ALEMANIA 650 LOC 5TEMUCO",2000251357,2000251357]
["CONSTITUCION 757","CHILLAN","CONSTITUCION 757CHILLAN",2000251360,null,"LLAILLAY",null,null,null,"EULEN CHILE SOCIEDAD ANONIMA ","METRO NORTE","AGENCIA LAS CONDES","EPCE2805","IASALVATORE BRAVO ANGELINA MARJOR",2000251542,"AV.ALONSO DE CORDOVA 130","LAS CONDES",1,"AV.ALONSO DE CORDOVA 130LAS CONDES",2000251542,2000251542]
["CALLE EUSEBIO LILLO 20","COIHAIQUE","CALLE EUSEBIO LILLO 20COIHAIQUE",2000251610,null,"LLANQUIHUE",null,null,null,"EULEN CHILE SOCIEDAD ANONIMA ","METRO NORTE","AGENCIA LAS CONDES","EPCE2804","HERNANDEZ REYES GUILLERMO ANTON",2000251622,"AV.ALONSO DE CORDOVA 5495","LAS CONDES",1,"AV.ALONSO DE CORDOVA 5495LAS CONDES",2000251622,2000251622]
["AV.PASEO COLINA SUR 14500 L101","COLINA","AV.PASEO COLINA SUR 14500 L101COLINA",2000251468,null,"LO_BARNECHEA",null,null,null,"EULEN CHILE SOCIEDAD ANONIMA ","METRO NORTE","AGENCIA LIBERTADORES","EPCE2901","ADAMS LOPEZ CATALINA DE LOS",2000251523,"AV.AMERICO VESPUCIO 1001","QUILICURA",2,"AV.AMERICO VESPUCIO 1001QUILICURA",2000251523,2000251523]
["ARAUCO 1031","CONCEPCION","ARAUCO 1031CONCEPCION",2000251349,null,"LOS_ANDES",null,null,null,"EULEN CHILE SOCIEDAD ANONIMA ","METRO NORTE","AGENCIA PARQUE LAS AMERICAS","EPCE3504","HERRERA MEZA JUAN ANDRES",2000251509,"AV.AMERICO VESPUCIO 1001","HUECHURABA",2,"AV.AMERICO VESPUCIO 1001HUECHURABA",2000251509,{"$error":"#N/A"},"eliminar"]
["AV.JORGE ALESSANDRI 3177 LOC 4B","CONCEPCION","AV.JORGE ALESSANDRI 3177 LOC 4BCONCEPCION",2000251354,null,"LOS_ANGELES",null,null,null,"EULEN CHILE SOCIEDAD ANONIMA ","METRO NORTE","AGENCIA LIBERTADORES","EPCE2901","ADAMS LOPEZ CATALINA DE LOS",2000251487,"AV.AMERICO VESPUCIO 1737","QUILICURA",1,"AV.AMERICO VESPUCIO 1737QUILICURA",2000251487,2000251487]
["AV.LOS CARRERAS PONIENTE 301","CONCEPCION","AV.LOS CARRERAS PONIENTE 301CONCEPCION",2000251647,null,"LOS_VILOS",null,null,null,"EULEN CHILE SOCIEDAD ANONIMA ","METRO NORTE","AGENCIA LAS CONDES","EPCE2805","IASALVATORE BRAVO ANGELINA MARJOR",2000251228,"AV.AMERICO VESPUCIO 357","LAS CONDES",1,"AV.AMERICO VESPUCIO 357LAS CONDES",2000251228,2000251228]
["AV.OHIGGINS 486","CONCEPCION","AV.OHIGGINS 486CONCEPCION",2000251348,null,"MACHALI",null,null,null,"EULEN CHILE SOCIEDAD ANONIMA ","METRO NORTE","AGENCIA LAS CONDES","EPCE2805","IASALVATORE BRAVO ANGELINA MARJOR",2000251557,"AV.AMERICO VESPUCIO NORTE 811","LAS CONDES",1,"AV.AMERICO VESPUCIO NORTE 811LAS CONDES",2000251557,2000251557]
["AV.PEAJE AGUA AMARILLA KM 60","CONCEPCION","AV.PEAJE AGUA AMARILLA KM 60CONCEPCION",2000251401,null,"MACUL",null,null,null,"EULEN CHILE SOCIEDAD ANONIMA ","METRO NORTE","AGENCIA LAS CONDES","EPCE2805","IASALVATORE BRAVO ANGELINA MARJOR",2000251541,"AV.AMERICO VESPUCIO SUR 367","LAS CONDES",1,"AV.AMERICO VESPUCIO SUR 367LAS CONDES",2000251541,2000251541]
["AV.PEAJE NUEVA ALDEA  KM21 21","CONCEPCION","AV.PEAJE NUEVA ALDEA  KM21 21CONCEPCION",2000251403,null,"MAIPU",null,null,null,"EULEN CHILE SOCIEDAD ANONIMA ","METRO NORTE","AGENCIA EGAÑA / LA REINA","EPCE2303","VEGA ORTIZ MARCO ANTONIO",2000251588,"AV.ANTONIO VARAS 2500","ÑUÑOA",1,"AV.ANTONIO VARAS 2500ÑUÑOA",2000251588,2000251588]
["AV.PEAJE RAFAEL KM 627","CONCEPCION","AV.PEAJE RAFAEL KM 627CONCEPCION",2000251402,null,"MARIA_ELENA",null,null,null,"EULEN CHILE SOCIEDAD ANONIMA ","METRO NORTE","AGENCIA PROVIDENCIA","EPCE3603","BENITEZ VERGARA LORAINE ELIZABE",2000251490,"AV.ANTONIO VARAS 3601","PROVIDENCIA",1,"AV.ANTONIO VARAS 3601PROVIDENCIA",2000251490,2000251490]
["CALLE EDMUNDO LARENAS 36","CONCEPCION","CALLE EDMUNDO LARENAS 36CONCEPCION",2000251205,null,"MARIQUINA",null,null,null,"EULEN CHILE SOCIEDAD ANONIMA ","METRO NORTE","AGENCIA LAS CONDES","EPCE2805","IASALVATORE BRAVO ANGELINA MARJOR",2000251574,"AV.APOQUINDO 3150","LAS CONDES",1,"AV.APOQUINDO 3150LAS CONDES",2000251574,2000251574]
["PAICAVI 2155","CONCEPCION","PAICAVI 2155CONCEPCION",2000251350,null,"MAULLIN",null,null,null,"EULEN CHILE SOCIEDAD ANONIMA ","METRO NORTE","AGENCIA LAS CONDES","EPCE2805","IASALVATORE BRAVO ANGELINA MARJOR",2000251240,"AV.APOQUINDO 3650","LAS CONDES",1,"AV.APOQUINDO 3650LAS CONDES",2000251240,2000251240]
["AV.OHIGGINS 694","COPIAPO","AV.OHIGGINS 694COPIAPO",2000251313,null,"MELIPILLA",null,null,null,"EULEN CHILE SOCIEDAD ANONIMA ","METRO NORTE","AGENCIA LAS CONDES","EPCE2805","IASALVATORE BRAVO ANGELINA MARJOR",2000251453,"AV.APOQUINDO 3885","LAS CONDES",1,"AV.APOQUINDO 3885LAS CONDES",2000251453,2000251453]
["CALLE ATACAMA 686","COPIAPO","CALLE ATACAMA 686COPIAPO",2000251306,null,"NOGALES",null,null,null,"EULEN CHILE SOCIEDAD ANONIMA ","METRO NORTE","AGENCIA LAS CONDES","EPCE2805","IASALVATORE BRAVO ANGELINA MARJOR",2000251389,"AV.APOQUINDO 3885 L.1310","LAS CONDES",1,"AV.APOQUINDO 3885 L.1310LAS CONDES",2000251389,2000251389]
["LOS CARRERA ESQ VAN BUREN 2276","COPIAPO","LOS CARRERA ESQ VAN BUREN 2276COPIAPO",2000251312,null,"ÑUÑOA",null,null,null,"EULEN CHILE SOCIEDAD ANONIMA ","METRO NORTE","AGENCIA LAS CONDES","EPCE2805","IASALVATORE BRAVO ANGELINA MARJOR",2000251242,"AV.APOQUINDO 4501","LAS CONDES",1,"AV.APOQUINDO 4501LAS CONDES",2000251242,2000251242]
["PJE.ORIENTE 6 CASA 92 STA.ELVIRA","COPIAPO","PJE.ORIENTE 6 CASA 92 STA.ELVIRACOPIAPO",2000251218,null,"OSORNO",null,null,null,"EULEN CHILE SOCIEDAD ANONIMA ","METRO NORTE","AGENCIA LAS CONDES","EPCE2805","IASALVATORE BRAVO ANGELINA MARJOR",2000251488,"AV.APOQUINDO 4771","LAS CONDES",1,"AV.APOQUINDO 4771LAS CONDES",2000251488,2000251488]
["ALDUNATE 955","COQUIMBO","ALDUNATE 955COQUIMBO",2000251321,null,"OVALLE",null,null,null,"EULEN CHILE SOCIEDAD ANONIMA ","METRO NORTE","AGENCIA LAS CONDES","EPCE2805","IASALVATORE BRAVO ANGELINA MARJOR",2000251390,"AV.APOQUINDO 4774","LAS CONDES",1,"AV.APOQUINDO 4774LAS CONDES",2000251390,2000251390]
["CALLE ANIBAL PINTO 1551","COQUIMBO","CALLE ANIBAL PINTO 1551COQUIMBO",2000251658,null,"PADRE_HURTADO",null,null,null,"EULEN CHILE SOCIEDAD ANONIMA ","METRO NORTE","AGENCIA LAS CONDES","EPCE2805","IASALVATORE BRAVO ANGELINA MARJOR",2000251492,"AV.APOQUINDO 4775","LAS CONDES",1,"AV.APOQUINDO 4775LAS CONDES",2000251492,2000251492]
["CALLE PEÑA 555","CURICO","CALLE PEÑA 555CURICO",2000251307,null,"PAINE",null,null,null,"EULEN CHILE SOCIEDAD ANONIMA ","METRO NORTE","AGENCIA LAS CONDES","EPCE2804","HERNANDEZ REYES GUILLERMO ANTON",2000251646,"AV.APOQUINDO 4820","LAS CONDES",1,"AV.APOQUINDO 4820LAS CONDES",2000251646,2000251646]
["TRONCAL QUINTA 162","CURICO","TRONCAL QUINTA 162CURICO",2000251446,null,"PENCO",null,null,null,"EULEN CHILE SOCIEDAD ANONIMA ","METRO NORTE","AGENCIA LAS CONDES","EPCE2805","IASALVATORE BRAVO ANGELINA MARJOR",2000251493,"AV.APOQUINDO 5583","LAS CONDES",1,"AV.APOQUINDO 5583LAS CONDES",2000251493,2000251493]
["GLADIS MARIN 5830","ESTACION_CENTRAL","GLADIS MARIN 5830ESTACION_CENTRAL",2000251262,null,"PEÑALOLEN",null,null,null,"EULEN CHILE SOCIEDAD ANONIMA ","NORTE","AGENCIA ANTOFAGASTA","EPMX1201","GARCES ROJAS FABIAN ANIBAL",2000251598,"AV.ARTURO PRAT 1195","TOCOPILLA",1,"AV.ARTURO PRAT 1195TOCOPILLA",2000251598,2000251598]
["EXPOSICION 85","ESTACION_CENTRAL","EXPOSICION 85ESTACION_CENTRAL",2000251279,null,"POZO_ALMONTE",null,null,null,"EULEN CHILE SOCIEDAD ANONIMA ","METRO NORTE","AGENCIA SANTIAGO","EPCE4206","LAZO ESCUDERO RAUL",2000251505,"AV.ARTURO PRAT 269","SANTIAGO",1,"AV.ARTURO PRAT 269SANTIAGO",2000251505,2000251505]
["AV.ALAMEDA 4860","ESTACION_CENTRAL","AV.ALAMEDA 4860ESTACION_CENTRAL",2000251424,null,"PROVIDENCIA",null,null,null,"EULEN CHILE SOCIEDAD ANONIMA ","METRO NORTE","AGENCIA SANTIAGO","EPCE4206","LAZO ESCUDERO RAUL",2000251506,"AV.ARTURO PRAT 274","SANTIAGO",1,"AV.ARTURO PRAT 274SANTIAGO",2000251506,2000251506]
["AV.EXPOSICION 85","ESTACION_CENTRAL","AV.EXPOSICION 85ESTACION_CENTRAL",2000251576,null,"PUCHUNCAVI",null,null,null,"EULEN CHILE SOCIEDAD ANONIMA ","METRO NORTE","AGENCIA SANTIAGO","EPCE4206","LAZO ESCUDERO RAUL",2000251504,"AV.ARTURO PRAT 285","SANTIAGO",1,"AV.ARTURO PRAT 285SANTIAGO",2000251504,2000251504]
["CALLE RADAL 180","ESTACION_CENTRAL","CALLE RADAL 180ESTACION_CENTRAL",2000251614,null,"PUCON",null,null,null,"EULEN CHILE SOCIEDAD ANONIMA ","METRO NORTE","AGENCIA SANTIAGO","EPCE4206","LAZO ESCUDERO RAUL",2000251501,"AV.ARTURO PRATT 215","SANTIAGO",1,"AV.ARTURO PRATT 215SANTIAGO",2000251501,2000251501]
["LATERAL FRUTILLAR KM 982","FRUTILLAR","LATERAL FRUTILLAR KM 982FRUTILLAR",2000251414,null,"PUDAHUEL",null,null,null,"EULEN CHILE SOCIEDAD ANONIMA ","METRO SUR","AGENCIA VALLES DEL MAIPO","EPCE4603","VERA DIAZ BERNARDITA DEL",2000251577,"AV.ARTURO PRATT 298","SAN BERNARDO",1,"AV.ARTURO PRATT 298SAN BERNARDO",2000251577,2000251577]
["AV.CAMINO LA PIRAMIDE 5750","HUECHURABA","AV.CAMINO LA PIRAMIDE 5750HUECHURABA",2000251543,null,"PUENTE_ALTO",null,null,null,"EULEN CHILE SOCIEDAD ANONIMA ","METRO NORTE","AGENCIA SANTIAGO","EPCE4206","LAZO ESCUDERO RAUL",2000251246,"AV.AV.LIB.BERNARDO OHIGGINS 1326","SANTIAGO",1,"AV.AV.LIB.BERNARDO OHIGGINS 1326SANTIAGO",2000251246,2000251246]
["AV.EL SALTO 4875","HUECHURABA","AV.EL SALTO 4875HUECHURABA",2000251525,null,"PUERTO_MONTT",null,null,null,"EULEN CHILE SOCIEDAD ANONIMA ","CENTRO NORTE","AGENCIA ELQUI","EPCE2701","MADRID BARRALES KARLA",2000251319,"AV.BALMACEDA 1629","LA SERENA",1,"AV.BALMACEDA 1629LA SERENA",2000251319,2000251319]
["AV.RECOLETA 5610","HUECHURABA","AV.RECOLETA 5610HUECHURABA",2000251429,null,"PUERTO_VARAS",null,null,null,"EULEN CHILE SOCIEDAD ANONIMA ","METRO SUR","AGENCIA LA FLORIDA / SAN MIGUEL","EPCE2605","MATAMALA CHIANG JUAN ALBERTO",2000251284,"AV.BALMACEDA 371 OF 305 309 310","PUENTE ALTO",1,"AV.BALMACEDA 371 OF 305 309 310PUENTE ALTO",2000251284,2000251284]
["AV.SANTA CLARA 249","HUECHURABA","AV.SANTA CLARA 249HUECHURABA",2000251477,null,"PUNTA_ARENAS",null,null,null,"EULEN CHILE SOCIEDAD ANONIMA ","CENTRO NORTE","AGENCIA ELQUI","EPCE2701","MADRID BARRALES KARLA",2000251648,"AV.BALMACEDA 947","LA SERENA",1,"AV.BALMACEDA 947LA SERENA",2000251648,2000251648]
["CAMINO LA PIRAMIDE 5750","HUECHURABA","CAMINO LA PIRAMIDE 5750HUECHURABA",2000251260,null,"PURRANQUE",null,null,null,"EULEN CHILE SOCIEDAD ANONIMA ","METRO NORTE","AGENCIA SANTIAGO","EPCE4206","LAZO ESCUDERO RAUL",2000251450,"AV.BERNARDO OHIGGINS 1322","SANTIAGO",1,"AV.BERNARDO OHIGGINS 1322SANTIAGO",2000251450,2000251450]
["CIUDAD EMPRESARIAL CANAL 3","HUECHURABA","CIUDAD EMPRESARIAL CANAL 3HUECHURABA",2000251433,null,"PUYEHUE",null,null,null,"EULEN CHILE SOCIEDAD ANONIMA ","METRO NORTE","AGENCIA SANTIAGO","EPCE4206","LAZO ESCUDERO RAUL",2000251575,"AV.BERNARDO OHIGGINS 581","SANTIAGO",1,"AV.BERNARDO OHIGGINS 581SANTIAGO",2000251575,2000251575]
["EL ROSAL 811","HUECHURABA","EL ROSAL 811HUECHURABA",2000251258,null,"QUILICURA",null,null,null,"EULEN CHILE SOCIEDAD ANONIMA ","SUR","AGENCIA VALDIVIA / OSORNO","EPCE3301","LEIGHTON GALLARDO WALESKA KATHERI",2000251603,"AV.BILBAO 1263","OSORNO",1,"AV.BILBAO 1263OSORNO",2000251603,2000251603]
["AV.PROFESOR ZAÑARTU 1085","INDEPENDENCIA","AV.PROFESOR ZAÑARTU 1085INDEPENDENCIA",2000251491,null,"QUILLOTA",null,null,null,"EULEN CHILE SOCIEDAD ANONIMA ","CENTRO NORTE","AGENCIA VIÑA DEL MAR / VALPARAISO","EPCE4701","MENEGHINI VALET SHIRLEY",2000251615,"AV.BLANCO ENCALADA 1623","VALPARAISO",1,"AV.BLANCO ENCALADA 1623VALPARAISO",2000251615,2000251615]
["AV.SANTA LAURA 1119","INDEPENDENCIA","AV.SANTA LAURA 1119INDEPENDENCIA",2000251534,null,"QUILPUE",null,null,null,"EULEN CHILE SOCIEDAD ANONIMA ","CENTRO NORTE","AGENCIA VIÑA DEL MAR / VALPARAISO","EPCE4701","MENEGHINI VALET SHIRLEY",2000251343,"AV.BRASIL 1677","VALPARAISO",1,"AV.BRASIL 1677VALPARAISO",2000251343,2000251343]
["CALLE SAN JOSE 1196","INDEPENDENCIA","CALLE SAN JOSE 1196INDEPENDENCIA",2000251238,null,"QUINTA_NORMAL",null,null,null,"EULEN CHILE SOCIEDAD ANONIMA ","METRO SUR","AGENCIA LA FLORIDA / SAN MIGUEL","EPCE2604","VELASCO MOYA MARIA FERNANDA",2000251584,"AV.BUZETA 715","SAN JOAQUIN",1,"AV.BUZETA 715SAN JOAQUIN",2000251584,2000251584]
["SANTA LAURA 1365","INDEPENDENCIA","SANTA LAURA 1365INDEPENDENCIA",2000251255,null,"RANCAGUA",null,null,null,"EULEN CHILE SOCIEDAD ANONIMA ","METRO NORTE","AGENCIA LAS CONDES","EPCE2805","IASALVATORE BRAVO ANGELINA MARJOR",2000251590,"AV.CALLAO 2928","LAS CONDES",1,"AV.CALLAO 2928LAS CONDES",2000251590,2000251590]
["CALLE GOROSTIAGA 463","IQUIQUE",{"$f":"+A67&B67","v":"CALLE GOROSTIAGA 463IQUIQUE"},2000251211,null,"RENCA",null,null,null,"EULEN CHILE SOCIEDAD ANONIMA ","METRO SUR","AGENCIA LA FLORIDA / SAN MIGUEL","EPCE2605","MATAMALA CHIANG JUAN ALBERTO",2000251572,"AV.CAMILO HENRIQUEZ 3269","PUENTE ALTO",{"$f":"+COUNTIF(P:P,P67)","v":1},{"$f":"+P67&Q67","v":"AV.CAMILO HENRIQUEZ 3269PUENTE ALTO"},{"$f":"+O67","v":2000251572},{"$f":"+VLOOKUP(T67,$D$2:$D$432,1,0)","v":2000251572}]
["SAMPOSA DE HUARA SITIO 19 MANZANA C","IQUIQUE","SAMPOSA DE HUARA SITIO 19 MANZANA CIQUIQUE",2000251305,null,"SAN_ANTONIO",null,null,null,"EULEN CHILE SOCIEDAD ANONIMA ","METRO NORTE","AGENCIA PARQUE LAS AMERICAS","EPCE3504","HERRERA MEZA JUAN ANDRES",2000251543,"AV.CAMINO LA PIRAMIDE 5750","HUECHURABA",1,"AV.CAMINO LA PIRAMIDE 5750HUECHURABA",2000251543,2000251543]
["GRAN AVENIDA PARADERO 25","LA_CISTERNA","GRAN AVENIDA PARADERO 25LA_CISTERNA",2000251656,null,"SAN_BERNARDO",null,null,null,"EULEN CHILE SOCIEDAD ANONIMA ","METRO NORTE","AGENCIA SANTIAGO","EPCE4206","LAZO ESCUDERO RAUL",2000251553,"AV.CARRERA 216","SANTIAGO",1,"AV.CARRERA 216SANTIAGO",2000251553,2000251553]
["AV.LO CAÑA 3636","LA_FLORIDA","AV.LO CAÑA 3636LA_FLORIDA",2000251436,null,"SAN_FELIPE",null,null,null,"EULEN CHILE SOCIEDAD ANONIMA ","METRO NORTE","AGENCIA SANTIAGO","EPCE4206","LAZO ESCUDERO RAUL",2000251532,"AV.CATEDRAL 1712","SANTIAGO",1,"AV.CATEDRAL 1712SANTIAGO",2000251532,2000251532]
["AV.LO CAÑANA 3636","LA_FLORIDA","AV.LO CAÑANA 3636LA_FLORIDA",2000251439,null,"SAN_FERNANDO",null,null,null,"EULEN CHILE SOCIEDAD ANONIMA ","METRO NORTE","AGENCIA LIBERTADORES","EPCE2901","ADAMS LOPEZ CATALINA DE LOS",2000251373,"AV.CAUPOLICAN 9600","QUILICURA",1,"AV.CAUPOLICAN 9600QUILICURA",2000251373,2000251373]
["AV.MARTIRREÑO 3349","LA_FLORIDA","AV.MARTIRREÑO 3349LA_FLORIDA",2000251570,null,"SAN_JOAQUIN",null,null,null,"EULEN CHILE SOCIEDAD ANONIMA ","CENTRO NORTE","AGENCIA RUTA DEL SOL","EPMX3901","SOTO SALVATIERRA MARIA PAZ",2000251370,"AV.CENTENARIO 1","SAN ANTONIO",1,"AV.CENTENARIO 1SAN ANTONIO",2000251370,2000251370]
["AV.VICUÑA MACKENNA 6100","LA_FLORIDA","AV.VICUÑA MACKENNA 6100LA_FLORIDA",2000251563,null,"SAN_MIGUEL",null,null,null,"EULEN CHILE SOCIEDAD ANONIMA ","METRO NORTE","AGENCIA LAS CONDES","EPCE2805","IASALVATORE BRAVO ANGELINA MARJOR",2000251310,"AV.CERRO COLORADO 5240","LAS CONDES",1,"AV.CERRO COLORADO 5240LAS CONDES",2000251310,2000251310]
["AV.VICUÑA MACKENNA 7110","LA_FLORIDA","AV.VICUÑA MACKENNA 7110LA_FLORIDA",2000251573,null,"SAN_PABLO",null,null,null,"EULEN CHILE SOCIEDAD ANONIMA ","METRO NORTE","AGENCIA LAS CONDES","EPCE2805","IASALVATORE BRAVO ANGELINA MARJOR",2000251528,"AV.CERRO EL PLOMO 5680","LAS CONDES",1,"AV.CERRO EL PLOMO 5680LAS CONDES",2000251528,2000251528]
["CALLE GENERAL ARRIAGADA 450","LA_FLORIDA","CALLE GENERAL ARRIAGADA 450LA_FLORIDA",2000251236,null,"SAN_PEDRO_DE_ATACAMA",null,null,null,"EULEN CHILE SOCIEDAD ANONIMA ","SUR","AGENCIA VALDIVIA / OSORNO","EPCE3301","LEIGHTON GALLARDO WALESKA KATHERI",2000251637,"AV.CESAR ERCILLA 1740","OSORNO",1,"AV.CESAR ERCILLA 1740OSORNO",2000251637,2000251637]
["CALLE ORTIZ DE ROSAS 562","LA_LIGUA","CALLE ORTIZ DE ROSAS 562LA_LIGUA",2000251268,null,"SANTIAGO",null,null,null,"EULEN CHILE SOCIEDAD ANONIMA ","NORTE","AGENCIA CALAMA","EPMX1502","DONOSO MARTINEZ KATIUSKA ANDREA",2000251613,"AV.CHORRILLOS 793 V EXOTICA","CALAMA",1,"AV.CHORRILLOS 793 V EXOTICACALAMA",2000251613,2000251613]
["CALLE ORTIZ DE ROZAS 624","LA_LIGUA","CALLE ORTIZ DE ROZAS 624LA_LIGUA",2000251271,null,"TALCA",null,null,null,"EULEN CHILE SOCIEDAD ANONIMA ","METRO SUR","AGENCIA TALCA","EPCE4303","PAVEZ GUTIERREZ KATHERINE ANDRE",2000251204,"AV.COLIN 240","TALCA",1,"AV.COLIN 240TALCA",2000251204,2000251204]
["CALLE SANTA TERESA 735","LA_LIGUA","CALLE SANTA TERESA 735LA_LIGUA",2000251606,null,"TEMUCO",null,null,null,"EULEN CHILE SOCIEDAD ANONIMA ","METRO NORTE","AGENCIA PROVIDENCIA","EPCE3603","BENITEZ VERGARA LORAINE ELIZABE",2000251533,"AV.EDIFICIO PHILLIPS","PROVIDENCIA",1,"AV.EDIFICIO PHILLIPSPROVIDENCIA",2000251533,2000251533]
["AV.IRRAZABAL 4568","LA_REINA","AV.IRRAZABAL 4568LA_REINA",2000251581,null,"TENO",null,null,null,"EULEN CHILE SOCIEDAD ANONIMA ","METRO SUR","AGENCIA RANCAGUA","EPCE3802","BOILLOT VILLEGAS TANIA ANGELICA",2000251345,"AV.EDO.FREI MONTALVA 190","RANCAGUA",1,"AV.EDO.FREI MONTALVA 190RANCAGUA",2000251345,2000251345]
["AV.BALMACEDA 1629","LA_SERENA","AV.BALMACEDA 1629LA_SERENA",2000251319,null,"TIERRA_AMARILLA",null,null,null,"EULEN CHILE SOCIEDAD ANONIMA ","METRO NORTE","AGENCIA SANTIAGO","EPCE4206","LAZO ESCUDERO RAUL",2000251416,"AV.EJERCITO 146","SANTIAGO",1,"AV.EJERCITO 146SANTIAGO",2000251416,2000251416]
["AV.BALMACEDA 947","LA_SERENA","AV.BALMACEDA 947LA_SERENA",2000251648,null,"TOCOPILLA",null,null,null,"EULEN CHILE SOCIEDAD ANONIMA ","METRO NORTE","AGENCIA LIBERTADORES","EPCE2901","ADAMS LOPEZ CATALINA DE LOS",2000251510,"AV.EL ARROYO 935","LAMPA",1,"AV.EL ARROYO 935LAMPA",2000251510,2000251510]
["CALLE FRANKLIN DELANO R 887","LA_SERENA","CALLE FRANKLIN DELANO R 887LA_SERENA",2000251214,null,"VALDIVIA",null,null,null,"EULEN CHILE SOCIEDAD ANONIMA ","METRO NORTE","AGENCIA LAS CONDES","EPCE2805","IASALVATORE BRAVO ANGELINA MARJOR",2000251653,"AV.EL BOSQUE NORTE 500","LAS CONDES",1,"AV.EL BOSQUE NORTE 500LAS CONDES",2000251653,2000251653]
["CORDOVEZ 321 325","LA_SERENA","CORDOVEZ 321 325LA_SERENA",2000251320,null,"VALLENAR",null,null,null,"EULEN CHILE SOCIEDAD ANONIMA ","METRO NORTE","AGENCIA LAS CONDES","EPCE2805","IASALVATORE BRAVO ANGELINA MARJOR",2000251461,"AV.EL BOSQUE SUR 130 P10","LAS CONDES",1,"AV.EL BOSQUE SUR 130 P10LAS CONDES",2000251461,2000251461]
["AUTOPISTA ACONCAGUA KM 26","LAMPA","AUTOPISTA ACONCAGUA KM 26LAMPA",2000251257,null,"VALPARAISO",null,null,null,"EULEN CHILE SOCIEDAD ANONIMA ","METRO NORTE","AGENCIA LAS CONDES","EPCE2805","IASALVATORE BRAVO ANGELINA MARJOR",2000251293,"AV.EL BOSQUE SUR 180","LAS CONDES",1,"AV.EL BOSQUE SUR 180LAS CONDES",2000251293,2000251293]
["AV.EL ARROYO 935","LAMPA","AV.EL ARROYO 935LAMPA",2000251510,null,"VICTORIA",null,null,null,"EULEN CHILE SOCIEDAD ANONIMA ","METRO NORTE","AGENCIA PARQUE LAS AMERICAS","EPCE3504","HERRERA MEZA JUAN ANDRES",2000251525,"AV.EL SALTO 4875","HUECHURABA",1,"AV.EL SALTO 4875HUECHURABA",2000251525,2000251525]
["AV.LAS ENCINAS 1777","LAMPA","AV.LAS ENCINAS 1777LAMPA",2000251511,null,"VILLA_ALEMANA",null,null,null,"EULEN CHILE SOCIEDAD ANONIMA ","METRO NORTE","AGENCIA LAS CONDES","EPCE2805","IASALVATORE BRAVO ANGELINA MARJOR",2000251259,"AV.EL TROVADOR 4285","LAS CONDES",1,"AV.EL TROVADOR 4285LAS CONDES",2000251259,2000251259]
["AV.PANAMERICANA NORTE","LAMPA","AV.PANAMERICANA NORTELAMPA",2000251521,null,"VILLARRICA",null,null,null,"EULEN CHILE SOCIEDAD ANONIMA ","METRO NORTE","AGENCIA SANTIAGO","EPCE4206","LAZO ESCUDERO RAUL",2000251478,"AV.ESTADO 111","SANTIAGO",1,"AV.ESTADO 111SANTIAGO",2000251478,2000251478]
["AV.PATRICIA VIÑUELA","LAMPA","AV.PATRICIA VIÑUELALAMPA",2000251522,null,"VIÑA_DEL_MAR",null,null,null,"EULEN CHILE SOCIEDAD ANONIMA ","METRO SUR","AGENCIA VALLES DEL MAIPO","EPCE4603","VERA DIAZ BERNARDITA DEL",2000251571,"AV.EYZAGUIRRE 650","SAN BERNARDO",1,"AV.EYZAGUIRRE 650SAN BERNARDO",2000251571,2000251571]
["CALLE LAS ENCINAS 1777","LAMPA","CALLE LAS ENCINAS 1777LAMPA",2000251235,null,"VITACURA",null,null,null,"EULEN CHILE SOCIEDAD ANONIMA ","CENTRO NORTE","AGENCIA VIÑA DEL MAR / VALPARAISO","EPMX4803","ROGEL ROJAS CELIA JOHANA",2000251625,"AV.FEDERICO SANTA MARIA 6090","VIÑA DEL MAR",1,"AV.FEDERICO SANTA MARIA 6090VIÑA DEL MAR",2000251625,2000251625]
["AUGUSTO LEGUIA 70","LAS_CONDES","AUGUSTO LEGUIA 70LAS_CONDES",2000558565,null,null,null,null,null,"EULEN CHILE SOCIEDAD ANONIMA ","METRO NORTE","AGENCIA PROVIDENCIA","EPCE3603","BENITEZ VERGARA LORAINE ELIZABE",2000251535,"AV.FERNANDO MANDIOLA 0789","PROVIDENCIA",1,"AV.FERNANDO MANDIOLA 0789PROVIDENCIA",2000251535,2000251535]
["AV.ALCANTARA 200","LAS_CONDES","AV.ALCANTARA 200LAS_CONDES",2000251431,null,null,null,null,null,"EULEN CHILE SOCIEDAD ANONIMA ","METRO NORTE","AGENCIA PROVIDENCIA","EPCE3603","BENITEZ VERGARA LORAINE ELIZABE",2000251469,"AV.FRACISCO BILBAO 1439","PROVIDENCIA",1,"AV.FRACISCO BILBAO 1439PROVIDENCIA",2000251469,2000251469]
["AV.ALONSO DE CORDOVA 130","LAS_CONDES","AV.ALONSO DE CORDOVA 130LAS_CONDES",2000251542,null,null,null,null,null,"EULEN CHILE SOCIEDAD ANONIMA ","SUR","AGENCIA CHILOE","EPCE1701","OYARZO GALINDO CELSO DAGOBERTO",2000251376,"AV.FREIRE 498","CASTRO",1,"AV.FREIRE 498CASTRO",2000251376,2000251376]
["AV.ALONSO DE CORDOVA 5495","LAS_CONDES","AV.ALONSO DE CORDOVA 5495LAS_CONDES",2000251622,null,null,null,null,null,"EULEN CHILE SOCIEDAD ANONIMA ","METRO NORTE","AGENCIA SANTIAGO","EPCE4206","LAZO ESCUDERO RAUL",2000251531,"AV.GENERAL JOFRE 462","SANTIAGO",1,"AV.GENERAL JOFRE 462SANTIAGO",2000251531,2000251531]
["AV.AMERICO VESPUCIO 357","LAS_CONDES","AV.AMERICO VESPUCIO 357LAS_CONDES",2000251228,null,null,null,null,null,"EULEN CHILE SOCIEDAD ANONIMA ","METRO NORTE","AGENCIA SANTIAGO","EPCE4206","LAZO ESCUDERO RAUL",2000251479,"AV.HUERFANOS 1067","SANTIAGO",1,"AV.HUERFANOS 1067SANTIAGO",2000251479,2000251479]
["AV.AMERICO VESPUCIO NORTE 811","LAS_CONDES","AV.AMERICO VESPUCIO NORTE 811LAS_CONDES",2000251557,null,null,null,null,null,"EULEN CHILE SOCIEDAD ANONIMA ","METRO NORTE","AGENCIA SANTIAGO","EPCE4206","LAZO ESCUDERO RAUL",2000251495,"AV.HUERFANOS 770","SANTIAGO",1,"AV.HUERFANOS 770SANTIAGO",2000251495,2000251495]
["AV.AMERICO VESPUCIO SUR 367","LAS_CONDES","AV.AMERICO VESPUCIO SUR 367LAS_CONDES",2000251541,null,null,null,null,null,"EULEN CHILE SOCIEDAD ANONIMA ","METRO NORTE","AGENCIA SANTIAGO","EPCE4206","LAZO ESCUDERO RAUL",2000251480,"AV.HUERFANOS 785","SANTIAGO",1,"AV.HUERFANOS 785SANTIAGO",2000251480,2000251480]
["AV.APOQUINDO 3150","LAS_CONDES","AV.APOQUINDO 3150LAS_CONDES",2000251574,null,null,null,null,null,"EULEN CHILE SOCIEDAD ANONIMA ","METRO NORTE","AGENCIA SANTIAGO","EPCE4206","LAZO ESCUDERO RAUL",2000251481,"AV.HUERFANOS 891","SANTIAGO",1,"AV.HUERFANOS 891SANTIAGO",2000251481,2000251481]
["AV.APOQUINDO 3650","LAS_CONDES","AV.APOQUINDO 3650LAS_CONDES",2000251240,null,null,null,null,null,"EULEN CHILE SOCIEDAD ANONIMA ","METRO NORTE","AGENCIA EGAÑA / LA REINA","EPCE2303","VEGA ORTIZ MARCO ANTONIO",2000251581,"AV.IRRAZABAL 4568","LA REINA",1,"AV.IRRAZABAL 4568LA REINA",2000251581,2000251581]
["AV.APOQUINDO 3885","LAS_CONDES","AV.APOQUINDO 3885LAS_CONDES",2000251453,null,null,null,null,null,"EULEN CHILE SOCIEDAD ANONIMA ","METRO NORTE","AGENCIA LAS CONDES","EPCE2805","IASALVATORE BRAVO ANGELINA MARJOR",2000251399,"AV.ISIDORA GOYENECHEA 2800","LAS CONDES",1,"AV.ISIDORA GOYENECHEA 2800LAS CONDES",2000251399,2000251399]
["AV.APOQUINDO 3885 L.1310","LAS_CONDES","AV.APOQUINDO 3885 L.1310LAS_CONDES",2000251389,null,null,null,null,null,"EULEN CHILE SOCIEDAD ANONIMA ","METRO NORTE","AGENCIA PROVIDENCIA","EPCE3603","BENITEZ VERGARA LORAINE ELIZABE",2000251514,"AV.ISIDORA GOYENECHEA 2800 P34","PROVIDENCIA",1,"AV.ISIDORA GOYENECHEA 2800 P34PROVIDENCIA",2000251514,2000251514]
["AV.APOQUINDO 4501","LAS_CONDES","AV.APOQUINDO 4501LAS_CONDES",2000251242,null,null,null,null,null,"EULEN CHILE SOCIEDAD ANONIMA ","METRO NORTE","AGENCIA LAS CONDES","EPCE2805","IASALVATORE BRAVO ANGELINA MARJOR",2000251381,"AV.ISIDORA GOYENECHEA 3000","LAS CONDES",1,"AV.ISIDORA GOYENECHEA 3000LAS CONDES",2000251381,2000251381]
["AV.APOQUINDO 4771","LAS_CONDES","AV.APOQUINDO 4771LAS_CONDES",2000251488,null,null,null,null,null,"EULEN CHILE SOCIEDAD ANONIMA ","METRO NORTE","AGENCIA LAS CONDES","EPCE2805","IASALVATORE BRAVO ANGELINA MARJOR",2000251465,"AV.ISIDORA GOYENECHEA 3621 OF201","LAS CONDES",1,"AV.ISIDORA GOYENECHEA 3621 OF201LAS CONDES",2000251465,2000251465]
["AV.APOQUINDO 4774","LAS_CONDES","AV.APOQUINDO 4774LAS_CONDES",2000251390,null,null,null,null,null,"EULEN CHILE SOCIEDAD ANONIMA ","METRO NORTE","AGENCIA SANTIAGO","EPCE4206","LAZO ESCUDERO RAUL",2000251536,"AV.ISMAEL VALDES VERGARA 843","SANTIAGO",1,"AV.ISMAEL VALDES VERGARA 843SANTIAGO",2000251536,2000251536]
["AV.APOQUINDO 4775","LAS_CONDES","AV.APOQUINDO 4775LAS_CONDES",2000251492,null,null,null,null,null,"EULEN CHILE SOCIEDAD ANONIMA ","METRO SUR","AGENCIA VALLES DEL MAIPO","EPCE4603","VERA DIAZ BERNARDITA DEL",2000251568,"AV.JORGE ALESANDRI 2050","SAN BERNARDO",1,"AV.JORGE ALESANDRI 2050SAN BERNARDO",2000251568,2000251568]
["AV.APOQUINDO 4820","LAS_CONDES","AV.APOQUINDO 4820LAS_CONDES",2000251646,null,null,null,null,null,"EULEN CHILE SOCIEDAD ANONIMA ","SUR","AGENCIA CONCEPCION","EPCE1802","MARIN GALINDO RYAN FELIPE",2000251354,"AV.JORGE ALESSANDRI 3177 LOC 4B","CONCEPCION",1,"AV.JORGE ALESSANDRI 3177 LOC 4BCONCEPCION",2000251354,2000251354]
["AV.APOQUINDO 5583","LAS_CONDES","AV.APOQUINDO 5583LAS_CONDES",2000251493,null,null,null,null,null,"EULEN CHILE SOCIEDAD ANONIMA ","METRO SUR","AGENCIA LA FLORIDA / SAN MIGUEL","EPCE2603","RUIZ GONZALEZ CAROLINA ANDREA",2000251623,"AV.JOSE JOAQUIN PRIETO 3912","SAN MIGUEL",1,"AV.JOSE JOAQUIN PRIETO 3912SAN MIGUEL",2000251623,2000251623]
["AV.CALLAO 2928","LAS_CONDES","AV.CALLAO 2928LAS_CONDES",2000251590,null,null,null,null,null,"EULEN CHILE SOCIEDAD ANONIMA ","METRO SUR","AGENCIA LA FLORIDA / SAN MIGUEL","EPCE2603","RUIZ GONZALEZ CAROLINA ANDREA",2000251564,"AV.JOSE MIGUEL CARRERA 6150","SAN MIGUEL",1,"AV.JOSE MIGUEL CARRERA 6150SAN MIGUEL",2000251564,2000251564]
["AV.CERRO COLORADO 5240","LAS_CONDES","AV.CERRO COLORADO 5240LAS_CONDES",2000251310,null,null,null,null,null,"EULEN CHILE SOCIEDAD ANONIMA ","METRO NORTE","AGENCIA LAS CONDES","EPCE2805","IASALVATORE BRAVO ANGELINA MARJOR",2000251470,"AV.KENEDDY 9001","LAS CONDES",1,"AV.KENEDDY 9001LAS CONDES",2000251470,2000251470]
["AV.CERRO EL PLOMO 5680","LAS_CONDES","AV.CERRO EL PLOMO 5680LAS_CONDES",2000251528,null,null,null,null,null,"EULEN CHILE SOCIEDAD ANONIMA ","METRO NORTE","AGENCIA LAS CONDES","EPCE2805","IASALVATORE BRAVO ANGELINA MARJOR",2000251524,"AV.KENEDY 5128","LAS CONDES",1,"AV.KENEDY 5128LAS CONDES",2000251524,2000251524]
["AV.EL BOSQUE NORTE 500","LAS_CONDES","AV.EL BOSQUE NORTE 500LAS_CONDES",2000251653,null,null,null,null,null,"EULEN CHILE SOCIEDAD ANONIMA ","METRO NORTE","AGENCIA LAS CONDES","EPCE2805","IASALVATORE BRAVO ANGELINA MARJOR",2000251472,"AV.KENNEDY 5413","LAS CONDES",1,"AV.KENNEDY 5413LAS CONDES",2000251472,2000251472]
["AV.EL BOSQUE SUR 130 P10","LAS_CONDES","AV.EL BOSQUE SUR 130 P10LAS_CONDES",2000251461,null,null,null,null,null,"EULEN CHILE SOCIEDAD ANONIMA ","METRO NORTE","AGENCIA LAS CONDES","EPCE2805","IASALVATORE BRAVO ANGELINA MARJOR",2000251527,"AV.KENNEDY 55","LAS CONDES",1,"AV.KENNEDY 55LAS CONDES",2000251527,2000251527]
["AV.EL BOSQUE SUR 180","LAS_CONDES","AV.EL BOSQUE SUR 180LAS_CONDES",2000251293,null,null,null,null,null,"EULEN CHILE SOCIEDAD ANONIMA ","CENTRO NORTE","AGENCIA ACONCAGUA","EPRD1001","MOLINA OLIVARES VICTOR HUGO",2000251267,"AV.L.BERNARDO OHIGGINS 334","LOS ANDES",1,"AV.L.BERNARDO OHIGGINS 334LOS ANDES",2000251267,2000251267]
["AV.EL TROVADOR 4285","LAS_CONDES","AV.EL TROVADOR 4285LAS_CONDES",2000251259,null,null,null,null,null,"EULEN CHILE SOCIEDAD ANONIMA ","METRO NORTE","AGENCIA LAS CONDES","EPCE2805","IASALVATORE BRAVO ANGELINA MARJOR",2000251471,"AV.LA DEHESA 1445","LO BARNECHEA",2,"AV.LA DEHESA 1445LO BARNECHEA",2000251471,2000251471]
["AV.ISIDORA GOYENECHEA 2800","LAS_CONDES","AV.ISIDORA GOYENECHEA 2800LAS_CONDES",2000251399,null,null,null,null,null,"EULEN CHILE SOCIEDAD ANONIMA ","METRO SUR","AGENCIA LA FLORIDA / SAN MIGUEL","EPCE2604","VELASCO MOYA MARIA FERNANDA",2000251585,"AV.LA DEHESA 1445","LA FLORIDA",2,"AV.LA DEHESA 1445LA FLORIDA",2000251585,{"$error":"#N/A"},"eliminar"]
["AV.ISIDORA GOYENECHEA 3000","LAS_CONDES","AV.ISIDORA GOYENECHEA 3000LAS_CONDES",2000251381,null,null,null,null,null,"EULEN CHILE SOCIEDAD ANONIMA ","METRO NORTE","AGENCIA LAS CONDES","EPCE2805","IASALVATORE BRAVO ANGELINA MARJOR",2000251447,"AV.LA DEHESA 1788","LO BARNECHEA",2,"AV.LA DEHESA 1788LO BARNECHEA",2000251447,2000251447]
["AV.ISIDORA GOYENECHEA 3621 OF201","LAS_CONDES","AV.ISIDORA GOYENECHEA 3621 OF201LAS_CONDES",2000251465,null,null,null,null,null,"EULEN CHILE SOCIEDAD ANONIMA ","METRO NORTE","AGENCIA LAS CONDES","EPCE2805","IASALVATORE BRAVO ANGELINA MARJOR",2000251466,"AV.LA DEHESA 1788","LAS CONDES",2,"AV.LA DEHESA 1788LAS CONDES",2000251466,{"$error":"#N/A"},"eliminar"]
["AV.KENEDDY 9001","LAS_CONDES","AV.KENEDDY 9001LAS_CONDES",2000251470,null,null,null,null,null,"EULEN CHILE SOCIEDAD ANONIMA ","METRO NORTE","AGENCIA LAS CONDES","EPCE2805","IASALVATORE BRAVO ANGELINA MARJOR",2000251207,"AV.LA PLAZA S/N","LAS CONDES",1,"AV.LA PLAZA S/NLAS CONDES",2000251207,2000251207]
["AV.KENEDY 5128","LAS_CONDES","AV.KENEDY 5128LAS_CONDES",2000251524,null,null,null,null,null,"EULEN CHILE SOCIEDAD ANONIMA ","METRO NORTE","AGENCIA LAS CONDES","EPCE2805","IASALVATORE BRAVO ANGELINA MARJOR",2000251593,"AV.LAS CONDES 11000","LAS CONDES",1,"AV.LAS CONDES 11000LAS CONDES",2000251593,2000251593]
["AV.KENNEDY 5413","LAS_CONDES","AV.KENNEDY 5413LAS_CONDES",2000251472,null,null,null,null,null,"EULEN CHILE SOCIEDAD ANONIMA ","METRO NORTE","AGENCIA LAS CONDES","EPCE2805","IASALVATORE BRAVO ANGELINA MARJOR",2000251657,"AV.LAS CONDES 11755","LAS CONDES",1,"AV.LAS CONDES 11755LAS CONDES",2000251657,2000251657]
["AV.KENNEDY 55","LAS_CONDES","AV.KENNEDY 55LAS_CONDES",2000251527,null,null,null,null,null,"EULEN CHILE SOCIEDAD ANONIMA ","METRO NORTE","AGENCIA LAS CONDES","EPCE2804","HERNANDEZ REYES GUILLERMO ANTON",2000251612,"AV.LAS CONDES 13349","LAS CONDES",1,"AV.LAS CONDES 13349LAS CONDES",2000251612,2000251612]
["AV.LA PLAZA S/N","LAS_CONDES","AV.LA PLAZA S/NLAS_CONDES",2000251207,null,null,null,null,null,"EULEN CHILE SOCIEDAD ANONIMA ","METRO NORTE","AGENCIA LAS CONDES","EPCE2805","IASALVATORE BRAVO ANGELINA MARJOR",2000251227,"AV.LAS CONDES 8631","LAS CONDES",1,"AV.LAS CONDES 8631LAS CONDES",2000251227,2000251227]
["AV.LAS CONDES 11000","LAS_CONDES","AV.LAS CONDES 11000LAS_CONDES",2000251593,null,null,null,null,null,"EULEN CHILE SOCIEDAD ANONIMA ","METRO NORTE","AGENCIA LIBERTADORES","EPCE2901","ADAMS LOPEZ CATALINA DE LOS",2000251511,"AV.LAS ENCINAS 1777","LAMPA",1,"AV.LAS ENCINAS 1777LAMPA",2000251511,2000251511]
["AV.LAS CONDES 11755","LAS_CONDES","AV.LAS CONDES 11755LAS_CONDES",2000251657,null,null,null,null,null,"EULEN CHILE SOCIEDAD ANONIMA ","METRO NORTE","AGENCIA LAS CONDES","EPCE2805","IASALVATORE BRAVO ANGELINA MARJOR",2000251586,"AV.LAS FLORES 12870","LAS CONDES",1,"AV.LAS FLORES 12870LAS CONDES",2000251586,2000251586]
["AV.LAS CONDES 13349","LAS_CONDES","AV.LAS CONDES 13349LAS_CONDES",2000251612,null,null,null,null,null,"EULEN CHILE SOCIEDAD ANONIMA ","CENTRO NORTE","AGENCIA VIÑA DEL MAR / VALPARAISO","EPMX4803","ROGEL ROJAS CELIA JOHANA",2000251617,"AV.LAS PALMAS S/N","VIÑA DEL MAR",1,"AV.LAS PALMAS S/NVIÑA DEL MAR",2000251617,2000251617]
["AV.LAS CONDES 8631","LAS_CONDES","AV.LAS CONDES 8631LAS_CONDES",2000251227,null,null,null,null,null,"EULEN CHILE SOCIEDAD ANONIMA ","METRO NORTE","AGENCIA SANTIAGO","EPCE4206","LAZO ESCUDERO RAUL",2000251224,"AV.LIB BERNADO OHIGGINS 2013","SANTIAGO",1,"AV.LIB BERNADO OHIGGINS 2013SANTIAGO",2000251224,2000251224]
["AV.LAS FLORES 12870","LAS_CONDES","AV.LAS FLORES 12870LAS_CONDES",2000251586,null,null,null,null,null,"EULEN CHILE SOCIEDAD ANONIMA ","METRO NORTE","AGENCIA SANTIAGO","EPCE4206","LAZO ESCUDERO RAUL",2000251331,"AV.LIB.BDO.O'HIGGINS 1233","SANTIAGO",1,"AV.LIB.BDO.O'HIGGINS 1233SANTIAGO",2000251331,2000251331]
["AV.LOS LEONES 3700","LAS_CONDES","AV.LOS LEONES 3700LAS_CONDES",2000251579,null,null,null,null,null,"EULEN CHILE SOCIEDAD ANONIMA ","CENTRO NORTE","AGENCIA VIÑA DEL MAR / VALPARAISO","EPMX4803","ROGEL ROJAS CELIA JOHANA",2000251302,"AV.LIBERTAD 601","VIÑA DEL MAR",1,"AV.LIBERTAD 601VIÑA DEL MAR",2000251302,2000251302]
["AV.LOS MILITARES 4290","LAS_CONDES","AV.LOS MILITARES 4290LAS_CONDES",2000251526,null,null,null,null,null,"EULEN CHILE SOCIEDAD ANONIMA ","METRO SUR","AGENCIA LA FLORIDA / SAN MIGUEL","EPCE2604","VELASCO MOYA MARIA FERNANDA",2000251436,"AV.LO CAÑA 3636","LA FLORIDA",1,"AV.LO CAÑA 3636LA FLORIDA",2000251436,2000251436]
["AV.MANQUEHUE SUR 31","LAS_CONDES","AV.MANQUEHUE SUR 31LAS_CONDES",2000251559,null,null,null,null,null,"EULEN CHILE SOCIEDAD ANONIMA ","METRO SUR","AGENCIA LA FLORIDA / SAN MIGUEL","EPCE2604","VELASCO MOYA MARIA FERNANDA",2000251439,"AV.LO CAÑANA 3636","LA FLORIDA",1,"AV.LO CAÑANA 3636LA FLORIDA",2000251439,2000251439]
["AV.PDTE RIESCO 3700","LAS_CONDES","AV.PDTE RIESCO 3700LAS_CONDES",2000251282,null,null,null,null,null,"EULEN CHILE SOCIEDAD ANONIMA ","SUR","AGENCIA VALDIVIA / OSORNO","EPCE3301","LEIGHTON GALLARDO WALESKA KATHERI",2000251635,"AV.LOS CARRERA 774","OSORNO",1,"AV.LOS CARRERA 774OSORNO",2000251635,2000251635]
["AV.PDTE.RIESCO 5335 P.9","LAS_CONDES",{"$f":"+A131&B131","v":"AV.PDTE.RIESCO 5335 P.9LAS_CONDES"},2000251295,null,null,null,null,null,"EULEN CHILE SOCIEDAD ANONIMA ","SUR","AGENCIA CONCEPCION","EPCE1802","MARIN GALINDO RYAN FELIPE",2000251647,"AV.LOS CARRERAS PONIENTE 301","CONCEPCION",{"$f":"+COUNTIF(P:P,P131)","v":1},{"$f":"+P131&Q131","v":"AV.LOS CARRERAS PONIENTE 301CONCEPCION"},{"$f":"+O131","v":2000251647},{"$f":"+VLOOKUP(T131,$D$2:$D$432,1,0)","v":2000251647}]
["AV.PRESIDENTE RIESCO 5335","LAS_CONDES","AV.PRESIDENTE RIESCO 5335LAS_CONDES",2000251519,null,null,null,null,null,"EULEN CHILE SOCIEDAD ANONIMA ","METRO NORTE","AGENCIA PROVIDENCIA","EPCE3603","BENITEZ VERGARA LORAINE ELIZABE",2000435344,"AV.LOS LEONES 325","PROVIDENCIA",1,"AV.LOS LEONES 325PROVIDENCIA",2000435344,2000435344]
["AV.PRESIDENTE RIESCO 5539","LAS_CONDES","AV.PRESIDENTE RIESCO 5539LAS_CONDES",2000251554,null,null,null,null,null,"EULEN CHILE SOCIEDAD ANONIMA ","METRO NORTE","AGENCIA LAS CONDES","EPCE2805","IASALVATORE BRAVO ANGELINA MARJOR",2000251579,"AV.LOS LEONES 3700","LAS CONDES",1,"AV.LOS LEONES 3700LAS CONDES",2000251579,2000251579]
["AV.PRESIDENTE RIESCO 9600","LAS_CONDES","AV.PRESIDENTE RIESCO 9600LAS_CONDES",2000251520,null,null,null,null,null,"EULEN CHILE SOCIEDAD ANONIMA ","METRO NORTE","AGENCIA PROVIDENCIA","EPCE3603","BENITEZ VERGARA LORAINE ELIZABE",2000251512,"AV.LOS LEONES 439","PROVIDENCIA",2,"AV.LOS LEONES 439PROVIDENCIA",2000251512,2000251512]
["AV.RENATO SANCHEZ FONTECILLA 310","LAS_CONDES","AV.RENATO SANCHEZ FONTECILLA 310LAS_CONDES",2000251515,null,null,null,null,null,"EULEN CHILE SOCIEDAD ANONIMA ","METRO NORTE","AGENCIA PROVIDENCIA","EPCE3603","BENITEZ VERGARA LORAINE ELIZABE",2000251513,"AV.LOS LEONES 439","PROVIDENCIA",2,"AV.LOS LEONES 439PROVIDENCIA",2000251513,{"$error":"#N/A"},"eliminar"]
["AV.ROSARIO NORTE 537","LAS_CONDES","AV.ROSARIO NORTE 537LAS_CONDES",2000251517,null,null,null,null,null,"EULEN CHILE SOCIEDAD ANONIMA ","METRO NORTE","AGENCIA LAS CONDES","EPCE2805","IASALVATORE BRAVO ANGELINA MARJOR",2000251526,"AV.LOS MILITARES 4290","LAS CONDES",1,"AV.LOS MILITARES 4290LAS CONDES",2000251526,2000251526]
["AV.SAN SEBASTIAN 2787","LAS_CONDES","AV.SAN SEBASTIAN 2787LAS_CONDES",2000251498,null,null,null,null,null,"EULEN CHILE SOCIEDAD ANONIMA ","METRO NORTE","AGENCIA SANTIAGO","EPCE4206","LAZO ESCUDERO RAUL",2000251426,"AV.MAC IVER 225","SANTIAGO",1,"AV.MAC IVER 225SANTIAGO",2000251426,2000251426]
["AV.SANTA MARIA 1742","LAS_CONDES","AV.SANTA MARIA 1742LAS_CONDES",2000251560,null,null,null,null,null,"EULEN CHILE SOCIEDAD ANONIMA ","METRO NORTE","AGENCIA LAS CONDES","EPCE2805","IASALVATORE BRAVO ANGELINA MARJOR",2000251559,"AV.MANQUEHUE SUR 31","LAS CONDES",1,"AV.MANQUEHUE SUR 31LAS CONDES",2000251559,2000251559]
["AV.VITACURA 2610","LAS_CONDES","AV.VITACURA 2610LAS_CONDES",2000251529,null,null,null,null,null,"EULEN CHILE SOCIEDAD ANONIMA ","METRO NORTE","AGENCIA PROVIDENCIA","EPCE3603","BENITEZ VERGARA LORAINE ELIZABE",2000251539,"AV.MANUEL MONNT 367","PROVIDENCIA",1,"AV.MANUEL MONNT 367PROVIDENCIA",2000251539,2000251539]
["CALLE ALCANTARA 200","LAS_CONDES","CALLE ALCANTARA 200LAS_CONDES",2000251454,null,null,null,null,null,"EULEN CHILE SOCIEDAD ANONIMA ","METRO NORTE","AGENCIA PROVIDENCIA","EPCE3603","BENITEZ VERGARA LORAINE ELIZABE",2000251277,"AV.MANUEL MONTT 367","PROVIDENCIA",1,"AV.MANUEL MONTT 367PROVIDENCIA",2000251277,2000251277]
["CALLE ALEXANDER FLEMMING 7885","LAS_CONDES","CALLE ALEXANDER FLEMMING 7885LAS_CONDES",2000251391,null,null,null,null,null,"EULEN CHILE SOCIEDAD ANONIMA ","METRO SUR","AGENCIA SAN VICENTE / SAN FERNANDO","EPCE4002","OLIVARES ROJAS MANUEL ALEJANDR",2000251316,"AV.MANUEL RODRIGUEZ 859","SAN FERNANDO",1,"AV.MANUEL RODRIGUEZ 859SAN FERNANDO",2000251316,2000251316]
["CALLE CALLAO 2928","LAS_CONDES","CALLE CALLAO 2928LAS_CONDES",2000251297,null,null,null,null,null,"EULEN CHILE SOCIEDAD ANONIMA ","METRO SUR","AGENCIA LA FLORIDA / SAN MIGUEL","EPCE2604","VELASCO MOYA MARIA FERNANDA",2000251570,"AV.MARTIRREÑO 3349","LA FLORIDA",1,"AV.MARTIRREÑO 3349LA FLORIDA",2000251570,2000251570]
["CALLE CAMINO LAS FLORES 12870","LAS_CONDES","CALLE CAMINO LAS FLORES 12870LAS_CONDES",2000251222,null,null,null,null,null,"EULEN CHILE SOCIEDAD ANONIMA ","METRO NORTE","AGENCIA SANTIAGO","EPCE4206","LAZO ESCUDERO RAUL",2000251261,"AV.MIRAFLORES 130","SANTIAGO",1,"AV.MIRAFLORES 130SANTIAGO",2000251261,2000251261]
["CALLE DON CARLOS 2939","LAS_CONDES","CALLE DON CARLOS 2939LAS_CONDES",2000251298,null,null,null,null,null,"EULEN CHILE SOCIEDAD ANONIMA ","METRO NORTE","AGENCIA SANTIAGO","EPCE4206","LAZO ESCUDERO RAUL",2000251500,"AV.MIRAFLORES 222","SANTIAGO",1,"AV.MIRAFLORES 222SANTIAGO",2000251500,2000251500]
["CALLE FELIX DE AMESTI 124 P9","LAS_CONDES","CALLE FELIX DE AMESTI 124 P9LAS_CONDES",2000251400,null,null,null,null,null,"EULEN CHILE SOCIEDAD ANONIMA ","METRO NORTE","AGENCIA SANTIAGO","EPCE4206","LAZO ESCUDERO RAUL",2000251516,"AV.MIRAFLORES 393","SANTIAGO",1,"AV.MIRAFLORES 393SANTIAGO",2000251516,2000251516]
["CALLE GERTRUDIS ECHEÑIQUE 49","LAS_CONDES","CALLE GERTRUDIS ECHEÑIQUE 49LAS_CONDES",2000251464,null,null,null,null,null,"EULEN CHILE SOCIEDAD ANONIMA ","METRO NORTE","AGENCIA SANTIAGO","EPCE4206","LAZO ESCUDERO RAUL",2000251485,"AV.MONEDA 1031","SANTIAGO",1,"AV.MONEDA 1031SANTIAGO",2000251485,2000251485]
["CALLE ISIDORA GOYNECHEA 2800","LAS_CONDES","CALLE ISIDORA GOYNECHEA 2800LAS_CONDES",2000251457,null,null,null,null,null,"EULEN CHILE SOCIEDAD ANONIMA ","METRO NORTE","AGENCIA PROVIDENCIA","EPCE3603","BENITEZ VERGARA LORAINE ELIZABE",2000251540,"AV.NVA LYON 072","PROVIDENCIA",1,"AV.NVA LYON 072PROVIDENCIA",2000251540,2000251540]
["CALLE ISIDORA GOYNECHEA 3051","LAS_CONDES","CALLE ISIDORA GOYNECHEA 3051LAS_CONDES",2000251558,null,null,null,null,null,"EULEN CHILE SOCIEDAD ANONIMA ","METRO NORTE","AGENCIA PROVIDENCIA","EPCE3603","BENITEZ VERGARA LORAINE ELIZABE",2000251508,"AV.OBISPO DONOSO 6","PROVIDENCIA",1,"AV.OBISPO DONOSO 6PROVIDENCIA",2000251508,2000251508]
["CALLE LOS MILITARES 6640","LAS_CONDES","CALLE LOS MILITARES 6640LAS_CONDES",2000251294,null,null,null,null,null,"EULEN CHILE SOCIEDAD ANONIMA ","SUR","AGENCIA CONCEPCION","EPCE1802","MARIN GALINDO RYAN FELIPE",2000251348,"AV.OHIGGINS 486","CONCEPCION",1,"AV.OHIGGINS 486CONCEPCION",2000251348,2000251348]
["CALLE LUIS PASTEUR 5280 P4","LAS_CONDES","CALLE LUIS PASTEUR 5280 P4LAS_CONDES",2000251455,null,null,null,null,null,"EULEN CHILE SOCIEDAD ANONIMA ","METRO NORTE","AGENCIA SANTIAGO","EPCE4206","LAZO ESCUDERO RAUL",2000251473,"AV.OHIGGINS 581","SANTIAGO",1,"AV.OHIGGINS 581SANTIAGO",2000251473,2000251473]
["CALLE MAGDALENA 140 P15","LAS_CONDES","CALLE MAGDALENA 140 P15LAS_CONDES",2000251462,null,null,null,null,null,"EULEN CHILE SOCIEDAD ANONIMA ","NORTE","AGENCIA COPIAPO","EPCE1902","CORTES VILLEGAS SHEYLA STEFANIE",2000251313,"AV.OHIGGINS 694","COPIAPO",1,"AV.OHIGGINS 694COPIAPO",2000251313,2000251313]
["CALLE MARTIN DE ZAMORA 5309","LAS_CONDES","CALLE MARTIN DE ZAMORA 5309LAS_CONDES",2000251663,null,null,null,null,null,"EULEN CHILE SOCIEDAD ANONIMA ","METRO NORTE","AGENCIA LIBERTADORES","EPCE2901","ADAMS LOPEZ CATALINA DE LOS",2000251521,"AV.PANAMERICANA NORTE","LAMPA",1,"AV.PANAMERICANA NORTELAMPA",2000251521,2000251521]
["CALLE NUESTRA SEÑORA DEL ROSARI 850","LAS_CONDES","CALLE NUESTRA SEÑORA DEL ROSARI 850LAS_CONDES",2000251596,null,null,null,null,null,"EULEN CHILE SOCIEDAD ANONIMA ","METRO NORTE","AGENCIA LAS CONDES","EPCE2805","IASALVATORE BRAVO ANGELINA MARJOR",2000251587,"AV.PARQUE ANTONIO RABAT 6150","VITACURA",1,"AV.PARQUE ANTONIO RABAT 6150VITACURA",2000251587,2000251587]
["CAMINO EL ALBA 11101","LAS_CONDES","CAMINO EL ALBA 11101LAS_CONDES",2000251463,null,null,null,null,null,"EULEN CHILE SOCIEDAD ANONIMA ","METRO NORTE","AGENCIA LIBERTADORES","EPCE2901","ADAMS LOPEZ CATALINA DE LOS",2000251468,"AV.PASEO COLINA SUR 14500 L101","COLINA",1,"AV.PASEO COLINA SUR 14500 L101COLINA",2000251468,2000251468]
["CARMENCITA 185","LAS_CONDES","CARMENCITA 185LAS_CONDES",2000251372,null,null,null,null,null,"EULEN CHILE SOCIEDAD ANONIMA ","METRO NORTE","AGENCIA LIBERTADORES","EPCE2901","ADAMS LOPEZ CATALINA DE LOS",2000251522,"AV.PATRICIA VIÑUELA","LAMPA",1,"AV.PATRICIA VIÑUELALAMPA",2000251522,2000251522]
["CIRCUNVALACION LAS FLORES 12870","LAS_CONDES","CIRCUNVALACION LAS FLORES 12870LAS_CONDES",2000251296,null,null,null,null,null,"EULEN CHILE SOCIEDAD ANONIMA ","METRO NORTE","AGENCIA LAS CONDES","EPCE2805","IASALVATORE BRAVO ANGELINA MARJOR",2000251282,"AV.PDTE RIESCO 3700","LAS CONDES",1,"AV.PDTE RIESCO 3700LAS CONDES",2000251282,2000251282]
["LAS FLORES 12870","LAS_CONDES","LAS FLORES 12870LAS_CONDES",2000251437,null,null,null,null,null,"EULEN CHILE SOCIEDAD ANONIMA ","METRO NORTE","AGENCIA LAS CONDES","EPCE2805","IASALVATORE BRAVO ANGELINA MARJOR",2000251295,"AV.PDTE.RIESCO 5335 P.9","LAS CONDES",1,"AV.PDTE.RIESCO 5335 P.9LAS CONDES",2000251295,2000251295]
["LOS MILITARES 4290","LAS_CONDES","LOS MILITARES 4290LAS_CONDES",2000251280,null,null,null,null,null,"EULEN CHILE SOCIEDAD ANONIMA ","CENTRO NORTE","AGENCIA ILLAPEL","EPMX2402","OLIVA ROCCO JUAN GABRIEL",2000251404,"AV.PEAGE LAMPA KM20 20","LOS VILOS",1,"AV.PEAGE LAMPA KM20 20LOS VILOS",2000251404,2000251404]
["NUESTRA SEÑORA DEL ROSARI 850","LAS_CONDES","NUESTRA SEÑORA DEL ROSARI 850LAS_CONDES",2000251582,null,null,null,null,null,"EULEN CHILE SOCIEDAD ANONIMA ","SUR","AGENCIA CONCEPCION","EPCE1802","MARIN GALINDO RYAN FELIPE",2000251401,"AV.PEAJE AGUA AMARILLA KM 60","CONCEPCION",1,"AV.PEAJE AGUA AMARILLA KM 60CONCEPCION",2000251401,2000251401]
["ROSARIO NORTE 615","LAS_CONDES","ROSARIO NORTE 615LAS_CONDES",2000251265,null,null,null,null,null,"EULEN CHILE SOCIEDAD ANONIMA ","SUR","AGENCIA CONCEPCION","EPCE1802","MARIN GALINDO RYAN FELIPE",2000251403,"AV.PEAJE NUEVA ALDEA  KM21 21","CONCEPCION",1,"AV.PEAJE NUEVA ALDEA  KM21 21CONCEPCION",2000251403,2000251403]
["CALLE LAUTARO 514","LINARES","CALLE LAUTARO 514LINARES",2000251608,null,null,null,null,null,"EULEN CHILE SOCIEDAD ANONIMA ","SUR","AGENCIA CONCEPCION","EPCE1802","MARIN GALINDO RYAN FELIPE",2000251402,"AV.PEAJE RAFAEL KM 627","CONCEPCION",1,"AV.PEAJE RAFAEL KM 627CONCEPCION",2000251402,2000251402]
["RUTA 54 SUR KM 289","LINARES","RUTA 54 SUR KM 289LINARES",2000251607,null,null,null,null,null,"EULEN CHILE SOCIEDAD ANONIMA ","METRO NORTE","AGENCIA PROVIDENCIA","EPCE3603","BENITEZ VERGARA LORAINE ELIZABE",2000251276,"AV.PEDRO DE VALDIVIA 1509","PROVIDENCIA",1,"AV.PEDRO DE VALDIVIA 1509PROVIDENCIA",2000251276,2000251276]
["RUTA 5 NORTE  KM 89","LLAILLAY","RUTA 5 NORTE  KM 89LLAILLAY",2000251230,null,null,null,null,null,"EULEN CHILE SOCIEDAD ANONIMA ","METRO NORTE","AGENCIA EGAÑA / LA REINA","EPCE2303","VEGA ORTIZ MARCO ANTONIO",2000251420,"AV.PEÑALOLEN 1340","PEÑALOLEN",1,"AV.PEÑALOLEN 1340PEÑALOLEN",2000251420,2000251420]
["LATERAL LLANQUIHUE KM 998","LLANQUIHUE","LATERAL LLANQUIHUE KM 998LLANQUIHUE",2000251415,null,null,null,null,null,"EULEN CHILE SOCIEDAD ANONIMA ","CENTRO NORTE","AGENCIA VIÑA DEL MAR / VALPARAISO","EPCE4701","MENEGHINI VALET SHIRLEY",2000251341,"AV.PRAT 846 OF.4-B","VALPARAISO",1,"AV.PRAT 846 OF.4-BVALPARAISO",2000251341,2000251341]
["RUTA 5 SUR KM 1000","LLANQUIHUE","RUTA 5 SUR KM 1000LLANQUIHUE",2000251364,null,null,null,null,null,"EULEN CHILE SOCIEDAD ANONIMA ","METRO SUR","AGENCIA VALLES DEL MAIPO","EPCE4603","VERA DIAZ BERNARDITA DEL",2000251452,"AV.PRESIDENTE JORGE ALEDANDR","SAN BERNARDO",1,"AV.PRESIDENTE JORGE ALEDANDRSAN BERNARDO",2000251452,2000251452]
["RUTA 5 SUR KM 998","LLANQUIHUE","RUTA 5 SUR KM 998LLANQUIHUE",2000251368,null,null,null,null,null,"EULEN CHILE SOCIEDAD ANONIMA ","METRO NORTE","AGENCIA LAS CONDES","EPCE2805","IASALVATORE BRAVO ANGELINA MARJOR",2000251519,"AV.PRESIDENTE RIESCO 5335","LAS CONDES",1,"AV.PRESIDENTE RIESCO 5335LAS CONDES",2000251519,2000251519]
["AV.LA DEHESA 1445","LO_BARNECHEA","AV.LA DEHESA 1445LO_BARNECHEA",2000251471,null,null,null,null,null,"EULEN CHILE SOCIEDAD ANONIMA ","METRO NORTE","AGENCIA LAS CONDES","EPCE2805","IASALVATORE BRAVO ANGELINA MARJOR",2000251554,"AV.PRESIDENTE RIESCO 5539","LAS CONDES",1,"AV.PRESIDENTE RIESCO 5539LAS CONDES",2000251554,2000251554]
["AV.LA DEHESA 1788","LO_BARNECHEA","AV.LA DEHESA 1788LO_BARNECHEA",2000251447,null,null,null,null,null,"EULEN CHILE SOCIEDAD ANONIMA ","METRO NORTE","AGENCIA LAS CONDES","EPCE2805","IASALVATORE BRAVO ANGELINA MARJOR",2000251520,"AV.PRESIDENTE RIESCO 9600","LAS CONDES",1,"AV.PRESIDENTE RIESCO 9600LAS CONDES",2000251520,2000251520]
["AV.RAUL LABBE 12613","LO_BARNECHEA","AV.RAUL LABBE 12613LO_BARNECHEA",2000251290,null,null,null,null,null,"EULEN CHILE SOCIEDAD ANONIMA ","METRO NORTE","AGENCIA PARQUE LAS AMERICAS","EPCE3504","HERRERA MEZA JUAN ANDRES",2000251491,"AV.PROFESOR ZAÑARTU 1085","INDEPENDENCIA",1,"AV.PROFESOR ZAÑARTU 1085INDEPENDENCIA",2000251491,2000251491]
["CALLE CAMINO REAL 4518","LO_BARNECHEA","CALLE CAMINO REAL 4518LO_BARNECHEA",2000251206,null,null,null,null,null,"EULEN CHILE SOCIEDAD ANONIMA ","METRO NORTE","AGENCIA PROVIDENCIA","EPCE3603","BENITEZ VERGARA LORAINE ELIZABE",2000251397,"AV.PROVIDENCIA 111 P25","PROVIDENCIA",1,"AV.PROVIDENCIA 111 P25PROVIDENCIA",2000251397,2000251397]
["AV.L.BERNARDO OHIGGINS 334","LOS_ANDES","AV.L.BERNARDO OHIGGINS 334LOS_ANDES",2000251267,null,null,null,null,null,"EULEN CHILE SOCIEDAD ANONIMA ","METRO NORTE","AGENCIA PROVIDENCIA","EPCE3603","BENITEZ VERGARA LORAINE ELIZABE",2000251449,"AV.PROVIDENCIA 1909","PROVIDENCIA",1,"AV.PROVIDENCIA 1909PROVIDENCIA",2000251449,2000251449]
["CALLE FREIRE 473","LOS_ANDES","CALLE FREIRE 473LOS_ANDES",2000251645,null,null,null,null,null,"EULEN CHILE SOCIEDAD ANONIMA ","METRO NORTE","AGENCIA PROVIDENCIA","EPCE3603","BENITEZ VERGARA LORAINE ELIZABE",2000251489,"AV.PROVIDENCIA 2283","PROVIDENCIA",1,"AV.PROVIDENCIA 2283PROVIDENCIA",2000251489,2000251489]
["CALLE MAIPU 559","LOS_ANDES","CALLE MAIPU 559LOS_ANDES",2000251272,null,null,null,null,null,"EULEN CHILE SOCIEDAD ANONIMA ","METRO NORTE","AGENCIA PROVIDENCIA","EPCE3603","BENITEZ VERGARA LORAINE ELIZABE",2000251544,"AV.PROVIDENCIA 2653 P14-16-18-19-20","PROVIDENCIA",1,"AV.PROVIDENCIA 2653 P14-16-18-19-20PROVIDENCIA",2000251544,2000251544]
["CALLE LOS CARRERAS 235","LOS_ANGELES","CALLE LOS CARRERAS 235LOS_ANGELES",2000251215,null,null,null,null,null,"EULEN CHILE SOCIEDAD ANONIMA ","METRO NORTE","AGENCIA PROVIDENCIA","EPCE3603","BENITEZ VERGARA LORAINE ELIZABE",2000251661,"AV.PROVIDENCIA 341","PROVIDENCIA",1,"AV.PROVIDENCIA 341PROVIDENCIA",2000251661,2000251661]
["VALDIVIA 300","LOS_ANGELES","VALDIVIA 300LOS_ANGELES",2000251352,null,null,null,null,null,"EULEN CHILE SOCIEDAD ANONIMA ","METRO NORTE","AGENCIA SANTIAGO","EPCE4206","LAZO ESCUDERO RAUL",2000251483,"AV.PUENTE 689","SANTIAGO",1,"AV.PUENTE 689SANTIAGO",2000251483,2000251483]
["AV.PEAGE LAMPA KM20 20","LOS_VILOS","AV.PEAGE LAMPA KM20 20LOS_VILOS",2000251404,null,null,null,null,null,"EULEN CHILE SOCIEDAD ANONIMA ","METRO NORTE","AGENCIA EGAÑA / LA REINA","EPCE2303","VEGA ORTIZ MARCO ANTONIO",2000251626,"AV.QUILIN 5473","PEÑALOLEN",1,"AV.QUILIN 5473PEÑALOLEN",2000251626,2000251626]
["OCTAY NORTE KM920 920","LOS_VILOS","OCTAY NORTE KM920 920LOS_VILOS",2000251408,null,null,null,null,null,"EULEN CHILE SOCIEDAD ANONIMA ","METRO NORTE","AGENCIA LAS CONDES","EPCE2805","IASALVATORE BRAVO ANGELINA MARJOR",2000251290,"AV.RAUL LABBE 12613","LO BARNECHEA",1,"AV.RAUL LABBE 12613LO BARNECHEA",2000251290,2000251290]
["PEAJE LAS VEGAS  KM 90 90","LOS_VILOS","PEAJE LAS VEGAS  KM 90 90LOS_VILOS",2000251405,null,null,null,null,null,"EULEN CHILE SOCIEDAD ANONIMA ","METRO NORTE","AGENCIA PARQUE LAS AMERICAS","EPCE3504","HERRERA MEZA JUAN ANDRES",2000251429,"AV.RECOLETA 5610","HUECHURABA",1,"AV.RECOLETA 5610HUECHURABA",2000251429,2000251429]
["PEAJE PICHIDANGUI KM 190 190","LOS_VILOS","PEAJE PICHIDANGUI KM 190 190LOS_VILOS",2000251406,null,null,null,null,null,"EULEN CHILE SOCIEDAD ANONIMA ","METRO NORTE","AGENCIA LAS CONDES","EPCE2805","IASALVATORE BRAVO ANGELINA MARJOR",2000251515,"AV.RENATO SANCHEZ FONTECILLA 310","LAS CONDES",1,"AV.RENATO SANCHEZ FONTECILLA 310LAS CONDES",2000251515,2000251515]
["PUYEHUE NORTE KM 919 919","LOS_VILOS","PUYEHUE NORTE KM 919 919LOS_VILOS",2000251407,null,null,null,null,null,"EULEN CHILE SOCIEDAD ANONIMA ","METRO NORTE","AGENCIA SANTIAGO","EPCE4206","LAZO ESCUDERO RAUL",2000251502,"AV.REPUBLICA 79","SANTIAGO",1,"AV.REPUBLICA 79SANTIAGO",2000251502,2000251502]
["RUTA 5 NORTE KM 193","LOS_VILOS","RUTA 5 NORTE KM 193LOS_VILOS",2000251283,null,null,null,null,null,"EULEN CHILE SOCIEDAD ANONIMA ","METRO NORTE","AGENCIA SANTIAGO","EPCE4206","LAZO ESCUDERO RAUL",2000251555,"AV.ROBERTO DEL RIO","SANTIAGO",1,"AV.ROBERTO DEL RIOSANTIAGO",2000251555,2000251555]
["CALLE IRARRAZAVAL 319","MACHALI","CALLE IRARRAZAVAL 319MACHALI",2000251346,null,null,null,null,null,"EULEN CHILE SOCIEDAD ANONIMA ","METRO NORTE","AGENCIA LAS CONDES","EPCE2805","IASALVATORE BRAVO ANGELINA MARJOR",2000251517,"AV.ROSARIO NORTE 537","LAS CONDES",1,"AV.ROSARIO NORTE 537LAS CONDES",2000251517,2000251517]
["AV.VICUÑA MACKENNA 4230","MACUL","AV.VICUÑA MACKENNA 4230MACUL",2000251226,null,null,null,null,null,"EULEN CHILE SOCIEDAD ANONIMA ","METRO NORTE","AGENCIA SANTIAGO","EPCE4206","LAZO ESCUDERO RAUL",2000251659,"AV.SAN DIEGO 284","SANTIAGO",1,"AV.SAN DIEGO 284SANTIAGO",2000251659,2000251659]
["AV.PAJARITOS 5830","MAIPU","AV.PAJARITOS 5830MAIPU",2000251229,null,null,null,null,null,"EULEN CHILE SOCIEDAD ANONIMA ","METRO NORTE","AGENCIA LIBERTADORES","EPCE2901","ADAMS LOPEZ CATALINA DE LOS",2000251476,"AV.SAN IGNACIO 500","QUILICURA",1,"AV.SAN IGNACIO 500QUILICURA",2000251476,2000251476]
["CAMINO A MELIPILLA 10600","MAIPU","CAMINO A MELIPILLA 10600MAIPU",2000251248,null,null,null,null,null,"EULEN CHILE SOCIEDAD ANONIMA ","METRO NORTE","AGENCIA SANTIAGO","EPCE4206","LAZO ESCUDERO RAUL",2000251285,"AV.SAN ISIDRO 560","SANTIAGO",1,"AV.SAN ISIDRO 560SANTIAGO",2000251285,2000251285]
["CALLE MONUMENTO 2067","MAIPU","CALLE MONUMENTO 2067MAIPU",2000251308,null,null,null,null,null,"EULEN CHILE SOCIEDAD ANONIMA ","SUR","AGENCIA TEMUCO","EPCE4402","HORMAZABAL MORA CHRISTIAN JAVIE",2000251213,"AV.SAN MARTIN 0102","TEMUCO",1,"AV.SAN MARTIN 0102TEMUCO",2000251213,2000251213]
["LA COLONIA 65","MAIPU","LA COLONIA 65MAIPU",2000251382,null,null,null,null,null,"EULEN CHILE SOCIEDAD ANONIMA ","NORTE","AGENCIA ANTOFAGASTA","EPCE1202","MORA OLIVERA PAULINA ",2000251335,"AV.SAN MARTIN 2514","ANTOFAGASTA",1,"AV.SAN MARTIN 2514ANTOFAGASTA",2000251335,2000251335]
["LOS YACIMIENTOS 1301","MAIPU","LOS YACIMIENTOS 1301MAIPU",2000251387,null,null,null,null,null,"EULEN CHILE SOCIEDAD ANONIMA ","METRO SUR","AGENCIA TALCA","EPCE4303","PAVEZ GUTIERREZ KATHERINE ANDRE",2000251203,"AV.SAN MIGUEL 3355","TALCA",1,"AV.SAN MIGUEL 3355TALCA",2000251203,2000251203]
["AV.MONUMENTO 2067","MAIPU","AV.MONUMENTO 2067MAIPU",2000251451,null,null,null,null,null,"EULEN CHILE SOCIEDAD ANONIMA ","METRO NORTE","AGENCIA LAS CONDES","EPCE2805","IASALVATORE BRAVO ANGELINA MARJOR",2000251498,"AV.SAN SEBASTIAN 2787","LAS CONDES",1,"AV.SAN SEBASTIAN 2787LAS CONDES",2000251498,2000251498]
["AV.MAIPU 1918","MAIPU","AV.MAIPU 1918MAIPU",2000251565,null,null,null,null,null,"EULEN CHILE SOCIEDAD ANONIMA ","METRO NORTE","AGENCIA PARQUE LAS AMERICAS","EPCE3504","HERRERA MEZA JUAN ANDRES",2000251477,"AV.SANTA CLARA 249","HUECHURABA",1,"AV.SANTA CLARA 249HUECHURABA",2000251477,2000251477]
["AV.AMERICO VESPUCIO 399","MAIPU","AV.AMERICO VESPUCIO 399MAIPU",2000251567,null,null,null,null,null,"EULEN CHILE SOCIEDAD ANONIMA ","METRO NORTE","AGENCIA PARQUE LAS AMERICAS","EPCE3504","HERRERA MEZA JUAN ANDRES",2000251534,"AV.SANTA LAURA 1119","INDEPENDENCIA",1,"AV.SANTA LAURA 1119INDEPENDENCIA",2000251534,2000251534]
["AV.VESPUCIO 1501","MAIPU","AV.VESPUCIO 1501MAIPU",2000251569,null,null,null,null,null,"EULEN CHILE SOCIEDAD ANONIMA ","METRO NORTE","AGENCIA LAS CONDES","EPCE2805","IASALVATORE BRAVO ANGELINA MARJOR",2000251560,"AV.SANTA MARIA 1742","LAS CONDES",1,"AV.SANTA MARIA 1742LAS CONDES",2000251560,2000251560]
["AV.MONUMENTO 2088","MAIPU","AV.MONUMENTO 2088MAIPU",2000251580,null,null,null,null,null,"EULEN CHILE SOCIEDAD ANONIMA ","METRO NORTE","AGENCIA SANTIAGO","EPCE4206","LAZO ESCUDERO RAUL",2000251427,"AV.SANTA ROSA 1234","SANTIAGO",1,"AV.SANTA ROSA 1234SANTIAGO",2000251427,2000251427]
["CAMPAMENTO MARIA ELENA","MARIA_ELENA",{"$f":"+A194&B194","v":"CAMPAMENTO MARIA ELENAMARIA_ELENA"},2000251250,null,null,null,null,null,"EULEN CHILE SOCIEDAD ANONIMA ","METRO NORTE","AGENCIA SANTIAGO","EPCE4206","LAZO ESCUDERO RAUL",2000251538,"AV.SANTO DOMINGO 711","SANTIAGO",1,"AV.SANTO DOMINGO 711SANTIAGO",2000251538,2000251538]
["FAENA COYASUR","MARIA_ELENA",{"$f":"+A195&B195","v":"FAENA COYASURMARIA_ELENA"},2000251251,null,null,null,null,null,"EULEN CHILE SOCIEDAD ANONIMA ","SUR","AGENCIA VALDIVIA / OSORNO","EPCE3301","LEIGHTON GALLARDO WALESKA KATHERI",2000251633,"AV.SEBASTOPOL 2205","OSORNO",{"$f":"+COUNTIF(P:P,P195)","v":1},{"$f":"+P195&Q195","v":"AV.SEBASTOPOL 2205OSORNO"},{"$f":"+O195","v":2000251633},{"$f":"+VLOOKUP(T195,$D$2:$D$432,1,0)","v":2000251633}]
["CALLE BARROS ARANA 1150","MARIQUINA",{"$f":"+A196&B196","v":"CALLE BARROS ARANA 1150MARIQUINA"},2000251239,null,null,null,null,null,"EULEN CHILE SOCIEDAD ANONIMA ","CENTRO NORTE","AGENCIA RUTA DEL SOL","EPCE3203","TORRES VALDEBENITO ROXANA",2000251562,"AV.SERRANO 395","MELIPILLA",1,"AV.SERRANO 395MELIPILLA",2000251562,2000251562]
["PEAJE LATERAL MAULLIN","MAULLIN","PEAJE LATERAL MAULLINMAULLIN",2000251667,null,null,null,null,null,"EULEN CHILE SOCIEDAD ANONIMA ","METRO NORTE","AGENCIA PROVIDENCIA","EPCE3603","BENITEZ VERGARA LORAINE ELIZABE",2000251494,"AV.SUECIA 211","PROVIDENCIA",1,"AV.SUECIA 211PROVIDENCIA",2000251494,2000251494]
["AUTOPISTA DEL SOL  K 60","MELIPILLA","AUTOPISTA DEL SOL  K 60MELIPILLA",2000251234,null,null,null,null,null,"EULEN CHILE SOCIEDAD ANONIMA ","CENTRO NORTE","AGENCIA VIÑA DEL MAR / VALPARAISO","EPCE4701","MENEGHINI VALET SHIRLEY",2000251423,"AV.TUPUNGATO 2821","VALPARAISO",1,"AV.TUPUNGATO 2821VALPARAISO",2000251423,2000251423]
["AV.SERRANO 395","MELIPILLA","AV.SERRANO 395MELIPILLA",2000251562,null,null,null,null,null,"EULEN CHILE SOCIEDAD ANONIMA ","METRO NORTE","AGENCIA SANTIAGO","EPCE4206","LAZO ESCUDERO RAUL",2000251288,"AV.VICTORIA 834","SANTIAGO",1,"AV.VICTORIA 834SANTIAGO",2000251288,2000251288]
["CALLE SERRANO 210","MELIPILLA","CALLE SERRANO 210MELIPILLA",2000251460,null,null,null,null,null,"EULEN CHILE SOCIEDAD ANONIMA ","METRO NORTE","AGENCIA EGAÑA / LA REINA","EPCE2303","VEGA ORTIZ MARCO ANTONIO",2000251440,"AV.VICUNA MACKENNA 1870","ÑUÑOA",1,"AV.VICUNA MACKENNA 1870ÑUÑOA",2000251440,2000251440]
["LO AGUIRRE SN 1","MELIPILLA","LO AGUIRRE SN 1MELIPILLA",2000559659,null,null,null,null,null,"EULEN CHILE SOCIEDAD ANONIMA ","METRO NORTE","AGENCIA EGAÑA / LA REINA","EPCE2303","VEGA ORTIZ MARCO ANTONIO",2000251438,"AV.VICUÑA MACKENNA 1982","ÑUÑOA",1,"AV.VICUÑA MACKENNA 1982ÑUÑOA",2000251438,2000251438]
["CERRO NOGALES S/N","NOGALES","CERRO NOGALES S/NNOGALES",2000251620,null,null,null,null,null,"EULEN CHILE SOCIEDAD ANONIMA ","METRO NORTE","AGENCIA EGAÑA / LA REINA","EPCE2303","VEGA ORTIZ MARCO ANTONIO",2000251226,"AV.VICUÑA MACKENNA 4230","MACUL",1,"AV.VICUÑA MACKENNA 4230MACUL",2000251226,2000251226]
["AV.ANTONIO VARAS 2500","ÑUÑOA","AV.ANTONIO VARAS 2500ÑUÑOA",2000251588,null,null,null,null,null,"EULEN CHILE SOCIEDAD ANONIMA ","METRO SUR","AGENCIA LA FLORIDA / SAN MIGUEL","EPCE2604","VELASCO MOYA MARIA FERNANDA",2000251583,"AV.VICUÑA MACKENNA 4665","SAN JOAQUIN",1,"AV.VICUÑA MACKENNA 4665SAN JOAQUIN",2000251583,2000251583]
["AV.VICUNA MACKENNA 1870","ÑUÑOA","AV.VICUNA MACKENNA 1870ÑUÑOA",2000251440,null,null,null,null,null,"EULEN CHILE SOCIEDAD ANONIMA ","METRO SUR","AGENCIA LA FLORIDA / SAN MIGUEL","EPCE2604","VELASCO MOYA MARIA FERNANDA",2000251421,"AV.VICUÑA MACKENNA 4685","SAN JOAQUIN",1,"AV.VICUÑA MACKENNA 4685SAN JOAQUIN",2000251421,2000251421]
["AV.VICUÑA MACKENNA 1982","ÑUÑOA","AV.VICUÑA MACKENNA 1982ÑUÑOA",2000251438,null,null,null,null,null,"EULEN CHILE SOCIEDAD ANONIMA ","METRO SUR","AGENCIA LA FLORIDA / SAN MIGUEL","EPCE2604","VELASCO MOYA MARIA FERNANDA",2000251563,"AV.VICUÑA MACKENNA 6100","LA FLORIDA",1,"AV.VICUÑA MACKENNA 6100LA FLORIDA",2000251563,2000251563]
["AV.BILBAO 1263","OSORNO","AV.BILBAO 1263OSORNO",2000251603,null,null,null,null,null,"EULEN CHILE SOCIEDAD ANONIMA ","METRO SUR","AGENCIA LA FLORIDA / SAN MIGUEL","EPCE2604","VELASCO MOYA MARIA FERNANDA",2000251573,"AV.VICUÑA MACKENNA 7110","LA FLORIDA",1,"AV.VICUÑA MACKENNA 7110LA FLORIDA",2000251573,2000251573]
["AV.CESAR ERCILLA 1740","OSORNO","AV.CESAR ERCILLA 1740OSORNO",2000251637,null,null,null,null,null,"EULEN CHILE SOCIEDAD ANONIMA ","METRO NORTE","AGENCIA LAS CONDES","EPCE2805","IASALVATORE BRAVO ANGELINA MARJOR",2000251529,"AV.VITACURA 2610","LAS CONDES",1,"AV.VITACURA 2610LAS CONDES",2000251529,2000251529]
["AV.LOS CARRERA 774","OSORNO","AV.LOS CARRERA 774OSORNO",2000251635,null,null,null,null,null,"EULEN CHILE SOCIEDAD ANONIMA ","METRO NORTE","AGENCIA LAS CONDES","EPCE2805","IASALVATORE BRAVO ANGELINA MARJOR",2000251237,"AV.VITACURA 2771","VITACURA",1,"AV.VITACURA 2771VITACURA",2000251237,2000251237]
["AV.SEBASTOPOL 2205","OSORNO","AV.SEBASTOPOL 2205OSORNO",2000251633,null,null,null,null,null,"EULEN CHILE SOCIEDAD ANONIMA ","METRO NORTE","AGENCIA LAS CONDES","EPCE2805","IASALVATORE BRAVO ANGELINA MARJOR",2000251484,"AV.VITACURA 2933","VITACURA",1,"AV.VITACURA 2933VITACURA",2000251484,2000251484]
["CALLE BILBAO","OSORNO","CALLE BILBAOOSORNO",2000251638,null,null,null,null,null,"EULEN CHILE SOCIEDAD ANONIMA ","METRO NORTE","AGENCIA SANTIAGO","EPCE4206","LAZO ESCUDERO RAUL",2000251503,"AV.ZENTENO 234","SANTIAGO",1,"AV.ZENTENO 234SANTIAGO",2000251503,2000251503]
["CALLE BILBAO 1129 OF.509","OSORNO","CALLE BILBAO 1129 OF.509OSORNO",2000251632,null,null,null,null,null,"EULEN CHILE SOCIEDAD ANONIMA ","METRO SUR","AGENCIA LA FLORIDA / SAN MIGUEL","EPCE2605","MATAMALA CHIANG JUAN ALBERTO",2000251254,"BALMACEDA 317","PUENTE ALTO",1,"BALMACEDA 317PUENTE ALTO",2000251254,2000251254]
["CALLE FREIRE 515","OSORNO","CALLE FREIRE 515OSORNO",2000251628,null,null,null,null,null,"EULEN CHILE SOCIEDAD ANONIMA ","SUR","AGENCIA PUERTO MONTT / COYHAIQUE","EPCE3701","MASSRI RUIZ EDUARDO WALTER",2000251367,"BENAVENTE 536","PUERTO MONTT",1,"BENAVENTE 536PUERTO MONTT",2000251367,2000251367]
["CALLE FREIRE 624","OSORNO","CALLE FREIRE 624OSORNO",2000251630,null,null,null,null,null,"EULEN CHILE SOCIEDAD ANONIMA ","NORTE","AGENCIA ANTOFAGASTA","EPMX1201","GARCES ROJAS FABIAN ANIBAL",2000251209,"CALLE 21 DE MAYO 1336","TOCOPILLA",1,"CALLE 21 DE MAYO 1336TOCOPILLA",2000251209,2000251209]
["CALLE LORD COCHRANE 614","OSORNO","CALLE LORD COCHRANE 614OSORNO",2000251636,null,null,null,null,null,"EULEN CHILE SOCIEDAD ANONIMA ","METRO SUR","AGENCIA TALCA","EPCE4303","PAVEZ GUTIERREZ KATHERINE ANDRE",2000251597,"CALLE 6 ORIENTE 3 NORTE","TALCA",1,"CALLE 6 ORIENTE 3 NORTETALCA",2000251597,2000251597]
["CALLE OHIGGINS","OSORNO","CALLE OHIGGINSOSORNO",2000251634,null,null,null,null,null,"EULEN CHILE SOCIEDAD ANONIMA ","NORTE","AGENCIA ARICA","EPCE1401","FERNANDEZ LUEIZA VICTOR HUGO",2000251337,"CALLE 7 DE JUNIO 266 P.1,2 Y 6","ARICA",1,"CALLE 7 DE JUNIO 266 P.1,2 Y 6ARICA",2000251337,2000251337]
["CALLE OHIGGINS 500","OSORNO","CALLE OHIGGINS 500OSORNO",2000251639,null,null,null,null,null,"EULEN CHILE SOCIEDAD ANONIMA ","METRO NORTE","AGENCIA SANTIAGO","EPCE4206","LAZO ESCUDERO RAUL",2000251601,"CALLE AGUSTINAS 1197","SANTIAGO",1,"CALLE AGUSTINAS 1197SANTIAGO",2000251601,2000251601]
["CALLE RAMIREZ 799","OSORNO","CALLE RAMIREZ 799OSORNO",2000251631,null,null,null,null,null,"EULEN CHILE SOCIEDAD ANONIMA ","METRO NORTE","AGENCIA SANTIAGO","EPCE4206","LAZO ESCUDERO RAUL",2000251545,"CALLE AGUSTINAS 1356","SANTIAGO",1,"CALLE AGUSTINAS 1356SANTIAGO",2000251545,2000251545]
["CALLE RAMIREZ 834","OSORNO","CALLE RAMIREZ 834OSORNO",2000251629,null,null,null,null,null,"EULEN CHILE SOCIEDAD ANONIMA ","METRO NORTE","AGENCIA SANTIAGO","EPCE4206","LAZO ESCUDERO RAUL",2000251393,"CALLE AGUSTINAS 1360","SANTIAGO",1,"CALLE AGUSTINAS 1360SANTIAGO",2000251393,2000251393]
["CALLE ZENTENO 1529","OSORNO","CALLE ZENTENO 1529OSORNO",2000251220,null,null,null,null,null,"EULEN CHILE SOCIEDAD ANONIMA ","METRO NORTE","AGENCIA SANTIAGO","EPCE4206","LAZO ESCUDERO RAUL",2000251475,"CALLE AHUMADA 99","SANTIAGO",1,"CALLE AHUMADA 99SANTIAGO",2000251475,2000251475]
["ELEUTERIO RAMIREZ 850","OSORNO","ELEUTERIO RAMIREZ 850OSORNO",2000251324,null,null,null,null,null,"EULEN CHILE SOCIEDAD ANONIMA ","METRO NORTE","AGENCIA LAS CONDES","EPCE2805","IASALVATORE BRAVO ANGELINA MARJOR",2000251454,"CALLE ALCANTARA 200","LAS CONDES",1,"CALLE ALCANTARA 200LAS CONDES",2000251454,2000251454]
["PEAJE PTO OCTAY 920","OSORNO","PEAJE PTO OCTAY 920OSORNO",2000251642,null,null,null,null,null,"EULEN CHILE SOCIEDAD ANONIMA ","METRO NORTE","AGENCIA LAS CONDES","EPCE2805","IASALVATORE BRAVO ANGELINA MARJOR",2000251391,"CALLE ALEXANDER FLEMMING 7885","LAS CONDES",1,"CALLE ALEXANDER FLEMMING 7885LAS CONDES",2000251391,2000251391]
["PURRANQUE KM 957","OSORNO","PURRANQUE KM 957OSORNO",2000251412,null,null,null,null,null,"EULEN CHILE SOCIEDAD ANONIMA ","SUR","AGENCIA CHILOE","EPMX1701","SILVA BARRIONUEVO PATRICIO ANDRES",2000251594,"CALLE ALMIRANTE LATORRE 1322","ANCUD",1,"CALLE ALMIRANTE LATORRE 1322ANCUD",2000251594,2000251594]
["RIO NEGRO KM 945","OSORNO","RIO NEGRO KM 945OSORNO",2000251411,null,null,null,null,null,"EULEN CHILE SOCIEDAD ANONIMA ","CENTRO NORTE","AGENCIA ELQUI","EPCE2001","SANCHEZ PEÑALILLO CLAUDINA SOLEDA",2000251658,"CALLE ANIBAL PINTO 1551","COQUIMBO",1,"CALLE ANIBAL PINTO 1551COQUIMBO",2000251658,2000251658]
["RUTA 5 SUP PEAJE PILAUCO","OSORNO","RUTA 5 SUP PEAJE PILAUCOOSORNO",2000251253,null,null,null,null,null,"EULEN CHILE SOCIEDAD ANONIMA ","NORTE","AGENCIA ANTOFAGASTA","EPCE1202","MORA OLIVERA PAULINA ",2000251252,"CALLE ANIBAL PINTO 2832","ANTOFAGASTA",1,"CALLE ANIBAL PINTO 2832ANTOFAGASTA",2000251252,2000251252]
["RUTA 5 SUR KM 775","OSORNO","RUTA 5 SUR KM 775OSORNO",2000251322,null,null,null,null,null,"EULEN CHILE SOCIEDAD ANONIMA ","NORTE","AGENCIA ANTOFAGASTA","EPCE1202","MORA OLIVERA PAULINA ",2000251333,"CALLE ANIBAL PINTO 3228","ANTOFAGASTA",1,"CALLE ANIBAL PINTO 3228ANTOFAGASTA",2000251333,2000251333]
["RUTA 5 SUR KM 917","OSORNO","RUTA 5 SUR KM 917OSORNO",2000251409,null,null,null,null,null,"EULEN CHILE SOCIEDAD ANONIMA ","CENTRO NORTE","AGENCIA VIÑA DEL MAR / VALPARAISO","EPCE4701","MENEGHINI VALET SHIRLEY",2000251448,"CALLE ANTONIO VARAS 2","VALPARAISO",1,"CALLE ANTONIO VARAS 2VALPARAISO",2000251448,2000251448]
["RUTA 5 SUR KM 919","OSORNO","RUTA 5 SUR KM 919OSORNO",2000251323,null,null,null,null,null,"EULEN CHILE SOCIEDAD ANONIMA ","METRO NORTE","AGENCIA PROVIDENCIA","EPCE3603","BENITEZ VERGARA LORAINE ELIZABE",2000251384,"CALLE ANTONIO VARAS 2500","PROVIDENCIA",1,"CALLE ANTONIO VARAS 2500PROVIDENCIA",2000251384,2000251384]
["TRONCAL 4 VIENTOS KM 962","OSORNO","TRONCAL 4 VIENTOS KM 962OSORNO",2000251413,null,null,null,null,null,"EULEN CHILE SOCIEDAD ANONIMA ","METRO NORTE","AGENCIA PROVIDENCIA","EPCE3603","BENITEZ VERGARA LORAINE ELIZABE",2000251591,"CALLE ANTONIO VARAS 360","PROVIDENCIA",1,"CALLE ANTONIO VARAS 360PROVIDENCIA",2000251591,2000251591]
["CALLE MIGUEL AGUIRRE 280","OVALLE","CALLE MIGUEL AGUIRRE 280OVALLE",2000251386,null,null,null,null,null,"EULEN CHILE SOCIEDAD ANONIMA ","METRO NORTE","AGENCIA SANTIAGO","EPCE4206","LAZO ESCUDERO RAUL",2000251392,"CALLE ARTURO PRAT 285","SANTIAGO",1,"CALLE ARTURO PRAT 285SANTIAGO",2000251392,2000251392]
["PLANTA DELTA BARRIO 5","OVALLE","PLANTA DELTA BARRIO 5OVALLE",2000251649,null,null,null,null,null,"EULEN CHILE SOCIEDAD ANONIMA ","METRO NORTE","AGENCIA SANTIAGO","EPCE4206","LAZO ESCUDERO RAUL",2000251566,"CALLE ARTURO PRAT 368","SANTIAGO",1,"CALLE ARTURO PRAT 368SANTIAGO",2000251566,2000251566]
["SAN ALBERTO HURTADO 3295","PADRE_HURTADO","SAN ALBERTO HURTADO 3295PADRE_HURTADO",2000251467,null,null,null,null,null,"EULEN CHILE SOCIEDAD ANONIMA ","NORTE","AGENCIA ANTOFAGASTA","EPCE1202","MORA OLIVERA PAULINA ",2000251340,"CALLE ARTURO PRAT 619","ANTOFAGASTA",1,"CALLE ARTURO PRAT 619ANTOFAGASTA",2000251340,2000251340]
["TRONCAL ANGOSTURA 57","PAINE","TRONCAL ANGOSTURA 57PAINE",2000251444,null,null,null,null,null,"EULEN CHILE SOCIEDAD ANONIMA ","CENTRO NORTE","AGENCIA VIÑA DEL MAR / VALPARAISO","EPCE4701","MENEGHINI VALET SHIRLEY",2000251371,"CALLE ARTURO PRAT 656","VALPARAISO",1,"CALLE ARTURO PRAT 656VALPARAISO",2000251371,2000251371]
["AUTOPISTA ITATA KM 60","PENCO","AUTOPISTA ITATA KM 60PENCO",2000251347,null,null,null,null,null,"EULEN CHILE SOCIEDAD ANONIMA ","NORTE","AGENCIA COPIAPO","EPCE1902","CORTES VILLEGAS SHEYLA STEFANIE",2000251306,"CALLE ATACAMA 686","COPIAPO",1,"CALLE ATACAMA 686COPIAPO",2000251306,2000251306]
["AV.PEÑALOLEN 1340","PEÑALOLEN","AV.PEÑALOLEN 1340PEÑALOLEN",2000251420,null,null,null,null,null,"EULEN CHILE SOCIEDAD ANONIMA ","SUR","AGENCIA VALDIVIA / OSORNO","EPCE4501","TOLEDO REYES PABLO",2000251239,"CALLE BARROS ARANA 1150","MARIQUINA",1,"CALLE BARROS ARANA 1150MARIQUINA",2000251239,2000251239]
["AV.QUILIN 5473","PEÑALOLEN","AV.QUILIN 5473PEÑALOLEN",2000251626,null,null,null,null,null,"EULEN CHILE SOCIEDAD ANONIMA ","SUR","AGENCIA VALDIVIA / OSORNO","EPCE3301","LEIGHTON GALLARDO WALESKA KATHERI",2000251638,"CALLE BILBAO","OSORNO",1,"CALLE BILBAOOSORNO",2000251638,2000251638]
["FAENA NUEVA VICTORIA","POZO_ALMONTE","FAENA NUEVA VICTORIAPOZO_ALMONTE",2000251652,null,null,null,null,null,"EULEN CHILE SOCIEDAD ANONIMA ","SUR","AGENCIA VALDIVIA / OSORNO","EPCE3301","LEIGHTON GALLARDO WALESKA KATHERI",2000251632,"CALLE BILBAO 1129 OF.509","OSORNO",1,"CALLE BILBAO 1129 OF.509OSORNO",2000251632,2000251632]
["AV.11 DE SEPT 2155 L.10-13","PROVIDENCIA","AV.11 DE SEPT 2155 L.10-13PROVIDENCIA",2000251292,null,null,null,null,null,"EULEN CHILE SOCIEDAD ANONIMA ","METRO NORTE","AGENCIA SANTIAGO","EPCE4206","LAZO ESCUDERO RAUL",2000251497,"CALLE BILNES 351","SANTIAGO",1,"CALLE BILNES 351SANTIAGO",2000251497,2000251497]
["AV.11 DE SEPTIEMBRE 210","PROVIDENCIA","AV.11 DE SEPTIEMBRE 210PROVIDENCIA",2000251486,null,null,null,null,null,"EULEN CHILE SOCIEDAD ANONIMA ","SUR","AGENCIA CHILOE","EPCE1701","OYARZO GALINDO CELSO DAGOBERTO",2000251311,"CALLE BLANCO ENCALADA 324 LOC 2","CASTRO",1,"CALLE BLANCO ENCALADA 324 LOC 2CASTRO",2000251311,2000251311]
["AV.ANTONIO VARAS 3601","PROVIDENCIA","AV.ANTONIO VARAS 3601PROVIDENCIA",2000251490,null,null,null,null,null,"EULEN CHILE SOCIEDAD ANONIMA ","METRO SUR","AGENCIA VALLES DEL MAIPO","EPCE4603","VERA DIAZ BERNARDITA DEL",2000251456,"CALLE BUENOS AIRES 720","SAN BERNARDO",1,"CALLE BUENOS AIRES 720SAN BERNARDO",2000251456,2000251456]
["AV.EDIFICIO PHILLIPS","PROVIDENCIA","AV.EDIFICIO PHILLIPSPROVIDENCIA",2000251533,null,null,null,null,null,"EULEN CHILE SOCIEDAD ANONIMA ","METRO NORTE","AGENCIA SANTIAGO","EPCE4206","LAZO ESCUDERO RAUL",2000251650,"CALLE BUERAS 112","SANTIAGO",1,"CALLE BUERAS 112SANTIAGO",2000251650,2000251650]
["AV.FERNANDO MANDIOLA 0789","PROVIDENCIA","AV.FERNANDO MANDIOLA 0789PROVIDENCIA",2000251535,null,null,null,null,null,"EULEN CHILE SOCIEDAD ANONIMA ","METRO NORTE","AGENCIA LAS CONDES","EPCE2805","IASALVATORE BRAVO ANGELINA MARJOR",2000251297,"CALLE CALLAO 2928","LAS CONDES",1,"CALLE CALLAO 2928LAS CONDES",2000251297,2000251297]
["AV.FRACISCO BILBAO 1439","PROVIDENCIA","AV.FRACISCO BILBAO 1439PROVIDENCIA",2000251469,null,null,null,null,null,"EULEN CHILE SOCIEDAD ANONIMA ","SUR","AGENCIA TEMUCO","EPCE4402","HORMAZABAL MORA CHRISTIAN JAVIE",2000251643,"CALLE CAMILO HENRIQUEZ SN 01","VILLARRICA",1,"CALLE CAMILO HENRIQUEZ SN 01VILLARRICA",2000251643,2000251643]
["AV.ISIDORA GOYENECHEA 2800 P34","PROVIDENCIA","AV.ISIDORA GOYENECHEA 2800 P34PROVIDENCIA",2000251514,null,null,null,null,null,"EULEN CHILE SOCIEDAD ANONIMA ","METRO NORTE","AGENCIA LAS CONDES","EPCE2805","IASALVATORE BRAVO ANGELINA MARJOR",2000251222,"CALLE CAMINO LAS FLORES 12870","LAS CONDES",1,"CALLE CAMINO LAS FLORES 12870LAS CONDES",2000251222,2000251222]
["AV.LOS LEONES 325","PROVIDENCIA","AV.LOS LEONES 325PROVIDENCIA",2000435344,null,null,null,null,null,"EULEN CHILE SOCIEDAD ANONIMA ","METRO NORTE","AGENCIA LAS CONDES","EPCE2805","IASALVATORE BRAVO ANGELINA MARJOR",2000251206,"CALLE CAMINO REAL 4518","LO BARNECHEA",1,"CALLE CAMINO REAL 4518LO BARNECHEA",2000251206,2000251206]
["AV.LOS LEONES 439","PROVIDENCIA","AV.LOS LEONES 439PROVIDENCIA",2000251512,null,null,null,null,null,"EULEN CHILE SOCIEDAD ANONIMA ","CENTRO NORTE","AGENCIA VIÑA DEL MAR / VALPARAISO","EPMX4801","GOMEZ GONZALEZ JOEY ANDRES",2000251274,"CALLE CARRERA 683","CALERA",1,"CALLE CARRERA 683CALERA",2000251274,2000251274]
["AV.MANUEL MONNT 367","PROVIDENCIA","AV.MANUEL MONNT 367PROVIDENCIA",2000251539,null,null,null,null,null,"EULEN CHILE SOCIEDAD ANONIMA ","METRO NORTE","AGENCIA SANTIAGO","EPCE4206","LAZO ESCUDERO RAUL",2000251422,"CALLE CATEDRAL 1217","SANTIAGO",1,"CALLE CATEDRAL 1217SANTIAGO",2000251422,2000251422]
["AV.MANUEL MONTT 367","PROVIDENCIA","AV.MANUEL MONTT 367PROVIDENCIA",2000251277,null,null,null,null,null,"EULEN CHILE SOCIEDAD ANONIMA ","CENTRO NORTE","AGENCIA RUTA DEL SOL","EPMX3901","SOTO SALVATIERRA MARIA PAZ",2000251344,"CALLE CENTENARIO 35","SAN ANTONIO",1,"CALLE CENTENARIO 35SAN ANTONIO",2000251344,2000251344]
["AV.NVA LYON 072","PROVIDENCIA","AV.NVA LYON 072PROVIDENCIA",2000251540,null,null,null,null,null,"EULEN CHILE SOCIEDAD ANONIMA ","CENTRO NORTE","AGENCIA VIÑA DEL MAR / VALPARAISO","EPCE4701","MENEGHINI VALET SHIRLEY",2000251342,"CALLE CHACABUCO 2701","VALPARAISO",1,"CALLE CHACABUCO 2701VALPARAISO",2000251342,2000251342]
["AV.OBISPO DONOSO 6","PROVIDENCIA","AV.OBISPO DONOSO 6PROVIDENCIA",2000251508,null,null,null,null,null,"EULEN CHILE SOCIEDAD ANONIMA ","CENTRO NORTE","AGENCIA ACONCAGUA","EPCE1001","SALAS MIÑO MARCIA",2000251278,"CALLE CHORRILLOS 21 VIÑA ERRAZURIZ","SAN FELIPE",1,"CALLE CHORRILLOS 21 VIÑA ERRAZURIZSAN FELIPE",2000251278,2000251278]
["AV.PEDRO DE VALDIVIA 1509","PROVIDENCIA","AV.PEDRO DE VALDIVIA 1509PROVIDENCIA",2000251276,null,null,null,null,null,"EULEN CHILE SOCIEDAD ANONIMA ","NORTE","AGENCIA ARICA","EPCE1401","FERNANDEZ LUEIZA VICTOR HUGO",2000251208,"CALLE COLON 646 OF.171","ARICA",1,"CALLE COLON 646 OF.171ARICA",2000251208,2000251208]
["AV.PROVIDENCIA 111 P25","PROVIDENCIA","AV.PROVIDENCIA 111 P25PROVIDENCIA",2000251397,null,null,null,null,null,"EULEN CHILE SOCIEDAD ANONIMA ","CENTRO NORTE","AGENCIA ACONCAGUA","EPCE1001","SALAS MIÑO MARCIA",2000251273,"CALLE COMBATE DE COIMAS 1112 EX 152","SAN FELIPE",1,"CALLE COMBATE DE COIMAS 1112 EX 152SAN FELIPE",2000251273,2000251273]
["AV.PROVIDENCIA 1909","PROVIDENCIA","AV.PROVIDENCIA 1909PROVIDENCIA",2000251449,null,null,null,null,null,"EULEN CHILE SOCIEDAD ANONIMA ","NORTE","AGENCIA ANTOFAGASTA","EPCE1202","MORA OLIVERA PAULINA ",2000251210,"CALLE DIAZ GANA 1063","ANTOFAGASTA",1,"CALLE DIAZ GANA 1063ANTOFAGASTA",2000251210,2000251210]
["AV.PROVIDENCIA 2283","PROVIDENCIA","AV.PROVIDENCIA 2283PROVIDENCIA",2000251489,null,null,null,null,null,"EULEN CHILE SOCIEDAD ANONIMA ","METRO SUR","AGENCIA RANCAGUA","EPCE3802","BOILLOT VILLEGAS TANIA ANGELICA",2000251201,"CALLE DIEGO DE ALMAGRO 507","RANCAGUA",1,"CALLE DIEGO DE ALMAGRO 507RANCAGUA",2000251201,2000251201]
["AV.PROVIDENCIA 2653 P14-16-18-19-20","PROVIDENCIA","AV.PROVIDENCIA 2653 P14-16-18-19-20PROVIDENCIA",2000251544,null,null,null,null,null,"EULEN CHILE SOCIEDAD ANONIMA ","METRO NORTE","AGENCIA LAS CONDES","EPCE2805","IASALVATORE BRAVO ANGELINA MARJOR",2000251298,"CALLE DON CARLOS 2939","LAS CONDES",1,"CALLE DON CARLOS 2939LAS CONDES",2000251298,2000251298]
["AV.PROVIDENCIA 341","PROVIDENCIA","AV.PROVIDENCIA 341PROVIDENCIA",2000251661,null,null,null,null,null,"EULEN CHILE SOCIEDAD ANONIMA ","SUR","AGENCIA CONCEPCION","EPCE1802","MARIN GALINDO RYAN FELIPE",2000251205,"CALLE EDMUNDO LARENAS 36","CONCEPCION",1,"CALLE EDMUNDO LARENAS 36CONCEPCION",2000251205,2000251205]
["AV.SUECIA 211","PROVIDENCIA","AV.SUECIA 211PROVIDENCIA",2000251494,null,null,null,null,null,"EULEN CHILE SOCIEDAD ANONIMA ","METRO NORTE","AGENCIA SANTIAGO","EPCE4206","LAZO ESCUDERO RAUL",2000251232,"CALLE EJERCITO 146","SANTIAGO",1,"CALLE EJERCITO 146SANTIAGO",2000251232,2000251232]
["CALLE ANTONIO VARAS 2500","PROVIDENCIA","CALLE ANTONIO VARAS 2500PROVIDENCIA",2000251384,null,null,null,null,null,"EULEN CHILE SOCIEDAD ANONIMA ","SUR","AGENCIA PUERTO MONTT / COYHAIQUE","EPMX2104","YUSEF CONTRERAS CHRISTIAN ALEXANDER",2000251610,"CALLE EUSEBIO LILLO 20","COIHAIQUE",1,"CALLE EUSEBIO LILLO 20COIHAIQUE",2000251610,2000251610]
["CALLE ANTONIO VARAS 360","PROVIDENCIA","CALLE ANTONIO VARAS 360PROVIDENCIA",2000251591,null,null,null,null,null,"EULEN CHILE SOCIEDAD ANONIMA ","METRO NORTE","AGENCIA LAS CONDES","EPCE2805","IASALVATORE BRAVO ANGELINA MARJOR",2000251400,"CALLE FELIX DE AMESTI 124 P9","LAS CONDES",1,"CALLE FELIX DE AMESTI 124 P9LAS CONDES",2000251400,2000251400]
["CALLE HOLANDA 100","PROVIDENCIA",{"$f":"+A259&B259","v":"CALLE HOLANDA 100PROVIDENCIA"},2000251398,null,null,null,null,null,"EULEN CHILE SOCIEDAD ANONIMA ","METRO NORTE","AGENCIA LAS CONDES","EPCE2805","IASALVATORE BRAVO ANGELINA MARJOR",2000251549,"CALLE FERNANDEZ CONCHA 2124","LAS CONDES",{"$f":"+COUNTIF(P:P,P259)","v":2},{"$f":"+P259&Q259","v":"CALLE FERNANDEZ CONCHA 2124LAS CONDES"},{"$f":"+O259","v":2000251549},{"$f":"+VLOOKUP(T259,$D$2:$D$432,1,0)","v":{"$error":"#N/A"}},"eliminar"]
["CALLE MONSEÑOR SOTERO SANZ 51","PROVIDENCIA","CALLE MONSEÑOR SOTERO SANZ 51PROVIDENCIA",2000251496,null,null,null,null,null,"EULEN CHILE SOCIEDAD ANONIMA ","METRO SUR","AGENCIA LA FLORIDA / SAN MIGUEL","EPCE2604","VELASCO MOYA MARIA FERNANDA",2000251552,"CALLE FERNANDEZ CONCHA 2124","SAN JOAQUIN",2,"CALLE FERNANDEZ CONCHA 2124SAN JOAQUIN",2000251552,2000251552]
["CALLE RANCAGUA 0544","PROVIDENCIA","CALLE RANCAGUA 0544PROVIDENCIA",2000251216,null,null,null,null,null,"EULEN CHILE SOCIEDAD ANONIMA ","CENTRO NORTE","AGENCIA ELQUI","EPCE2701","MADRID BARRALES KARLA",2000251214,"CALLE FRANKLIN DELANO R 887","LA SERENA",1,"CALLE FRANKLIN DELANO R 887LA SERENA",2000251214,2000251214]
["CALLE RUTA F 30","PUCHUNCAVI","CALLE RUTA F 30PUCHUNCAVI",2000251644,null,null,null,null,null,"EULEN CHILE SOCIEDAD ANONIMA ","CENTRO NORTE","AGENCIA ACONCAGUA","EPRD1001","MOLINA OLIVARES VICTOR HUGO",2000251645,"CALLE FREIRE 473","LOS ANDES",1,"CALLE FREIRE 473LOS ANDES",2000251645,2000251645]
["CALLE URRUTIA 472","PUCON","CALLE URRUTIA 472PUCON",2000251611,null,null,null,null,null,"EULEN CHILE SOCIEDAD ANONIMA ","SUR","AGENCIA CHILOE","EPCE1701","OYARZO GALINDO CELSO DAGOBERTO",2000251374,"CALLE FREIRE 498","CASTRO",1,"CALLE FREIRE 498CASTRO",2000251374,2000251374]
["AMERICO VESPUCIO 1373","PUDAHUEL","AMERICO VESPUCIO 1373PUDAHUEL",2000251256,null,null,null,null,null,"EULEN CHILE SOCIEDAD ANONIMA ","SUR","AGENCIA VALDIVIA / OSORNO","EPCE3301","LEIGHTON GALLARDO WALESKA KATHERI",2000251628,"CALLE FREIRE 515","OSORNO",1,"CALLE FREIRE 515OSORNO",2000251628,2000251628]
["RIO TATA 1296","PUDAHUEL","RIO TATA 1296PUDAHUEL",2000251388,null,null,null,null,null,"EULEN CHILE SOCIEDAD ANONIMA ","SUR","AGENCIA VALDIVIA / OSORNO","EPCE3301","LEIGHTON GALLARDO WALESKA KATHERI",2000251630,"CALLE FREIRE 624","OSORNO",1,"CALLE FREIRE 624OSORNO",2000251630,2000251630]
["CALLE LOS VIENTOS 20254","PUDAHUEL","CALLE LOS VIENTOS 20254PUDAHUEL",2000251395,null,null,null,null,null,"EULEN CHILE SOCIEDAD ANONIMA ","SUR","AGENCIA VALDIVIA / OSORNO","EPCE4501","TOLEDO REYES PABLO",2000251432,"CALLE GARCIA REYES 570","VALDIVIA",1,"CALLE GARCIA REYES 570VALDIVIA",2000251432,2000251432]
["CALLE LO AGUIRE 01","PUDAHUEL","CALLE LO AGUIRE 01PUDAHUEL",2000251651,null,null,null,null,null,"EULEN CHILE SOCIEDAD ANONIMA ","METRO SUR","AGENCIA LA FLORIDA / SAN MIGUEL","EPCE2604","VELASCO MOYA MARIA FERNANDA",2000251236,"CALLE GENERAL ARRIAGADA 450","LA FLORIDA",1,"CALLE GENERAL ARRIAGADA 450LA FLORIDA",2000251236,2000251236]
["AV.BALMACEDA 371 OF 305 309 310","PUENTE_ALTO","AV.BALMACEDA 371 OF 305 309 310PUENTE_ALTO",2000251284,null,null,null,null,null,"EULEN CHILE SOCIEDAD ANONIMA ","METRO NORTE","AGENCIA SANTIAGO","EPCE4206","LAZO ESCUDERO RAUL",2000251233,"CALLE GENERAL JOFRE 462","SANTIAGO",1,"CALLE GENERAL JOFRE 462SANTIAGO",2000251233,2000251233]
["AV.CAMILO HENRIQUEZ 3269","PUENTE_ALTO","AV.CAMILO HENRIQUEZ 3269PUENTE_ALTO",2000251572,null,null,null,null,null,"EULEN CHILE SOCIEDAD ANONIMA ","METRO NORTE","AGENCIA LAS CONDES","EPCE2805","IASALVATORE BRAVO ANGELINA MARJOR",2000251464,"CALLE GERTRUDIS ECHEÑIQUE 49","LAS CONDES",1,"CALLE GERTRUDIS ECHEÑIQUE 49LAS CONDES",2000251464,2000251464]
["BALMACEDA 317","PUENTE_ALTO","BALMACEDA 317PUENTE_ALTO",2000251254,null,null,null,null,null,"EULEN CHILE SOCIEDAD ANONIMA ","NORTE","AGENCIA IQUIQUE","EPCE2501","GUTIERREZ MENESES ALEX OMAR",2000251211,"CALLE GOROSTIAGA 463","IQUIQUE",1,"CALLE GOROSTIAGA 463IQUIQUE",2000251211,2000251211]
["ANTONIO VARAS 650","PUERTO_MONTT","ANTONIO VARAS 650PUERTO_MONTT",2000251366,null,null,null,null,null,"EULEN CHILE SOCIEDAD ANONIMA ","METRO NORTE","AGENCIA PROVIDENCIA","EPCE3603","BENITEZ VERGARA LORAINE ELIZABE",2000251398,"CALLE HOLANDA 100","PROVIDENCIA",1,"CALLE HOLANDA 100PROVIDENCIA",2000251398,2000251398]
["BENAVENTE 536","PUERTO_MONTT","BENAVENTE 536PUERTO_MONTT",2000251367,null,null,null,null,null,"EULEN CHILE SOCIEDAD ANONIMA ","METRO SUR","AGENCIA RANCAGUA","EPCE3802","BOILLOT VILLEGAS TANIA ANGELICA",2000251346,"CALLE IRARRAZAVAL 319","MACHALI",1,"CALLE IRARRAZAVAL 319MACHALI",2000251346,2000251346]
["CALLE MADRE PAULINA 345","PUERTO_MONTT","CALLE MADRE PAULINA 345PUERTO_MONTT",2000251202,null,null,null,null,null,"EULEN CHILE SOCIEDAD ANONIMA ","METRO NORTE","AGENCIA LAS CONDES","EPCE2805","IASALVATORE BRAVO ANGELINA MARJOR",2000251457,"CALLE ISIDORA GOYNECHEA 2800","LAS CONDES",1,"CALLE ISIDORA GOYNECHEA 2800LAS CONDES",2000251457,2000251457]
["CAMINO A PARGUA KM4","PUERTO_MONTT","CAMINO A PARGUA KM4PUERTO_MONTT",2000251605,null,null,null,null,null,"EULEN CHILE SOCIEDAD ANONIMA ","METRO NORTE","AGENCIA LAS CONDES","EPCE2805","IASALVATORE BRAVO ANGELINA MARJOR",2000251558,"CALLE ISIDORA GOYNECHEA 3051","LAS CONDES",1,"CALLE ISIDORA GOYNECHEA 3051LAS CONDES",2000251558,2000251558]
["EJERCITO 360","PUERTO_MONTT","EJERCITO 360PUERTO_MONTT",2000251365,null,null,null,null,null,"EULEN CHILE SOCIEDAD ANONIMA ","NORTE","AGENCIA ANTOFAGASTA","EPCE1202","MORA OLIVERA PAULINA ",2000251334,"CALLE LA TORRE 2357 OF.25","ANTOFAGASTA",1,"CALLE LA TORRE 2357 OF.25ANTOFAGASTA",2000251334,2000251334]
["PEAJE LATERAL TRAPEN","PUERTO_MONTT","PEAJE LATERAL TRAPENPUERTO_MONTT",2000251664,null,null,null,null,null,"EULEN CHILE SOCIEDAD ANONIMA ","METRO NORTE","AGENCIA LIBERTADORES","EPCE2901","ADAMS LOPEZ CATALINA DE LOS",2000251235,"CALLE LAS ENCINAS 1777","LAMPA",1,"CALLE LAS ENCINAS 1777LAMPA",2000251235,2000251235]
["RUTA 5 SUR KM 1019","PUERTO_MONTT","RUTA 5 SUR KM 1019PUERTO_MONTT",2000251363,null,null,null,null,null,"EULEN CHILE SOCIEDAD ANONIMA ","CENTRO NORTE","AGENCIA VIÑA DEL MAR / VALPARAISO","EPMX4801","GOMEZ GONZALEZ JOEY ANDRES",2000251621,"CALLE LAUTARO 1101","CALERA",1,"CALLE LAUTARO 1101CALERA",2000251621,2000251621]
["RUTA 5 SUR KM 920","PUERTO_MONTT","RUTA 5 SUR KM 920PUERTO_MONTT",2000251362,null,null,null,null,null,"EULEN CHILE SOCIEDAD ANONIMA ","METRO SUR","AGENCIA TALCA","EPCE4303","PAVEZ GUTIERREZ KATHERINE ANDRE",2000251608,"CALLE LAUTARO 514","LINARES",1,"CALLE LAUTARO 514LINARES",2000251608,2000251608]
["LATERAL KM 1007","PUERTO_VARAS","LATERAL KM 1007PUERTO_VARAS",2000251410,null,null,null,null,null,"EULEN CHILE SOCIEDAD ANONIMA ","METRO SUR","AGENCIA CURICO","EPCE2202","QUIÑONES LOPEZ ALEXIS ANDRES",2000251660,"CALLE LONGITUDINAL SUR KM 162","TENO",1,"CALLE LONGITUDINAL SUR KM 162TENO",2000251660,2000251660]
["RUTA 5 SUR   KM 1005","PUERTO_VARAS","RUTA 5 SUR   KM 1005PUERTO_VARAS",2000251369,null,null,null,null,null,"EULEN CHILE SOCIEDAD ANONIMA ","SUR","AGENCIA VALDIVIA / OSORNO","EPCE3301","LEIGHTON GALLARDO WALESKA KATHERI",2000251636,"CALLE LORD COCHRANE 614","OSORNO",1,"CALLE LORD COCHRANE 614OSORNO",2000251636,2000251636]
["CALLE PEDRO MONTT 913","PUNTA_ARENAS","CALLE PEDRO MONTT 913PUNTA_ARENAS",2000251221,null,null,null,null,null,"EULEN CHILE SOCIEDAD ANONIMA ","SUR","AGENCIA LOS ANGELES","EPCE3001","NOVOA TOLEDO DANIEL ISAAC",2000251215,"CALLE LOS CARRERAS 235","LOS ANGELES",1,"CALLE LOS CARRERAS 235LOS ANGELES",2000251215,2000251215]
["COLON 680","PUNTA_ARENAS","COLON 680PUNTA_ARENAS",2000251326,null,null,null,null,null,"EULEN CHILE SOCIEDAD ANONIMA ","CENTRO NORTE","AGENCIA VIÑA DEL MAR / VALPARAISO","EPMX4803","ROGEL ROJAS CELIA JOHANA",2000251212,"CALLE LOS CASTAÑOS 67","VIÑA DEL MAR",1,"CALLE LOS CASTAÑOS 67VIÑA DEL MAR",2000251212,2000251212]
["ERRAZURIZ 798","PUNTA_ARENAS","ERRAZURIZ 798PUNTA_ARENAS",2000251327,null,null,null,null,null,"EULEN CHILE SOCIEDAD ANONIMA ","METRO NORTE","AGENCIA LAS CONDES","EPCE2805","IASALVATORE BRAVO ANGELINA MARJOR",2000251294,"CALLE LOS MILITARES 6640","LAS CONDES",1,"CALLE LOS MILITARES 6640LAS CONDES",2000251294,2000251294]
["ESPAÑA 869","PUNTA_ARENAS","ESPAÑA 869PUNTA_ARENAS",2000251328,null,null,null,null,null,"EULEN CHILE SOCIEDAD ANONIMA ","METRO NORTE","AGENCIA LAS CONDES","EPCE2805","IASALVATORE BRAVO ANGELINA MARJOR",2000251455,"CALLE LUIS PASTEUR 5280 P4","LAS CONDES",1,"CALLE LUIS PASTEUR 5280 P4LAS CONDES",2000251455,2000251455]
["PJE.KORNER 1098","PUNTA_ARENAS","PJE.KORNER 1098PUNTA_ARENAS",2000251442,null,null,null,null,null,"EULEN CHILE SOCIEDAD ANONIMA ","METRO NORTE","AGENCIA SANTIAGO","EPCE4206","LAZO ESCUDERO RAUL",2000251547,"CALLE MAC IVER 225","SANTIAGO",1,"CALLE MAC IVER 225SANTIAGO",2000251547,2000251547]
["RUTA 5 SUR KM 957","PURRANQUE","RUTA 5 SUR KM 957PURRANQUE",2000251325,null,null,null,null,null,"EULEN CHILE SOCIEDAD ANONIMA ","SUR","AGENCIA PUERTO MONTT / COYHAIQUE","EPCE3701","MASSRI RUIZ EDUARDO WALTER",2000251202,"CALLE MADRE PAULINA 345","PUERTO MONTT",1,"CALLE MADRE PAULINA 345PUERTO MONTT",2000251202,2000251202]
["ADUANA PAJARITOS","PUYEHUE","ADUANA PAJARITOSPUYEHUE",2000251640,null,null,null,null,null,"EULEN CHILE SOCIEDAD ANONIMA ","METRO NORTE","AGENCIA LAS CONDES","EPCE2805","IASALVATORE BRAVO ANGELINA MARJOR",2000251462,"CALLE MAGDALENA 140 P15","LAS CONDES",1,"CALLE MAGDALENA 140 P15LAS CONDES",2000251462,2000251462]
["AV.AMERICO VESPUCIO 1001","QUILICURA","AV.AMERICO VESPUCIO 1001QUILICURA",2000251523,null,null,null,null,null,"EULEN CHILE SOCIEDAD ANONIMA ","SUR","AGENCIA CHILLAN","EPMX1604","CANALES GALDAMES SERGIO ANTONIO",2000251244,"CALLE MAIPON 577","CHILLAN",1,"CALLE MAIPON 577CHILLAN",2000251244,2000251244]
["AV.AMERICO VESPUCIO 1737","QUILICURA","AV.AMERICO VESPUCIO 1737QUILICURA",2000251487,null,null,null,null,null,"EULEN CHILE SOCIEDAD ANONIMA ","CENTRO NORTE","AGENCIA ACONCAGUA","EPRD1001","MOLINA OLIVARES VICTOR HUGO",2000251272,"CALLE MAIPU 559","LOS ANDES",1,"CALLE MAIPU 559LOS ANDES",2000251272,2000251272]
["AV.CAUPOLICAN 9600","QUILICURA","AV.CAUPOLICAN 9600QUILICURA",2000251373,null,null,null,null,null,"EULEN CHILE SOCIEDAD ANONIMA ","METRO NORTE","AGENCIA LAS CONDES","EPCE2805","IASALVATORE BRAVO ANGELINA MARJOR",2000251663,"CALLE MARTIN DE ZAMORA 5309","LAS CONDES",1,"CALLE MARTIN DE ZAMORA 5309LAS CONDES",2000251663,2000251663]
["AV.SAN IGNACIO 500","QUILICURA","AV.SAN IGNACIO 500QUILICURA",2000251476,null,null,null,null,null,"EULEN CHILE SOCIEDAD ANONIMA ","METRO NORTE","AGENCIA SANTIAGO","EPCE4206","LAZO ESCUDERO RAUL",2000251578,"CALLE MERCED 472","SANTIAGO",1,"CALLE MERCED 472SANTIAGO",2000251578,2000251578]
["MALL QUILICURA","QUILICURA","MALL QUILICURAQUILICURA",2000251518,null,null,null,null,null,"EULEN CHILE SOCIEDAD ANONIMA ","CENTRO NORTE","AGENCIA OVALLE","EPCE3401","CORTES RIVERA ADOLFO GUILLERM",2000251386,"CALLE MIGUEL AGUIRRE 280","OVALLE",1,"CALLE MIGUEL AGUIRRE 280OVALLE",2000251386,2000251386]
["RUTA 60 CH KM25","QUILLOTA","RUTA 60 CH KM25QUILLOTA",2000251616,null,null,null,null,null,"EULEN CHILE SOCIEDAD ANONIMA ","METRO NORTE","AGENCIA SANTIAGO","EPCE4206","LAZO ESCUDERO RAUL",2000251445,"CALLE MIRAFLORES 222","SANTIAGO",1,"CALLE MIRAFLORES 222SANTIAGO",2000251445,2000251445]
["CALLE SEXTA 678","QUILPUE","CALLE SEXTA 678QUILPUE",2000251303,null,null,null,null,null,"EULEN CHILE SOCIEDAD ANONIMA ","METRO NORTE","AGENCIA PROVIDENCIA","EPCE3603","BENITEZ VERGARA LORAINE ELIZABE",2000251496,"CALLE MONSEÑOR SOTERO SANZ 51","PROVIDENCIA",1,"CALLE MONSEÑOR SOTERO SANZ 51PROVIDENCIA",2000251496,2000251496]
["CALLE SEXTA 789","QUILPUE","CALLE SEXTA 789QUILPUE",2000251264,null,null,null,null,null,"EULEN CHILE SOCIEDAD ANONIMA ","METRO NORTE","AGENCIA SANTIAGO","EPCE4206","LAZO ESCUDERO RAUL",2000251330,"CALLE MORANDE 330","SANTIAGO",1,"CALLE MORANDE 330SANTIAGO",2000251330,2000251330]
["CALLE MARTINEZ DE ROZAS 3887","QUINTA_NORMAL","CALLE MARTINEZ DE ROZAS 3887QUINTA_NORMAL",2000251430,null,null,null,null,null,"EULEN CHILE SOCIEDAD ANONIMA ","METRO NORTE","AGENCIA LAS CONDES","EPCE2805","IASALVATORE BRAVO ANGELINA MARJOR",2000251596,"CALLE NUESTRA SEÑORA DEL ROSARI 850","LAS CONDES",1,"CALLE NUESTRA SEÑORA DEL ROSARI 850LAS CONDES",2000251596,2000251596]
["AV.LEONCIO FERNANDEZ 2655","QUINTA_NORMAL","AV.LEONCIO FERNANDEZ 2655QUINTA_NORMAL",2000251589,null,null,null,null,null,"EULEN CHILE SOCIEDAD ANONIMA ","SUR","AGENCIA VALDIVIA / OSORNO","EPCE3301","LEIGHTON GALLARDO WALESKA KATHERI",2000251634,"CALLE OHIGGINS","OSORNO",1,"CALLE OHIGGINSOSORNO",2000251634,2000251634]
["ALAMEDA 634","RANCAGUA","ALAMEDA 634RANCAGUA",2000251377,null,null,null,null,null,"EULEN CHILE SOCIEDAD ANONIMA ","SUR","AGENCIA VALDIVIA / OSORNO","EPCE3301","LEIGHTON GALLARDO WALESKA KATHERI",2000251639,"CALLE OHIGGINS 500","OSORNO",1,"CALLE OHIGGINS 500OSORNO",2000251639,2000251639]
["AV.EDO.FREI MONTALVA 190","RANCAGUA","AV.EDO.FREI MONTALVA 190RANCAGUA",2000251345,null,null,null,null,null,"EULEN CHILE SOCIEDAD ANONIMA ","CENTRO NORTE","AGENCIA ACONCAGUA","EPMX1002","OSORIO ARAVENA PILAR ANDREA",2000251268,"CALLE ORTIZ DE ROSAS 562","LA LIGUA",1,"CALLE ORTIZ DE ROSAS 562LA LIGUA",2000251268,2000251268]
["CALLE DIEGO DE ALMAGRO 507","RANCAGUA","CALLE DIEGO DE ALMAGRO 507RANCAGUA",2000251201,null,null,null,null,null,"EULEN CHILE SOCIEDAD ANONIMA ","CENTRO NORTE","AGENCIA ACONCAGUA","EPMX1002","OSORIO ARAVENA PILAR ANDREA",2000251271,"CALLE ORTIZ DE ROZAS 624","LA LIGUA",1,"CALLE ORTIZ DE ROZAS 624LA LIGUA",2000251271,2000251271]
["ASCANIO BASCUÑAN 1048","RENCA","ASCANIO BASCUÑAN 1048RENCA",2000251375,null,null,null,null,null,"EULEN CHILE SOCIEDAD ANONIMA ","METRO NORTE","AGENCIA SANTIAGO","EPCE4206","LAZO ESCUDERO RAUL",2000251245,"CALLE PEDRO MONTT 1606","SANTIAGO",1,"CALLE PEDRO MONTT 1606SANTIAGO",2000251245,2000251245]
["AV.CENTENARIO 1","SAN_ANTONIO","AV.CENTENARIO 1SAN_ANTONIO",2000251370,null,null,null,null,null,"EULEN CHILE SOCIEDAD ANONIMA ","METRO SUR","AGENCIA CURICO","EPCE2202","QUIÑONES LOPEZ ALEXIS ANDRES",2000251307,"CALLE PEÑA 555","CURICO",1,"CALLE PEÑA 555CURICO",2000251307,2000251307]
["CALLE CENTENARIO 35","SAN_ANTONIO","CALLE CENTENARIO 35SAN_ANTONIO",2000251344,null,null,null,null,null,"EULEN CHILE SOCIEDAD ANONIMA ","CENTRO NORTE","AGENCIA VIÑA DEL MAR / VALPARAISO","EPCE4701","MENEGHINI VALET SHIRLEY",2000251385,"CALLE PLAYA ANCHA 150","VALPARAISO",1,"CALLE PLAYA ANCHA 150VALPARAISO",2000251385,2000251385]
["AV.ARTURO PRATT 298","SAN_BERNARDO","AV.ARTURO PRATT 298SAN_BERNARDO",2000251577,null,null,null,null,null,"EULEN CHILE SOCIEDAD ANONIMA ","METRO NORTE","AGENCIA SANTIAGO","EPCE4206","LAZO ESCUDERO RAUL",2000251225,"CALLE PORTUGAL 351","SANTIAGO",1,"CALLE PORTUGAL 351SANTIAGO",2000251225,2000251225]
["AV.EYZAGUIRRE 650","SAN_BERNARDO","AV.EYZAGUIRRE 650SAN_BERNARDO",2000251571,null,null,null,null,null,"EULEN CHILE SOCIEDAD ANONIMA ","CENTRO NORTE","AGENCIA ACONCAGUA","EPCE1001","SALAS MIÑO MARCIA",2000251266,"CALLE PRAT 100","SAN FELIPE",1,"CALLE PRAT 100SAN FELIPE",2000251266,2000251266]
["AV.JORGE ALESANDRI 2050","SAN_BERNARDO","AV.JORGE ALESANDRI 2050SAN_BERNARDO",2000251568,null,null,null,null,null,"EULEN CHILE SOCIEDAD ANONIMA ","CENTRO NORTE","AGENCIA VIÑA DEL MAR / VALPARAISO","EPMX4801","GOMEZ GONZALEZ JOEY ANDRES",2000251270,"CALLE PRAT 686","CALERA",1,"CALLE PRAT 686CALERA",2000251270,2000251270]
["AV.PRESIDENTE JORGE ALEDANDR","SAN_BERNARDO","AV.PRESIDENTE JORGE ALEDANDRSAN_BERNARDO",2000251452,null,null,null,null,null,"EULEN CHILE SOCIEDAD ANONIMA ","SUR","AGENCIA VALDIVIA / OSORNO","EPCE3301","LEIGHTON GALLARDO WALESKA KATHERI",2000251631,"CALLE RAMIREZ 799","OSORNO",1,"CALLE RAMIREZ 799OSORNO",2000251631,2000251631]
["CALLE BUENOS AIRES 720","SAN_BERNARDO","CALLE BUENOS AIRES 720SAN_BERNARDO",2000251456,null,null,null,null,null,"EULEN CHILE SOCIEDAD ANONIMA ","SUR","AGENCIA VALDIVIA / OSORNO","EPCE3301","LEIGHTON GALLARDO WALESKA KATHERI",2000251629,"CALLE RAMIREZ 834","OSORNO",1,"CALLE RAMIREZ 834OSORNO",2000251629,2000251629]
["COVADONGA 516 INTERIOR","SAN_BERNARDO","COVADONGA 516 INTERIORSAN_BERNARDO",2000251281,null,null,null,null,null,"EULEN CHILE SOCIEDAD ANONIMA ","METRO NORTE","AGENCIA PROVIDENCIA","EPCE3603","BENITEZ VERGARA LORAINE ELIZABE",2000251216,"CALLE RANCAGUA 0544","PROVIDENCIA",1,"CALLE RANCAGUA 0544PROVIDENCIA",2000251216,2000251216]
["CALLE CHORRILLOS 21 VIÑA ERRAZURIZ","SAN_FELIPE","CALLE CHORRILLOS 21 VIÑA ERRAZURIZSAN_FELIPE",2000251278,null,null,null,null,null,"EULEN CHILE SOCIEDAD ANONIMA ","CENTRO NORTE","AGENCIA VIÑA DEL MAR / VALPARAISO","EPMX4803","ROGEL ROJAS CELIA JOHANA",2000251644,"CALLE RUTA F 30","PUCHUNCAVI",1,"CALLE RUTA F 30PUCHUNCAVI",2000251644,2000251644]
["CALLE COMBATE DE COIMAS 1112 EX 152","SAN_FELIPE","CALLE COMBATE DE COIMAS 1112 EX 152SAN_FELIPE",2000251273,null,null,null,null,null,"EULEN CHILE SOCIEDAD ANONIMA ","CENTRO NORTE","AGENCIA VIÑA DEL MAR / VALPARAISO","EPMX4803","ROGEL ROJAS CELIA JOHANA",2000251300,"CALLE SAN ANTONIO 1360","VIÑA DEL MAR",1,"CALLE SAN ANTONIO 1360VIÑA DEL MAR",2000251300,2000251300]
["CALLE PRAT 100","SAN_FELIPE","CALLE PRAT 100SAN_FELIPE",2000251266,null,null,null,null,null,"EULEN CHILE SOCIEDAD ANONIMA ","METRO NORTE","AGENCIA PARQUE LAS AMERICAS","EPCE3504","HERRERA MEZA JUAN ANDRES",2000251238,"CALLE SAN JOSE 1196","INDEPENDENCIA",1,"CALLE SAN JOSE 1196INDEPENDENCIA",2000251238,2000251238]
["SAN_FERNANDO","SAN_FERNANDO","SAN_FERNANDOSAN_FERNANDO",2000251316,null,null,null,null,null,"EULEN CHILE SOCIEDAD ANONIMA ","CENTRO NORTE","AGENCIA ACONCAGUA","EPMX1002","OSORIO ARAVENA PILAR ANDREA",2000251606,"CALLE SANTA TERESA 735","LA LIGUA",1,"CALLE SANTA TERESA 735LA LIGUA",2000251606,2000251606]
["AV.BUZETA 715","SAN_JOAQUIN","AV.BUZETA 715SAN_JOAQUIN",2000251584,null,null,null,null,null,"EULEN CHILE SOCIEDAD ANONIMA ","METRO NORTE","AGENCIA SANTIAGO","EPCE4206","LAZO ESCUDERO RAUL",2000251662,"CALLE SANTA VICTORIA 351","SANTIAGO",1,"CALLE SANTA VICTORIA 351SANTIAGO",2000251662,2000251662]
["AV.VICUÑA MACKENNA 4665","SAN_JOAQUIN","AV.VICUÑA MACKENNA 4665SAN_JOAQUIN",2000251583,null,null,null,null,null,"EULEN CHILE SOCIEDAD ANONIMA ","METRO NORTE","AGENCIA SANTIAGO","EPCE4206","LAZO ESCUDERO RAUL",2000251223,"CALLE SANTO DOMINGO 711","SANTIAGO",1,"CALLE SANTO DOMINGO 711SANTIAGO",2000251223,2000251223]
["AV.VICUÑA MACKENNA 4685","SAN_JOAQUIN","AV.VICUÑA MACKENNA 4685SAN_JOAQUIN",2000251421,null,null,null,null,null,"EULEN CHILE SOCIEDAD ANONIMA ","CENTRO NORTE","AGENCIA RUTA DEL SOL","EPCE3203","TORRES VALDEBENITO ROXANA",2000251460,"CALLE SERRANO 210","MELIPILLA",1,"CALLE SERRANO 210MELIPILLA",2000251460,2000251460]
["CALLE FERNANDEZ CONCHA 2124","SAN_JOAQUIN","CALLE FERNANDEZ CONCHA 2124SAN_JOAQUIN",2000251552,null,null,null,null,null,"EULEN CHILE SOCIEDAD ANONIMA ","CENTRO NORTE","AGENCIA VIÑA DEL MAR / VALPARAISO","EPMX4803","ROGEL ROJAS CELIA JOHANA",2000251303,"CALLE SEXTA 678","QUILPUE",1,"CALLE SEXTA 678QUILPUE",2000251303,2000251303]
["AV.JOSE JOAQUIN PRIETO 3912","SAN_MIGUEL","AV.JOSE JOAQUIN PRIETO 3912SAN_MIGUEL",2000251623,null,null,null,null,null,"EULEN CHILE SOCIEDAD ANONIMA ","CENTRO NORTE","AGENCIA VIÑA DEL MAR / VALPARAISO","EPMX4803","ROGEL ROJAS CELIA JOHANA",2000251264,"CALLE SEXTA 789","QUILPUE",1,"CALLE SEXTA 789QUILPUE",2000251264,2000251264]
["AV.JOSE MIGUEL CARRERA 6150","SAN_MIGUEL","AV.JOSE MIGUEL CARRERA 6150SAN_MIGUEL",2000251564,null,null,null,null,null,"EULEN CHILE SOCIEDAD ANONIMA ","METRO SUR","AGENCIA TALCA","EPCE4303","PAVEZ GUTIERREZ KATHERINE ANDRE",2000251309,"CALLE UNO ORIENTE 728","TALCA",1,"CALLE UNO ORIENTE 728TALCA",2000251309,2000251309]
["KM 898","SAN_PABLO","KM 898SAN_PABLO",2000251249,null,null,null,null,null,"EULEN CHILE SOCIEDAD ANONIMA ","NORTE","AGENCIA ANTOFAGASTA","EPCE1202","MORA OLIVERA PAULINA ",2000251336,"CALLE URIBE 746","ANTOFAGASTA",1,"CALLE URIBE 746ANTOFAGASTA",2000251336,2000251336]
["PEAJE SAN PABLO 898","SAN_PABLO","PEAJE SAN PABLO 898SAN_PABLO",2000251641,null,null,null,null,null,"EULEN CHILE SOCIEDAD ANONIMA ","SUR","AGENCIA TEMUCO","EPCE4402","HORMAZABAL MORA CHRISTIAN JAVIE",2000251611,"CALLE URRUTIA 472","PUCON",1,"CALLE URRUTIA 472PUCON",2000251611,2000251611]
["FAENA SQM SALAR","SAN_PEDRO_DE_ATACAMA","FAENA SQM SALARSAN_PEDRO_DE_ATACAMA",2000251627,null,null,null,null,null,"EULEN CHILE SOCIEDAD ANONIMA ","METRO NORTE","AGENCIA SANTIAGO","EPCE4206","LAZO ESCUDERO RAUL",2000251602,"CALLE VERGARA 317","SANTIAGO",1,"CALLE VERGARA 317SANTIAGO",2000251602,2000251602]
["AGUSTINAS 1269","SANTIAGO",{"$f":"+A323&B323","v":"AGUSTINAS 1269SANTIAGO"},2000251383,null,null,null,null,null,"EULEN CHILE SOCIEDAD ANONIMA ","CENTRO NORTE","AGENCIA VIÑA DEL MAR / VALPARAISO","EPMX4803","ROGEL ROJAS CELIA JOHANA",2000251263,"CALLE VON SCHROEDERS 783 OFICINA 8","VIÑA DEL MAR",{"$f":"+COUNTIF(P:P,P323)","v":1},{"$f":"+P323&Q323","v":"CALLE VON SCHROEDERS 783 OFICINA 8VIÑA DEL MAR"},{"$f":"+O323","v":2000251263},{"$f":"+VLOOKUP(T323,$D$2:$D$432,1,0)","v":2000251263}]
["AGUSTINAS 2009","SANTIAGO","AGUSTINAS 2009SANTIAGO",2000554743,null,null,null,null,null,"EULEN CHILE SOCIEDAD ANONIMA ","SUR","AGENCIA VALDIVIA / OSORNO","EPCE3301","LEIGHTON GALLARDO WALESKA KATHERI",2000251220,"CALLE ZENTENO 1529","OSORNO",1,"CALLE ZENTENO 1529OSORNO",2000251220,2000251220]
["AV.AGUSTINAS 540","SANTIAGO","AV.AGUSTINAS 540SANTIAGO",2000251499,null,null,null,null,null,"EULEN CHILE SOCIEDAD ANONIMA ","CENTRO NORTE","AGENCIA VIÑA DEL MAR / VALPARAISO","EPMX4801","GOMEZ GONZALEZ JOEY ANDRES",2000251269,"CALLE ZENTENO 203","CALERA",1,"CALLE ZENTENO 203CALERA",2000251269,2000251269]
["AV.ALAMEDA 194","SANTIAGO","AV.ALAMEDA 194SANTIAGO",2000251417,null,null,null,null,null,"EULEN CHILE SOCIEDAD ANONIMA ","METRO NORTE","AGENCIA SANTIAGO","EPCE4206","LAZO ESCUDERO RAUL",2000251441,"CALLE ZENTENO 234","SANTIAGO",1,"CALLE ZENTENO 234SANTIAGO",2000251441,2000251441]
["AV.ALAMEDA 2013","SANTIAGO","AV.ALAMEDA 2013SANTIAGO",2000251537,null,null,null,null,null,"EULEN CHILE SOCIEDAD ANONIMA ","SUR","AGENCIA PUERTO MONTT / COYHAIQUE","EPCE3701","MASSRI RUIZ EDUARDO WALTER",2000251605,"CAMINO A PARGUA KM4","PUERTO MONTT",1,"CAMINO A PARGUA KM4PUERTO MONTT",2000251605,2000251605]
["AV.ALAMEDA 2240","SANTIAGO","AV.ALAMEDA 2240SANTIAGO",2000251609,null,null,null,null,null,"EULEN CHILE SOCIEDAD ANONIMA ","SUR","AGENCIA PUERTO MONTT / COYHAIQUE","EPCE3701","MASSRI RUIZ EDUARDO WALTER",2000251604,"CAMINO A PARGUA S/N","CALBUCO",1,"CAMINO A PARGUA S/NCALBUCO",2000251604,2000251604]
["AV.ARTURO PRAT 269","SANTIAGO","AV.ARTURO PRAT 269SANTIAGO",2000251505,null,null,null,null,null,"EULEN CHILE SOCIEDAD ANONIMA ","METRO NORTE","AGENCIA LAS CONDES","EPCE2805","IASALVATORE BRAVO ANGELINA MARJOR",2000251463,"CAMINO EL ALBA 11101","LAS CONDES",1,"CAMINO EL ALBA 11101LAS CONDES",2000251463,2000251463]
["AV.ARTURO PRAT 274","SANTIAGO","AV.ARTURO PRAT 274SANTIAGO",2000251506,null,null,null,null,null,"EULEN CHILE SOCIEDAD ANONIMA ","METRO NORTE","AGENCIA PARQUE LAS AMERICAS","EPCE3504","HERRERA MEZA JUAN ANDRES",2000251260,"CAMINO LA PIRAMIDE 5750","HUECHURABA",1,"CAMINO LA PIRAMIDE 5750HUECHURABA",2000251260,2000251260]
["AV.ARTURO PRAT 285","SANTIAGO","AV.ARTURO PRAT 285SANTIAGO",2000251504,null,null,null,null,null,"EULEN CHILE SOCIEDAD ANONIMA ","NORTE","AGENCIA ANTOFAGASTA","EPCE1202","MORA OLIVERA PAULINA ",2000251339,"CAMINO MEJILLONES KM 45","ANTOFAGASTA",1,"CAMINO MEJILLONES KM 45ANTOFAGASTA",2000251339,2000251339]
["AV.ARTURO PRATT 215","SANTIAGO","AV.ARTURO PRATT 215SANTIAGO",2000251501,null,null,null,null,null,"EULEN CHILE S.A. ","CENTRO NORTE","AGENCIA VIÑA DEL MAR / VALPARAISO","EPMX4803","ROGEL ROJAS CELIA JOHANA",2000554711,"CAMINO SUBIDA ALESSANDRI S/N","VIÑA DEL MAR",1,"CAMINO SUBIDA ALESSANDRI S/NVIÑA DEL MAR",2000554711,2000554711]
["AV.AV.LIB.BERNARDO OHIGGINS 1326","SANTIAGO","AV.AV.LIB.BERNARDO OHIGGINS 1326SANTIAGO",2000251246,null,null,null,null,null,"EULEN CHILE SOCIEDAD ANONIMA ","NORTE","AGENCIA ANTOFAGASTA","EPMX1201","GARCES ROJAS FABIAN ANIBAL",2000251250,"CAMPAMENTO MARIA ELENA","MARIA ELENA",1,"CAMPAMENTO MARIA ELENAMARIA ELENA",2000251250,2000251250]
["AV.BERNARDO OHIGGINS 1322","SANTIAGO","AV.BERNARDO OHIGGINS 1322SANTIAGO",2000251450,null,null,null,null,null,"EULEN CHILE SOCIEDAD ANONIMA ","METRO NORTE","AGENCIA LAS CONDES","EPCE2805","IASALVATORE BRAVO ANGELINA MARJOR",2000251372,"CARMENCITA 185","LAS CONDES",1,"CARMENCITA 185LAS CONDES",2000251372,2000251372]
["AV.BERNARDO OHIGGINS 581","SANTIAGO","AV.BERNARDO OHIGGINS 581SANTIAGO",2000251575,null,null,null,null,null,"EULEN CHILE SOCIEDAD ANONIMA ","CENTRO NORTE","AGENCIA VIÑA DEL MAR / VALPARAISO","EPMX4803","ROGEL ROJAS CELIA JOHANA",2000251618,"CERRO MOSCOSO S/N","VILLA ALEMANA",1,"CERRO MOSCOSO S/NVILLA ALEMANA",2000251618,2000251618]
["AV.CARRERA 216","SANTIAGO","AV.CARRERA 216SANTIAGO",2000251553,null,null,null,null,null,"EULEN CHILE SOCIEDAD ANONIMA ","CENTRO NORTE","AGENCIA VIÑA DEL MAR / VALPARAISO","EPMX4801","GOMEZ GONZALEZ JOEY ANDRES",2000251620,"CERRO NOGALES S/N","NOGALES",1,"CERRO NOGALES S/NNOGALES",2000251620,2000251620]
["AV.CATEDRAL 1712","SANTIAGO","AV.CATEDRAL 1712SANTIAGO",2000251532,null,null,null,null,null,"EULEN CHILE SOCIEDAD ANONIMA ","METRO NORTE","AGENCIA LAS CONDES","EPCE2805","IASALVATORE BRAVO ANGELINA MARJOR",2000251296,"CIRCUNVALACION LAS FLORES 12870","LAS CONDES",1,"CIRCUNVALACION LAS FLORES 12870LAS CONDES",2000251296,2000251296]
["AV.EJERCITO 146","SANTIAGO","AV.EJERCITO 146SANTIAGO",2000251416,null,null,null,null,null,"EULEN CHILE SOCIEDAD ANONIMA ","METRO NORTE","AGENCIA PARQUE LAS AMERICAS","EPCE3504","HERRERA MEZA JUAN ANDRES",2000251433,"CIUDAD EMPRESARIAL CANAL 3","HUECHURABA",1,"CIUDAD EMPRESARIAL CANAL 3HUECHURABA",2000251433,2000251433]
["AV.ESTADO 111","SANTIAGO","AV.ESTADO 111SANTIAGO",2000251478,null,null,null,null,null,"EULEN CHILE SOCIEDAD ANONIMA ","SUR","AGENCIA TEMUCO","EPCE4402","HORMAZABAL MORA CHRISTIAN JAVIE",2000251358,"CLARO SOLAR 115","TEMUCO",1,"CLARO SOLAR 115TEMUCO",2000251358,2000251358]
["AV.GENERAL JOFRE 462","SANTIAGO","AV.GENERAL JOFRE 462SANTIAGO",2000251531,null,null,null,null,null,"EULEN CHILE SOCIEDAD ANONIMA ","SUR","AGENCIA TEMUCO","EPCE4402","HORMAZABAL MORA CHRISTIAN JAVIE",2000251355,"CLARO SOLAR 775","TEMUCO",1,"CLARO SOLAR 775TEMUCO",2000251355,2000251355]
["AV.HUERFANOS 1067","SANTIAGO","AV.HUERFANOS 1067SANTIAGO",2000251479,null,null,null,null,null,"EULEN CHILE SOCIEDAD ANONIMA ","SUR","AGENCIA CHILLAN","EPMX1604","CANALES GALDAMES SERGIO ANTONIO",2000251360,"CONSTITUCION 757","CHILLAN",1,"CONSTITUCION 757CHILLAN",2000251360,2000251360]
["AV.HUERFANOS 770","SANTIAGO","AV.HUERFANOS 770SANTIAGO",2000251495,null,null,null,null,null,"EULEN CHILE SOCIEDAD ANONIMA ","CENTRO NORTE","AGENCIA ELQUI","EPCE2701","MADRID BARRALES KARLA",2000251320,"CORDOVEZ 321 325","LA SERENA",1,"CORDOVEZ 321 325LA SERENA",2000251320,2000251320]
["AV.HUERFANOS 785","SANTIAGO","AV.HUERFANOS 785SANTIAGO",2000251480,null,null,null,null,null,"EULEN CHILE SOCIEDAD ANONIMA ","METRO SUR","AGENCIA VALLES DEL MAIPO","EPCE4603","VERA DIAZ BERNARDITA DEL",2000251281,"COVADONGA 516 INTERIOR","SAN BERNARDO",1,"COVADONGA 516 INTERIORSAN BERNARDO",2000251281,2000251281]
["AV.HUERFANOS 891","SANTIAGO","AV.HUERFANOS 891SANTIAGO",2000251481,null,null,null,null,null,"EULEN CHILE SOCIEDAD ANONIMA ","SUR","AGENCIA TEMUCO","EPCE4402","HORMAZABAL MORA CHRISTIAN JAVIE",2000251353,"DIEGO PORTALES 968 OF 301 302A","TEMUCO",1,"DIEGO PORTALES 968 OF 301 302ATEMUCO",2000251353,2000251353]
["AV.ISMAEL VALDES VERGARA 843","SANTIAGO","AV.ISMAEL VALDES VERGARA 843SANTIAGO",2000251536,null,null,null,null,null,"EULEN CHILE SOCIEDAD ANONIMA ","SUR","AGENCIA PUERTO MONTT / COYHAIQUE","EPCE3701","MASSRI RUIZ EDUARDO WALTER",2000251365,"EJERCITO 360","PUERTO MONTT",1,"EJERCITO 360PUERTO MONTT",2000251365,2000251365]
["AV.LIB BERNADO OHIGGINS 2013","SANTIAGO","AV.LIB BERNADO OHIGGINS 2013SANTIAGO",2000251224,null,null,null,null,null,"EULEN CHILE SOCIEDAD ANONIMA ","METRO NORTE","AGENCIA PARQUE LAS AMERICAS","EPCE3504","HERRERA MEZA JUAN ANDRES",2000251258,"EL ROSAL 811","HUECHURABA",1,"EL ROSAL 811HUECHURABA",2000251258,2000251258]
["AV.LIB.BDO.O'HIGGINS 1233","SANTIAGO","AV.LIB.BDO.O'HIGGINS 1233SANTIAGO",2000251331,null,null,null,null,null,"EULEN CHILE SOCIEDAD ANONIMA ","SUR","AGENCIA VALDIVIA / OSORNO","EPCE3301","LEIGHTON GALLARDO WALESKA KATHERI",2000251324,"ELEUTERIO RAMIREZ 850","OSORNO",1,"ELEUTERIO RAMIREZ 850OSORNO",2000251324,2000251324]
["AV.MAC IVER 225","SANTIAGO","AV.MAC IVER 225SANTIAGO",2000251426,null,null,null,null,null,"EULEN CHILE SOCIEDAD ANONIMA ","NORTE","AGENCIA COPIAPO","EPMX1901","VARGAS AMIGO CLAUDIA ANDREA",2000251419,"FAENA CASERONES","TIERRA AMARILLA",1,"FAENA CASERONESTIERRA AMARILLA",2000251419,2000251419]
["AV.MIRAFLORES 130","SANTIAGO","AV.MIRAFLORES 130SANTIAGO",2000251261,null,null,null,null,null,"EULEN CHILE SOCIEDAD ANONIMA ","NORTE","AGENCIA ANTOFAGASTA","EPMX1201","GARCES ROJAS FABIAN ANIBAL",2000251251,"FAENA COYASUR","MARIA ELENA",1,"FAENA COYASURMARIA ELENA",2000251251,2000251251]
["AV.MIRAFLORES 222","SANTIAGO","AV.MIRAFLORES 222SANTIAGO",2000251500,null,null,null,null,null,"EULEN CHILE SOCIEDAD ANONIMA ","NORTE","AGENCIA IQUIQUE","EPCE2501","GUTIERREZ MENESES ALEX OMAR",2000251652,"FAENA NUEVA VICTORIA","POZO ALMONTE",1,"FAENA NUEVA VICTORIAPOZO ALMONTE",2000251652,2000251652]
["AV.MIRAFLORES 393","SANTIAGO","AV.MIRAFLORES 393SANTIAGO",2000251516,null,null,null,null,null,"EULEN CHILE SOCIEDAD ANONIMA ","NORTE","AGENCIA COPIAPO","EPMX1905","BUGUEÑO CAMPOS KARINA MARGARIT",2000251289,"FAENA VALLENAR","VALLENAR",1,"FAENA VALLENARVALLENAR",2000251289,2000251289]
["AV.MONEDA 1031","SANTIAGO","AV.MONEDA 1031SANTIAGO",2000251485,null,null,null,null,null,"EULEN CHILE SOCIEDAD ANONIMA ","METRO SUR","AGENCIA LA FLORIDA / SAN MIGUEL","EPCE2603","RUIZ GONZALEZ CAROLINA ANDREA",2000251656,"GRAN AVENIDA PARADERO 25","LA CISTERNA",1,"GRAN AVENIDA PARADERO 25LA CISTERNA",2000251656,2000251656]
["AV.OHIGGINS 581","SANTIAGO","AV.OHIGGINS 581SANTIAGO",2000251473,null,null,null,null,null,"EULEN CHILE SOCIEDAD ANONIMA ","NORTE","AGENCIA ANTOFAGASTA","EPCE1202","MORA OLIVERA PAULINA ",2000251378,"IQUIQUE 5520","ANTOFAGASTA",1,"IQUIQUE 5520ANTOFAGASTA",2000251378,2000251378]
["AV.PUENTE 689","SANTIAGO","AV.PUENTE 689SANTIAGO",2000251483,null,null,null,null,null,"EULEN CHILE SOCIEDAD ANONIMA ","SUR","AGENCIA VALDIVIA / OSORNO","EPCE3301","LEIGHTON GALLARDO WALESKA KATHERI",2000251249,"KM 898","SAN PABLO",1,"KM 898SAN PABLO",2000251249,2000251249]
["AV.REPUBLICA 79","SANTIAGO","AV.REPUBLICA 79SANTIAGO",2000251502,null,null,null,null,null,"EULEN CHILE SOCIEDAD ANONIMA ","METRO NORTE","AGENCIA LAS CONDES","EPCE2805","IASALVATORE BRAVO ANGELINA MARJOR",2000251437,"LAS FLORES 12870","LAS CONDES",1,"LAS FLORES 12870LAS CONDES",2000251437,2000251437]
["AV.ROBERTO DEL RIO","SANTIAGO","AV.ROBERTO DEL RIOSANTIAGO",2000251555,null,null,null,null,null,"EULEN CHILE SOCIEDAD ANONIMA ","SUR","AGENCIA PUERTO MONTT / COYHAIQUE","EPCE3701","MASSRI RUIZ EDUARDO WALTER",2000251414,"LATERAL FRUTILLAR KM 982","FRUTILLAR",1,"LATERAL FRUTILLAR KM 982FRUTILLAR",2000251414,2000251414]
["AV.SAN DIEGO 284","SANTIAGO","AV.SAN DIEGO 284SANTIAGO",2000251659,null,null,null,null,null,"EULEN CHILE SOCIEDAD ANONIMA ","SUR","AGENCIA PUERTO MONTT / COYHAIQUE","EPCE3701","MASSRI RUIZ EDUARDO WALTER",2000251410,"LATERAL KM 1007","PUERTO VARAS",1,"LATERAL KM 1007PUERTO VARAS",2000251410,2000251410]
["AV.SAN ISIDRO 560","SANTIAGO","AV.SAN ISIDRO 560SANTIAGO",2000251285,null,null,null,null,null,"EULEN CHILE SOCIEDAD ANONIMA ","SUR","AGENCIA PUERTO MONTT / COYHAIQUE","EPCE3701","MASSRI RUIZ EDUARDO WALTER",2000251415,"LATERAL LLANQUIHUE KM 998","LLANQUIHUE",1,"LATERAL LLANQUIHUE KM 998LLANQUIHUE",2000251415,2000251415]
["AV.SANTA ROSA 1234","SANTIAGO","AV.SANTA ROSA 1234SANTIAGO",2000251427,null,null,null,null,null,"EULEN CHILE SOCIEDAD ANONIMA ","NORTE","AGENCIA COPIAPO","EPMX1905","BUGUEÑO CAMPOS KARINA MARGARIT",2000251314,"LLANOS DE SOTO S/VALLENAR","VALLENAR",1,"LLANOS DE SOTO S/VALLENARVALLENAR",2000251314,2000251314]
["AV.SANTO DOMINGO 711","SANTIAGO","AV.SANTO DOMINGO 711SANTIAGO",2000251538,null,null,null,null,null,"EULEN CHILE SOCIEDAD ANONIMA ","CENTRO NORTE","AGENCIA RUTA DEL SOL","EPCE3203","TORRES VALDEBENITO ROXANA",2000559659,"LO AGUIRRE SN 1","MELIPILLA",1,"LO AGUIRRE SN 1MELIPILLA",2000559659,2000559659]
["AV.VICTORIA 834","SANTIAGO","AV.VICTORIA 834SANTIAGO",2000251288,null,null,null,null,null,"EULEN CHILE SOCIEDAD ANONIMA ","NORTE","AGENCIA COPIAPO","EPCE1902","CORTES VILLEGAS SHEYLA STEFANIE",2000251312,"LOS CARRERA ESQ VAN BUREN 2276","COPIAPO",1,"LOS CARRERA ESQ VAN BUREN 2276COPIAPO",2000251312,2000251312]
["AV.ZENTENO 234","SANTIAGO","AV.ZENTENO 234SANTIAGO",2000251503,null,null,null,null,null,"EULEN CHILE SOCIEDAD ANONIMA ","METRO NORTE","AGENCIA LAS CONDES","EPCE2805","IASALVATORE BRAVO ANGELINA MARJOR",2000251280,"LOS MILITARES 4290","LAS CONDES",1,"LOS MILITARES 4290LAS CONDES",2000251280,2000251280]
["CALLE AGUSTINAS 1197","SANTIAGO","CALLE AGUSTINAS 1197SANTIAGO",2000251601,null,null,null,null,null,"EULEN CHILE SOCIEDAD ANONIMA ","NORTE","AGENCIA ANTOFAGASTA","EPMX1201","GARCES ROJAS FABIAN ANIBAL",2000251338,"LOTE PROMINOX KM 60","TOCOPILLA",1,"LOTE PROMINOX KM 60TOCOPILLA",2000251338,2000251338]
["CALLE AGUSTINAS 1356","SANTIAGO","CALLE AGUSTINAS 1356SANTIAGO",2000251545,null,null,null,null,null,"EULEN CHILE SOCIEDAD ANONIMA ","METRO NORTE","AGENCIA LIBERTADORES","EPCE2901","ADAMS LOPEZ CATALINA DE LOS",2000251518,"MALL QUILICURA","QUILICURA",1,"MALL QUILICURAQUILICURA",2000251518,2000251518]
["CALLE AGUSTINAS 1360","SANTIAGO","CALLE AGUSTINAS 1360SANTIAGO",2000251393,null,null,null,null,null,"EULEN CHILE SOCIEDAD ANONIMA ","NORTE","AGENCIA CALAMA","EPRD1506","VERA CRUZ MARCO ANTONIO",2000251418,"MMH","CALAMA",1,"MMHCALAMA",2000251418,2000251418]
["CALLE AHUMADA 99","SANTIAGO","CALLE AHUMADA 99SANTIAGO",2000251475,null,null,null,null,null,"EULEN CHILE SOCIEDAD ANONIMA ","METRO NORTE","AGENCIA LAS CONDES","EPCE2805","IASALVATORE BRAVO ANGELINA MARJOR",2000251582,"NUESTRA SEÑORA DEL ROSARI 850","LAS CONDES",1,"NUESTRA SEÑORA DEL ROSARI 850LAS CONDES",2000251582,2000251582]
["CALLE ARTURO PRAT 285","SANTIAGO","CALLE ARTURO PRAT 285SANTIAGO",2000251392,null,null,null,null,null,"EULEN CHILE SOCIEDAD ANONIMA ","NORTE","AGENCIA COPIAPO","EPMX1905","BUGUEÑO CAMPOS KARINA MARGARIT",2000251315,"OCHANDIA 688","VALLENAR",1,"OCHANDIA 688VALLENAR",2000251315,2000251315]
["CALLE ARTURO PRAT 368","SANTIAGO","CALLE ARTURO PRAT 368SANTIAGO",2000251566,null,null,null,null,null,"EULEN CHILE SOCIEDAD ANONIMA ","CENTRO NORTE","AGENCIA ILLAPEL","EPMX2402","OLIVA ROCCO JUAN GABRIEL",2000251408,"OCTAY NORTE KM920 920","LOS VILOS",1,"OCTAY NORTE KM920 920LOS VILOS",2000251408,2000251408]
["CALLE BILNES 351","SANTIAGO","CALLE BILNES 351SANTIAGO",2000251497,null,null,null,null,null,"EULEN CHILE SOCIEDAD ANONIMA ","SUR","AGENCIA CONCEPCION","EPCE1802","MARIN GALINDO RYAN FELIPE",2000251350,"PAICAVI 2155","CONCEPCION",1,"PAICAVI 2155CONCEPCION",2000251350,2000251350]
["CALLE BUERAS 112","SANTIAGO","CALLE BUERAS 112SANTIAGO",2000251650,null,null,null,null,null,"EULEN CHILE SOCIEDAD ANONIMA ","CENTRO NORTE","AGENCIA ILLAPEL","EPMX2402","OLIVA ROCCO JUAN GABRIEL",2000251405,"PEAJE LAS VEGAS  KM 90 90","LOS VILOS",1,"PEAJE LAS VEGAS  KM 90 90LOS VILOS",2000251405,2000251405]
["CALLE CATEDRAL 1217","SANTIAGO","CALLE CATEDRAL 1217SANTIAGO",2000251422,null,null,null,null,null,"EULEN CHILE SOCIEDAD ANONIMA ","SUR","AGENCIA PUERTO MONTT / COYHAIQUE","EPCE3701","MASSRI RUIZ EDUARDO WALTER",2000251665,"PEAJE LATERAL CALBUCO","CALBUCO",1,"PEAJE LATERAL CALBUCOCALBUCO",2000251665,2000251665]
["CALLE EJERCITO 146","SANTIAGO","CALLE EJERCITO 146SANTIAGO",2000251232,null,null,null,null,null,"EULEN CHILE SOCIEDAD ANONIMA ","SUR","AGENCIA PUERTO MONTT / COYHAIQUE","EPCE3701","MASSRI RUIZ EDUARDO WALTER",2000251667,"PEAJE LATERAL MAULLIN","MAULLIN",1,"PEAJE LATERAL MAULLINMAULLIN",2000251667,2000251667]
["CALLE GENERAL JOFRE 462","SANTIAGO","CALLE GENERAL JOFRE 462SANTIAGO",2000251233,null,null,null,null,null,"EULEN CHILE SOCIEDAD ANONIMA ","SUR","AGENCIA PUERTO MONTT / COYHAIQUE","EPCE3701","MASSRI RUIZ EDUARDO WALTER",2000251664,"PEAJE LATERAL TRAPEN","PUERTO MONTT",1,"PEAJE LATERAL TRAPENPUERTO MONTT",2000251664,2000251664]
["CALLE MAC IVER 225","SANTIAGO","CALLE MAC IVER 225SANTIAGO",2000251547,null,null,null,null,null,"EULEN CHILE SOCIEDAD ANONIMA ","CENTRO NORTE","AGENCIA ILLAPEL","EPMX2402","OLIVA ROCCO JUAN GABRIEL",2000251406,"PEAJE PICHIDANGUI KM 190 190","LOS VILOS",1,"PEAJE PICHIDANGUI KM 190 190LOS VILOS",2000251406,2000251406]
["CALLE MERCED 472","SANTIAGO","CALLE MERCED 472SANTIAGO",2000251578,null,null,null,null,null,"EULEN CHILE SOCIEDAD ANONIMA ","SUR","AGENCIA VALDIVIA / OSORNO","EPCE3301","LEIGHTON GALLARDO WALESKA KATHERI",2000251642,"PEAJE PTO OCTAY 920","OSORNO",1,"PEAJE PTO OCTAY 920OSORNO",2000251642,2000251642]
["CALLE MIRAFLORES 222","SANTIAGO","CALLE MIRAFLORES 222SANTIAGO",2000251445,null,null,null,null,null,"EULEN CHILE SOCIEDAD ANONIMA ","SUR","AGENCIA TEMUCO","EPCE4402","HORMAZABAL MORA CHRISTIAN JAVIE",2000547590,"PEAJE PUA, KM 623 S/N","VICTORIA",1,"PEAJE PUA, KM 623 S/NVICTORIA",2000547590,2000547590]
["CALLE MORANDE 330","SANTIAGO","CALLE MORANDE 330SANTIAGO",2000251330,null,null,null,null,null,"EULEN CHILE SOCIEDAD ANONIMA ","SUR","AGENCIA TEMUCO","EPCE4402","HORMAZABAL MORA CHRISTIAN JAVIE",2000547610,"PEAJE QUEPE, KM 693 S/N","VICTORIA",1,"PEAJE QUEPE, KM 693 S/NVICTORIA",2000547610,2000547610]
["CALLE PEDRO MONTT 1606","SANTIAGO","CALLE PEDRO MONTT 1606SANTIAGO",2000251245,null,null,null,null,null,"EULEN CHILE SOCIEDAD ANONIMA ","SUR","AGENCIA VALDIVIA / OSORNO","EPCE3301","LEIGHTON GALLARDO WALESKA KATHERI",2000251641,"PEAJE SAN PABLO 898","SAN PABLO",1,"PEAJE SAN PABLO 898SAN PABLO",2000251641,2000251641]
["CALLE PORTUGAL 351","SANTIAGO","CALLE PORTUGAL 351SANTIAGO",2000251225,null,null,null,null,null,"EULEN CHILE SOCIEDAD ANONIMA ","NORTE","AGENCIA COPIAPO","EPCE1902","CORTES VILLEGAS SHEYLA STEFANIE",2000251218,"PJE.ORIENTE 6 CASA 92 STA.ELVIRA","COPIAPO",1,"PJE.ORIENTE 6 CASA 92 STA.ELVIRACOPIAPO",2000251218,2000251218]
["CALLE SANTA VICTORIA 351","SANTIAGO","CALLE SANTA VICTORIA 351SANTIAGO",2000251662,null,null,null,null,null,"EULEN CHILE SOCIEDAD ANONIMA ","CENTRO NORTE","AGENCIA OVALLE","EPCE3401","CORTES RIVERA ADOLFO GUILLERM",2000251649,"PLANTA DELTA BARRIO 5","OVALLE",1,"PLANTA DELTA BARRIO 5OVALLE",2000251649,2000251649]
["CALLE SANTO DOMINGO 711","SANTIAGO","CALLE SANTO DOMINGO 711SANTIAGO",2000251223,null,null,null,null,null,"EULEN CHILE SOCIEDAD ANONIMA ","CENTRO NORTE","AGENCIA VIÑA DEL MAR / VALPARAISO","EPMX4803","ROGEL ROJAS CELIA JOHANA",2000251301,"PLAZA SAN FCO.VERGARA 162","VIÑA DEL MAR",1,"PLAZA SAN FCO.VERGARA 162VIÑA DEL MAR",2000251301,2000251301]
["CALLE VERGARA 317","SANTIAGO","CALLE VERGARA 317SANTIAGO",2000251602,null,null,null,null,null,"EULEN CHILE SOCIEDAD ANONIMA ","SUR","AGENCIA VALDIVIA / OSORNO","EPCE3301","LEIGHTON GALLARDO WALESKA KATHERI",2000251412,"PURRANQUE KM 957","OSORNO",1,"PURRANQUE KM 957OSORNO",2000251412,2000251412]
["CALLE ZENTENO 234","SANTIAGO","CALLE ZENTENO 234SANTIAGO",2000251441,null,null,null,null,null,"EULEN CHILE SOCIEDAD ANONIMA ","CENTRO NORTE","AGENCIA ILLAPEL","EPMX2402","OLIVA ROCCO JUAN GABRIEL",2000251407,"PUYEHUE NORTE KM 919 919","LOS VILOS",1,"PUYEHUE NORTE KM 919 919LOS VILOS",2000251407,2000251407]
["SAN FRANCISCO 1356","SANTIAGO","SAN FRANCISCO 1356SANTIAGO",2000555164,null,null,null,null,null,"EULEN CHILE SOCIEDAD ANONIMA ","SUR","AGENCIA VALDIVIA / OSORNO","EPCE3301","LEIGHTON GALLARDO WALESKA KATHERI",2000251411,"RIO NEGRO KM 945","OSORNO",1,"RIO NEGRO KM 945OSORNO",2000251411,2000251411]
["AV.5 PONIENTE 1670","TALCA","AV.5 PONIENTE 1670TALCA",2000251592,null,null,null,null,null,"EULEN CHILE SOCIEDAD ANONIMA ","METRO NORTE","AGENCIA LAS CONDES","EPCE2805","IASALVATORE BRAVO ANGELINA MARJOR",2000251265,"ROSARIO NORTE 615","LAS CONDES",1,"ROSARIO NORTE 615LAS CONDES",2000251265,2000251265]
["AV.COLIN 240","TALCA","AV.COLIN 240TALCA",2000251204,null,null,null,null,null,"EULEN CHILE SOCIEDAD ANONIMA ","NORTE","AGENCIA ANTOFAGASTA","EPCE1202","MORA OLIVERA PAULINA ",2000251599,"RUTA 5 KM 1372 1372","ANTOFAGASTA",1,"RUTA 5 KM 1372 1372ANTOFAGASTA",2000251599,2000251599]
["AV.SAN MIGUEL 3355","TALCA",{"$f":"+A387&B387","v":"AV.SAN MIGUEL 3355TALCA"},2000251203,null,null,null,null,null,"EULEN CHILE SOCIEDAD ANONIMA ","CENTRO NORTE","AGENCIA ACONCAGUA","EPCE1001","SALAS MIÑO MARCIA",2000251230,"RUTA 5 NORTE  KM 89","LLAILLAY",{"$f":"+COUNTIF(P:P,P387)","v":1},{"$f":"+P387&Q387","v":"RUTA 5 NORTE  KM 89LLAILLAY"},{"$f":"+O387","v":2000251230},{"$f":"+VLOOKUP(T387,$D$2:$D$432,1,0)","v":2000251230}]
["CALLE 6 ORIENTE 3 NORTE","TALCA","CALLE 6 ORIENTE 3 NORTETALCA",2000251597,null,null,null,null,null,"EULEN CHILE SOCIEDAD ANONIMA ","CENTRO NORTE","AGENCIA ILLAPEL","EPMX2402","OLIVA ROCCO JUAN GABRIEL",2000251283,"RUTA 5 NORTE KM 193","LOS VILOS",1,"RUTA 5 NORTE KM 193LOS VILOS",2000251283,2000251283]
["CALLE UNO ORIENTE 728","TALCA","CALLE UNO ORIENTE 728TALCA",2000251309,null,null,null,null,null,"EULEN CHILE SOCIEDAD ANONIMA ","SUR","AGENCIA VALDIVIA / OSORNO","EPCE3301","LEIGHTON GALLARDO WALESKA KATHERI",2000251253,"RUTA 5 SUP PEAJE PILAUCO","OSORNO",1,"RUTA 5 SUP PEAJE PILAUCOOSORNO",2000251253,2000251253]
["AV.ALEMANIA 0281","TEMUCO","AV.ALEMANIA 0281TEMUCO",2000251359,null,null,null,null,null,"EULEN CHILE SOCIEDAD ANONIMA ","SUR","AGENCIA PUERTO MONTT / COYHAIQUE","EPCE3701","MASSRI RUIZ EDUARDO WALTER",2000251369,"RUTA 5 SUR   KM 1005","PUERTO VARAS",1,"RUTA 5 SUR   KM 1005PUERTO VARAS",2000251369,2000251369]
["AV.ALEMANIA 0590","TEMUCO","AV.ALEMANIA 0590TEMUCO",2000251356,null,null,null,null,null,"EULEN CHILE SOCIEDAD ANONIMA ","SUR","AGENCIA PUERTO MONTT / COYHAIQUE","EPCE3701","MASSRI RUIZ EDUARDO WALTER",2000251364,"RUTA 5 SUR KM 1000","LLANQUIHUE",1,"RUTA 5 SUR KM 1000LLANQUIHUE",2000251364,2000251364]
["AV.ALEMANIA 650 LOC 5","TEMUCO","AV.ALEMANIA 650 LOC 5TEMUCO",2000251357,null,null,null,null,null,"EULEN CHILE SOCIEDAD ANONIMA ","SUR","AGENCIA PUERTO MONTT / COYHAIQUE","EPCE3701","MASSRI RUIZ EDUARDO WALTER",2000251363,"RUTA 5 SUR KM 1019","PUERTO MONTT",1,"RUTA 5 SUR KM 1019PUERTO MONTT",2000251363,2000251363]
["AV.SAN MARTIN 0102","TEMUCO","AV.SAN MARTIN 0102TEMUCO",2000251213,null,null,null,null,null,"EULEN CHILE SOCIEDAD ANONIMA ","SUR","AGENCIA VALDIVIA / OSORNO","EPCE3301","LEIGHTON GALLARDO WALESKA KATHERI",2000251322,"RUTA 5 SUR KM 775","OSORNO",1,"RUTA 5 SUR KM 775OSORNO",2000251322,2000251322]
["CLARO SOLAR 115","TEMUCO","CLARO SOLAR 115TEMUCO",2000251358,null,null,null,null,null,"EULEN CHILE SOCIEDAD ANONIMA ","SUR","AGENCIA VALDIVIA / OSORNO","EPCE3301","LEIGHTON GALLARDO WALESKA KATHERI",2000251409,"RUTA 5 SUR KM 917","OSORNO",1,"RUTA 5 SUR KM 917OSORNO",2000251409,2000251409]
["CLARO SOLAR 775","TEMUCO","CLARO SOLAR 775TEMUCO",2000251355,null,null,null,null,null,"EULEN CHILE SOCIEDAD ANONIMA ","SUR","AGENCIA VALDIVIA / OSORNO","EPCE3301","LEIGHTON GALLARDO WALESKA KATHERI",2000251323,"RUTA 5 SUR KM 919","OSORNO",1,"RUTA 5 SUR KM 919OSORNO",2000251323,2000251323]
["DIEGO PORTALES 968 OF 301 302A","TEMUCO","DIEGO PORTALES 968 OF 301 302ATEMUCO",2000251353,null,null,null,null,null,"EULEN CHILE SOCIEDAD ANONIMA ","SUR","AGENCIA PUERTO MONTT / COYHAIQUE","EPCE3701","MASSRI RUIZ EDUARDO WALTER",2000251362,"RUTA 5 SUR KM 920","PUERTO MONTT",1,"RUTA 5 SUR KM 920PUERTO MONTT",2000251362,2000251362]
["CALLE LONGITUDINAL SUR KM 162","TENO","CALLE LONGITUDINAL SUR KM 162TENO",2000251660,null,null,null,null,null,"EULEN CHILE SOCIEDAD ANONIMA ","SUR","AGENCIA VALDIVIA / OSORNO","EPCE3301","LEIGHTON GALLARDO WALESKA KATHERI",2000251325,"RUTA 5 SUR KM 957","PURRANQUE",1,"RUTA 5 SUR KM 957PURRANQUE",2000251325,2000251325]
["FAENA CASERONES","TIERRA_AMARILLA","FAENA CASERONESTIERRA_AMARILLA",2000251419,null,null,null,null,null,"EULEN CHILE SOCIEDAD ANONIMA ","SUR","AGENCIA PUERTO MONTT / COYHAIQUE","EPCE3701","MASSRI RUIZ EDUARDO WALTER",2000251368,"RUTA 5 SUR KM 998","LLANQUIHUE",1,"RUTA 5 SUR KM 998LLANQUIHUE",2000251368,2000251368]
["AV.ARTURO PRAT 1195","TOCOPILLA","AV.ARTURO PRAT 1195TOCOPILLA",2000251598,null,null,null,null,null,"EULEN CHILE SOCIEDAD ANONIMA ","METRO SUR","AGENCIA TALCA","EPCE4303","PAVEZ GUTIERREZ KATHERINE ANDRE",2000251607,"RUTA 54 SUR KM 289","LINARES",1,"RUTA 54 SUR KM 289LINARES",2000251607,2000251607]
["CALLE 21 DE MAYO 1336","TOCOPILLA","CALLE 21 DE MAYO 1336TOCOPILLA",2000251209,null,null,null,null,null,"EULEN CHILE SOCIEDAD ANONIMA ","CENTRO NORTE","AGENCIA VIÑA DEL MAR / VALPARAISO","EPMX4801","GOMEZ GONZALEZ JOEY ANDRES",2000251616,"RUTA 60 CH KM25","QUILLOTA",1,"RUTA 60 CH KM25QUILLOTA",2000251616,2000251616]
["LOTE PROMINOX KM 60","TOCOPILLA","LOTE PROMINOX KM 60TOCOPILLA",2000251338,null,null,null,null,null,"EULEN CHILE SOCIEDAD ANONIMA ","NORTE","AGENCIA IQUIQUE","EPCE2501","GUTIERREZ MENESES ALEX OMAR",2000251305,"SAMPOSA DE HUARA SITIO 19 MANZANA C","IQUIQUE",1,"SAMPOSA DE HUARA SITIO 19 MANZANA CIQUIQUE",2000251305,2000251305]
["CALLE GARCIA REYES 570","VALDIVIA","CALLE GARCIA REYES 570VALDIVIA",2000251432,null,null,null,null,null,"EULEN CHILE SOCIEDAD ANONIMA ","CENTRO NORTE","AGENCIA RUTA DEL SOL","EPCE3203","TORRES VALDEBENITO ROXANA",2000251467,"SAN ALBERTO HURTADO 3295","PADRE HURTADO",1,"SAN ALBERTO HURTADO 3295PADRE HURTADO",2000251467,2000251467]
["FAENA VALLENAR","VALLENAR","FAENA VALLENARVALLENAR",2000251289,null,null,null,null,null,"EULEN CHILE SOCIEDAD ANONIMA ","METRO NORTE","AGENCIA SANTIAGO","EPCE4206","LAZO ESCUDERO RAUL",2000555164,"SAN FRANCISCO 1356","SANTIAGO",1,"SAN FRANCISCO 1356SANTIAGO",2000555164,2000555164]
["LLANOS DE SOTO S/VALLENAR","VALLENAR","LLANOS DE SOTO S/VALLENARVALLENAR",2000251314,null,null,null,null,null,"EULEN CHILE SOCIEDAD ANONIMA ","METRO NORTE","AGENCIA PARQUE LAS AMERICAS","EPCE3504","HERRERA MEZA JUAN ANDRES",2000251255,"SANTA LAURA 1365","INDEPENDENCIA",1,"SANTA LAURA 1365INDEPENDENCIA",2000251255,2000251255]
["OCHANDIA 688","VALLENAR","OCHANDIA 688VALLENAR",2000251315,null,null,null,null,null,"EULEN CHILE SOCIEDAD ANONIMA ","SUR","AGENCIA VALDIVIA / OSORNO","EPCE3301","LEIGHTON GALLARDO WALESKA KATHERI",2000251413,"TRONCAL 4 VIENTOS KM 962","OSORNO",1,"TRONCAL 4 VIENTOS KM 962OSORNO",2000251413,2000251413]
["AV.BLANCO ENCALADA 1623","VALPARAISO","AV.BLANCO ENCALADA 1623VALPARAISO",2000251615,null,null,null,null,null,"EULEN CHILE SOCIEDAD ANONIMA ","METRO SUR","AGENCIA VALLES DEL MAIPO","EPMX4602","ARCE FIERRO ROBERTO",2000251444,"TRONCAL ANGOSTURA 57","PAINE",1,"TRONCAL ANGOSTURA 57PAINE",2000251444,2000251444]
["AV.BRASIL 1677","VALPARAISO","AV.BRASIL 1677VALPARAISO",2000251343,null,null,null,null,null,"EULEN CHILE SOCIEDAD ANONIMA ","SUR","AGENCIA PUERTO MONTT / COYHAIQUE","EPCE3701","MASSRI RUIZ EDUARDO WALTER",2000251666,"TRONCAL CALBUCO","CALBUCO",1,"TRONCAL CALBUCOCALBUCO",2000251666,2000251666]
["AV.PRAT 846 OF.4-B","VALPARAISO","AV.PRAT 846 OF.4-BVALPARAISO",2000251341,null,null,null,null,null,"EULEN CHILE SOCIEDAD ANONIMA ","METRO SUR","AGENCIA CURICO","EPCE2202","QUIÑONES LOPEZ ALEXIS ANDRES",2000251446,"TRONCAL QUINTA 162","CURICO",1,"TRONCAL QUINTA 162CURICO",2000251446,2000251446]
["AV.TUPUNGATO 2821","VALPARAISO","AV.TUPUNGATO 2821VALPARAISO",2000251423,null,null,null,null,null,"EULEN CHILE SOCIEDAD ANONIMA ","METRO SUR","AGENCIA VALLES DEL MAIPO","EPMX4602","ARCE FIERRO ROBERTO",2000251443,"TRONCAL RIO MAIPO KM 19","BUIN",1,"TRONCAL RIO MAIPO KM 19BUIN",2000251443,2000251443]
["CALLE ANTONIO VARAS 2","VALPARAISO","CALLE ANTONIO VARAS 2VALPARAISO",2000251448,null,null,null,null,null,"EULEN CHILE SOCIEDAD ANONIMA ","SUR","AGENCIA LOS ANGELES","EPCE3001","NOVOA TOLEDO DANIEL ISAAC",2000251352,"VALDIVIA 300","LOS ANGELES",1,"VALDIVIA 300LOS ANGELES",2000251352,2000251352]
["CALLE ARTURO PRAT 656","VALPARAISO","CALLE ARTURO PRAT 656VALPARAISO",2000251371,null,null,null,null,null,"EULEN CHILE SOCIEDAD ANONIMA ","METRO SUR","AGENCIA ALAMEDA / MAIPÚ","EPCE1103","VERGARA CRISOSTOMO MARLENE ALEJAND",2000251229,"AV.PAJARITOS 5830","MAIPU",1,"AV.PAJARITOS 5830MAIPU",2000251229,2000251229]
["CALLE CHACABUCO 2701","VALPARAISO","CALLE CHACABUCO 2701VALPARAISO",2000251342,null,null,null,null,null,"EULEN CHILE SOCIEDAD ANONIMA ","METRO SUR","AGENCIA ALAMEDA / MAIPÚ","EPCE1103","VERGARA CRISOSTOMO MARLENE ALEJAND",2000251248,"CAMINO A MELIPILLA 10600","MAIPU",1,"CAMINO A MELIPILLA 10600MAIPU",2000251248,2000251248]
["CALLE PLAYA ANCHA 150","VALPARAISO","CALLE PLAYA ANCHA 150VALPARAISO",2000251385,null,null,null,null,null,"EULEN CHILE SOCIEDAD ANONIMA ","METRO SUR","AGENCIA ALAMEDA / MAIPÚ","EPCE1103","VERGARA CRISOSTOMO MARLENE ALEJAND",2000251256,"AMERICO VESPUCIO 1373","PUDAHUEL",1,"AMERICO VESPUCIO 1373PUDAHUEL",2000251256,2000251256]
["PEAJE PUA, KM 623 S/N","VICTORIA","PEAJE PUA, KM 623 S/NVICTORIA",2000547590,null,null,null,null,null,"EULEN CHILE SOCIEDAD ANONIMA ","METRO SUR","AGENCIA ALAMEDA / MAIPÚ","EPCE1103","VERGARA CRISOSTOMO MARLENE ALEJAND",2000251262,"GLADIS MARIN 5830","ESTACION CENTRAL",1,"GLADIS MARIN 5830ESTACION CENTRAL",2000251262,2000251262]
["PEAJE QUEPE, KM 693 S/N","VICTORIA","PEAJE QUEPE, KM 693 S/NVICTORIA",2000547610,null,null,null,null,null,"EULEN CHILE SOCIEDAD ANONIMA ","METRO SUR","AGENCIA ALAMEDA / MAIPÚ","EPCE1103","VERGARA CRISOSTOMO MARLENE ALEJAND",2000251279,"EXPOSICION 85","ESTACION CENTRAL",1,"EXPOSICION 85ESTACION CENTRAL",2000251279,2000251279]
["CERRO MOSCOSO S/N","VILLA_ALEMANA","CERRO MOSCOSO S/NVILLA_ALEMANA",2000251618,null,null,null,null,null,"EULEN CHILE SOCIEDAD ANONIMA ","METRO SUR","AGENCIA ALAMEDA / MAIPÚ","EPCE1103","VERGARA CRISOSTOMO MARLENE ALEJAND",2000251308,"CALLE MONUMENTO 2067","MAIPU",1,"CALLE MONUMENTO 2067MAIPU",2000251308,2000251308]
["CALLE CAMILO HENRIQUEZ SN 01","VILLARRICA","CALLE CAMILO HENRIQUEZ SN 01VILLARRICA",2000251643,null,null,null,null,null,"EULEN CHILE SOCIEDAD ANONIMA ","METRO SUR","AGENCIA ALAMEDA / MAIPÚ","EPCE1103","VERGARA CRISOSTOMO MARLENE ALEJAND",2000251382,"LA COLONIA 65","MAIPU",1,"LA COLONIA 65MAIPU",2000251382,2000251382]
["5 SECTOR GOMEZ CARREÑO 30","VIÑA_DEL_MAR","5 SECTOR GOMEZ CARREÑO 30VIÑA_DEL_MAR",2000251619,null,null,null,null,null,"EULEN CHILE SOCIEDAD ANONIMA ","METRO SUR","AGENCIA ALAMEDA / MAIPÚ","EPCE1103","VERGARA CRISOSTOMO MARLENE ALEJAND",2000251387,"LOS YACIMIENTOS 1301","MAIPU",1,"LOS YACIMIENTOS 1301MAIPU",2000251387,2000251387]
["ALVAREZ 1532","VIÑA_DEL_MAR","ALVAREZ 1532VIÑA_DEL_MAR",2000251654,null,null,null,null,null,"EULEN CHILE SOCIEDAD ANONIMA ","METRO SUR","AGENCIA ALAMEDA / MAIPÚ","EPCE1103","VERGARA CRISOSTOMO MARLENE ALEJAND",2000251388,"RIO TATA 1296","PUDAHUEL",1,"RIO TATA 1296PUDAHUEL",2000251388,2000251388]
["ALVAREZ 2138","VIÑA_DEL_MAR","ALVAREZ 2138VIÑA_DEL_MAR",2000251655,null,null,null,null,null,"EULEN CHILE SOCIEDAD ANONIMA ","METRO SUR","AGENCIA ALAMEDA / MAIPÚ","EPCE1103","VERGARA CRISOSTOMO MARLENE ALEJAND",2000251395,"CALLE LOS VIENTOS 20254","PUDAHUEL",1,"CALLE LOS VIENTOS 20254PUDAHUEL",2000251395,2000251395]
["AV.FEDERICO SANTA MARIA 6090","VIÑA_DEL_MAR","AV.FEDERICO SANTA MARIA 6090VIÑA_DEL_MAR",2000251625,null,null,null,null,null,"EULEN CHILE SOCIEDAD ANONIMA ","METRO SUR","AGENCIA ALAMEDA / MAIPÚ","EPCE1103","VERGARA CRISOSTOMO MARLENE ALEJAND",2000251424,"AV.ALAMEDA 4860","ESTACION CENTRAL",1,"AV.ALAMEDA 4860ESTACION CENTRAL",2000251424,2000251424]
["AV.LAS PALMAS S/N","VIÑA_DEL_MAR","AV.LAS PALMAS S/NVIÑA_DEL_MAR",2000251617,null,null,null,null,null,"EULEN CHILE SOCIEDAD ANONIMA ","METRO SUR","AGENCIA ALAMEDA / MAIPÚ","EPCE1103","VERGARA CRISOSTOMO MARLENE ALEJAND",2000251430,"CALLE MARTINEZ DE ROZAS 3887","QUINTA NORMAL",1,"CALLE MARTINEZ DE ROZAS 3887QUINTA NORMAL",2000251430,2000251430]
["AV.LIBERTAD 601","VIÑA_DEL_MAR","AV.LIBERTAD 601VIÑA_DEL_MAR",2000251302,null,null,null,null,null,"EULEN CHILE SOCIEDAD ANONIMA ","METRO SUR","AGENCIA ALAMEDA / MAIPÚ","EPCE1103","VERGARA CRISOSTOMO MARLENE ALEJAND",2000251451,"AV.MONUMENTO 2067","MAIPU",1,"AV.MONUMENTO 2067MAIPU",2000251451,2000251451]
["CALLE LOS CASTAÑOS 67","VIÑA_DEL_MAR","CALLE LOS CASTAÑOS 67VIÑA_DEL_MAR",2000251212,null,null,null,null,null,"EULEN CHILE SOCIEDAD ANONIMA ","METRO SUR","AGENCIA ALAMEDA / MAIPÚ","EPCE1103","VERGARA CRISOSTOMO MARLENE ALEJAND",2000251565,"AV.MAIPU 1918","MAIPU",1,"AV.MAIPU 1918MAIPU",2000251565,2000251565]
["CALLE SAN ANTONIO 1360","VIÑA_DEL_MAR","CALLE SAN ANTONIO 1360VIÑA_DEL_MAR",2000251300,null,null,null,null,null,"EULEN CHILE SOCIEDAD ANONIMA ","METRO SUR","AGENCIA ALAMEDA / MAIPÚ","EPCE1103","VERGARA CRISOSTOMO MARLENE ALEJAND",2000251567,"AV.AMERICO VESPUCIO 399","MAIPU",1,"AV.AMERICO VESPUCIO 399MAIPU",2000251567,2000251567]
["CALLE VON SCHROEDERS 783 OFICINA 8","VIÑA_DEL_MAR","CALLE VON SCHROEDERS 783 OFICINA 8VIÑA_DEL_MAR",2000251263,null,null,null,null,null,"EULEN CHILE SOCIEDAD ANONIMA ","METRO SUR","AGENCIA ALAMEDA / MAIPÚ","EPCE1103","VERGARA CRISOSTOMO MARLENE ALEJAND",2000251569,"AV.VESPUCIO 1501","MAIPU",1,"AV.VESPUCIO 1501MAIPU",2000251569,2000251569]
["CAMINO SUBIDA ALESSANDRI S/N","VIÑA_DEL_MAR","CAMINO SUBIDA ALESSANDRI S/NVIÑA_DEL_MAR",2000554711,null,null,null,null,null,"EULEN CHILE SOCIEDAD ANONIMA ","METRO SUR","AGENCIA ALAMEDA / MAIPÚ","EPCE1103","VERGARA CRISOSTOMO MARLENE ALEJAND",2000251576,"AV.EXPOSICION 85","ESTACION CENTRAL",1,"AV.EXPOSICION 85ESTACION CENTRAL",2000251576,2000251576]
["PLAZA SAN FCO.VERGARA 162","VIÑA_DEL_MAR","PLAZA SAN FCO.VERGARA 162VIÑA_DEL_MAR",2000251301,null,null,null,null,null,"EULEN CHILE SOCIEDAD ANONIMA ","METRO SUR","AGENCIA ALAMEDA / MAIPÚ","EPCE1103","VERGARA CRISOSTOMO MARLENE ALEJAND",2000251580,"AV.MONUMENTO 2088","MAIPU",1,"AV.MONUMENTO 2088MAIPU",2000251580,2000251580]
["AV. KENEDY 6150","VITACURA","AV. KENEDY 6150VITACURA",2000554742,null,null,null,null,null,"EULEN CHILE SOCIEDAD ANONIMA ","METRO SUR","AGENCIA ALAMEDA / MAIPÚ","EPCE1103","VERGARA CRISOSTOMO MARLENE ALEJAND",2000251589,"AV.LEONCIO FERNANDEZ 2655","QUINTA NORMAL",1,"AV.LEONCIO FERNANDEZ 2655QUINTA NORMAL",2000251589,2000251589]
["AV.PARQUE ANTONIO RABAT 6150","VITACURA","AV.PARQUE ANTONIO RABAT 6150VITACURA",2000251587,null,null,null,null,null,"EULEN CHILE SOCIEDAD ANONIMA ","METRO SUR","AGENCIA ALAMEDA / MAIPÚ","EPCE1103","VERGARA CRISOSTOMO MARLENE ALEJAND",2000251614,"CALLE RADAL 180","ESTACION CENTRAL",1,"CALLE RADAL 180ESTACION CENTRAL",2000251614,2000251614]
["AV.VITACURA 2771","VITACURA","AV.VITACURA 2771VITACURA",2000251237,null,null,null,null,null,"EULEN CHILE SOCIEDAD ANONIMA ","METRO SUR","AGENCIA ALAMEDA / MAIPÚ","EPCE1103","VERGARA CRISOSTOMO MARLENE ALEJAND",2000251651,"CALLE LO AGUIRE 01","PUDAHUEL",1,"CALLE LO AGUIRE 01PUDAHUEL",2000251651,2000251651]
["AV.VITACURA 2933","VITACURA","AV.VITACURA 2933VITACURA",2000251484,null,null,null,null,null,"EULEN CHILE SOCIEDAD ANONIMA ","NORTE","AGENCIA CALAMA","EPRD1505","VACANTE",2000251627,"FAENA SQM SALAR","SAN PEDRO DE ATACAMA",1,"FAENA SQM SALARSAN PEDRO DE ATACAMA",2000251627,2000251627]
[null,null,null,null,null,null,null,null,null,"EULEN CHILE SOCIEDAD ANONIMA ","SUR","AGENCIA MAGALLANES","EPMX3103","PINO CONTRERAS NICOLAS",2000251221,"CALLE PEDRO MONTT 913","PUNTA ARENAS",1,"CALLE PEDRO MONTT 913PUNTA ARENAS",2000251221,2000251221]
[null,null,null,null,null,null,null,null,null,"EULEN CHILE SOCIEDAD ANONIMA ","SUR","AGENCIA MAGALLANES","EPMX3103","PINO CONTRERAS NICOLAS",2000251326,"COLON 680","PUNTA ARENAS",1,"COLON 680PUNTA ARENAS",2000251326,2000251326]
[null,null,null,null,null,null,null,null,null,"EULEN CHILE SOCIEDAD ANONIMA ","SUR","AGENCIA MAGALLANES","EPMX3103","PINO CONTRERAS NICOLAS",2000251327,"ERRAZURIZ 798","PUNTA ARENAS",1,"ERRAZURIZ 798PUNTA ARENAS",2000251327,2000251327]
[null,null,null,null,null,null,null,null,null,"EULEN CHILE SOCIEDAD ANONIMA ","SUR","AGENCIA MAGALLANES","EPMX3103","PINO CONTRERAS NICOLAS",2000251328,"ESPAÑA 869","PUNTA ARENAS",1,"ESPAÑA 869PUNTA ARENAS",2000251328,2000251328]
[null,null,null,null,null,null,null,null,null,"EULEN CHILE SOCIEDAD ANONIMA ","SUR","AGENCIA MAGALLANES","EPMX3103","PINO CONTRERAS NICOLAS",2000251442,"PJE.KORNER 1098","PUNTA ARENAS",1,"PJE.KORNER 1098PUNTA ARENAS",2000251442,2000251442]